Workbook

Sheet Main
B10: 2019-09-25
B12: Sheet No. | C12: Template Name | D12: Summary
B13: 1 | C13: Future Intra | D13: For Intraday trading in F&O segment
B14: 2 | C14: Cash Intra | D14: For Intraday trading in cash market segment
B15: 3 | C15: Mid-cap Intra | D15: For Intraday trading in Mid-cap stocks
B16: 4 | C16: Bulk Deals | D16: Reveals Bulk Deals carried on NSE & BSE
B17: 5 | C17: Call Tracker
K27: `

Sheet Future Intra
M5: Back to Main Page
A6: FOR INTRA DAY TRADING | L6: =Main!B10 -> 2019-09-25
A9: Sr.no | B9: Sector | C9: Scrip | D9: CLOSE RATE | E9: Pivot Point | F9: Supports | I9: Resistances
B10: Sector | D10: Point | E10: Point | F10: S1 | G10: S2 | H10: S3 | I10: R1 | J10: R2 | K10: R3 | L10: HIGH | M10: LOW | N10: OI | O10: % Change in OI
A11: 1 | B11: Index | C11: BANKNIFTY | D11: 30250.15 | E11: 30282.78 | F11: 29890.62 | G11: 29531.08 | H11: 29138.92 | I11: 30642.32 | J11: 31034.48 | K11: 31394.02 | L11: 30674.95 | M11: 29923.25 | N11: 1632160 | O11: -4.05%
A12: 2 | B12: Index | C12: NIFTY | D12: 11613.85 | E12: 11610.48 | F12: 11560.97 | G12: 11508.08 | H12: 11458.57 | I12: 11663.37 | J12: 11712.88 | K12: 11765.77 | L12: 11660 | M12: 11557.6 | N12: 22118850 | O12: -2.46%
A13: 3 | B13: Index | C13: NIFTYIT | D13: 15424.00 | E13: 15370.67 | F13: 15281.33 | G13: 15138.67 | H13: 15049.33 | I13: 15513.33 | J13: 15602.67 | K13: 15745.33 | L13: 15460 | M13: 15228 | N13: 14700 | O13: -9.26%
A14: 4 | B14: Cement | C14: ACC | D14: 1656.10 | E14: 1649.40 | F14: 1630.70 | G14: 1605.30 | H14: 1586.60 | I14: 1674.80 | J14: 1693.50 | K14: 1718.90 | L14: 1668.1 | M14: 1624 | N14: 1902000 | O14: -4.44%
A15: 5 | B15: Others | C15: ADANIENT | D15: 148.10 | E15: 148.82 | F15: 144.33 | G15: 140.57 | H15: 136.08 | I15: 152.58 | J15: 157.07 | K15: 160.83 | L15: 153.3 | M15: 145.05 | N15: 26340000 | O15: -2.11%
A16: 6 | B16: Others | C16: ADANIPORTS | D16: 413.80 | E16: 411.45 | F16: 406.35 | G16: 398.90 | H16: 393.80 | I16: 418.90 | J16: 424.00 | K16: 431.45 | L16: 416.55 | M16: 404 | N16: 15822500 | O16: -1.57%
A17: 7 | B17: Power | C17: ADANIPOWER | D17: 67.70 | E17: 67.20 | F17: 66.15 | G17: 64.60 | H17: 63.55 | I17: 68.75 | J17: 69.80 | K17: 71.35 | L17: 68.25 | M17: 65.65 | N17: 118900000 | O17: 9.30%
A18: 8 | B18: Automobile | C18: AMARAJABAT | D18: 727.85 | E18: 729.20 | F18: 716.05 | G18: 704.25 | H18: 691.10 | I18: 741.00 | J18: 754.15 | K18: 765.95 | L18: 742.35 | M18: 717.4 | N18: 1893500 | O18: -1.89%
A19: 9 | B19: Cement | C19: AMBUJACEM | D19: 216.25 | E19: 215.85 | F19: 212.90 | G19: 209.55 | H19: 206.60 | I19: 219.20 | J19: 222.15 | K19: 225.50 | L19: 218.8 | M19: 212.5 | N19: 23680000 | O19: -3.70%
A20: 10 | B20: Others | C20: APOLLOHOSP | D20: 1455.55 | E20: 1460.20 | F20: 1431.85 | G20: 1408.15 | H20: 1379.80 | I20: 1483.90 | J20: 1512.25 | K20: 1535.95 | L20: 1488.55 | M20: 1436.5 | N20: 2129000 | O20: 14.62%
A21: 11 | B21: Automobile | C21: APOLLOTYRE | D21: 186.65 | E21: 187.85 | F21: 184.10 | G21: 181.55 | H21: 177.80 | I21: 190.40 | J21: 194.15 | K21: 196.70 | L21: 191.6 | M21: 185.3 | N21: 11544000 | O21: -5.66%
A22: 12 | B22: Textile | C22: ARVIND | D22: 55.50 | E22: 55.33 | F22: 53.87 | G22: 52.23 | H22: 50.77 | I22: 56.97 | J22: 58.43 | K22: 60.07 | L22: 56.8 | M22: 53.7 | N22: 3054000 | O22: -15.45%
A23: 13 | B23: Automobile | C23: ASHOKLEY | D23: 75.40 | E23: 75.47 | F23: 73.43 | G23: 71.47 | H23: 69.43 | I23: 77.43 | J23: 79.47 | K23: 81.43 | L23: 77.5 | M23: 73.5 | N23: 83148000 | O23: 2.91%
A24: 14 | B24: FMCG | C24: ASIANPAINT | D24: 1771.25 | E24: 1776.55 | F24: 1750.95 | G24: 1730.65 | H24: 1705.05 | I24: 1796.85 | J24: 1822.45 | K24: 1842.75 | L24: 1802.15 | M24: 1756.25 | N24: 9043800 | O24: -2.79%
A25: 15 | B25: Pharma | C25: AUROPHARMA | D25: 618.40 | E25: 608.73 | F25: 597.62 | G25: 576.83 | H25: 565.72 | I25: 629.52 | J25: 640.63 | K25: 661.42 | L25: 619.85 | M25: 587.95 | N25: 15331000 | O25: -0.76%
A26: 16 | B26: Banking | C26: AXISBANK | D26: 706.35 | E26: 714.45 | F26: 696.30 | G26: 686.25 | H26: 668.10 | I26: 724.50 | J26: 742.65 | K26: 752.70 | L26: 732.6 | M26: 704.4 | N26: 57577200 | O26: 2.78%
A27: 17 | B27: Automobile | C27: BAJAJ-AUTO | D27: 2967.00 | E27: 2972.10 | F27: 2932.00 | G27: 2897.00 | H27: 2856.90 | I27: 3007.10 | J27: 3047.20 | K27: 3082.20 | L27: 3012.2 | M27: 2937.1 | N27: 2296000 | O27: 2.24%
A28: 18 | B28: Finance | C28: BAJAJFINSV | D28: 8249.70 | E28: 8255.30 | F28: 8154.10 | G28: 8058.50 | H28: 7957.30 | I28: 8350.90 | J28: 8452.10 | K28: 8547.70 | L28: 8356.5 | M28: 8159.7 | N28: 1036500 | O28: -2.88%
A29: 19 | B29: Finance | C29: BAJFINANCE | D29: 3971.75 | E29: 3976.22 | F29: 3927.13 | G29: 3882.52 | H29: 3833.43 | I29: 4020.83 | J29: 4069.92 | K29: 4114.53 | L29: 4025.3 | M29: 3931.6 | N29: 6861750 | O29: -0.95%
A30: 20 | B30: Automobile | C30: BALKRISIND | D30: 791.00 | E30: 793.48 | F30: 781.27 | G30: 771.53 | H30: 759.32 | I30: 803.22 | J30: 815.43 | K30: 825.17 | L30: 805.7 | M30: 783.75 | N30: 1590400 | O30: -5.78%
A31: 21 | B31: Banking | C31: BANKBARODA | D31: 99.35 | E31: 99.97 | F31: 98.23 | G31: 97.12 | H31: 95.38 | I31: 101.08 | J31: 102.82 | K31: 103.93 | L31: 101.7 | M31: 98.85 | N31: 68310000 | O31: -2.15%
A32: 22 | B32: Banking | C32: BANKINDIA | D32: 70.70 | E32: 71.12 | F32: 69.28 | G32: 67.87 | H32: 66.03 | I32: 72.53 | J32: 74.37 | K32: 75.78 | L32: 72.95 | M32: 69.7 | N32: 26022000 | O32: -1.83%
A33: 23 | B33: FMCG | C33: BATAINDIA | D33: 1723.15 | E33: 1727.42 | F33: 1698.53 | G33: 1673.92 | H33: 1645.03 | I33: 1752.03 | J33: 1780.92 | K33: 1805.53 | L33: 1756.3 | M33: 1702.8 | N33: 3156450 | O33: 3.09%
A34: 24 | B34: Capital_Goods | C34: BEL | D34: 112.10 | E34: 111.93 | F34: 110.62 | G34: 109.13 | H34: 107.82 | I34: 113.42 | J34: 114.73 | K34: 116.22 | L34: 113.25 | M34: 110.45 | N34: 25626000 | O34: 6.16%
A35: 25 | B35: FMCG | C35: BERGEPAINT | D35: 428.55 | E35: 429.70 | F35: 423.65 | G35: 418.75 | H35: 412.70 | I35: 434.60 | J35: 440.65 | K35: 445.55 | L35: 435.75 | M35: 424.8 | N35: 4510000 | O35: 11.47%
A36: 26 | B36: Automobile | C36: BHARATFORG | D36: 461.05 | E36: 459.07 | F36: 450.98 | G36: 440.92 | H36: 432.83 | I36: 469.13 | J36: 477.22 | K36: 487.28 | L36: 467.15 | M36: 449 | N36: 7578000 | O36: -4.00%
A37: 27 | B37: Telecom | C37: BHARTIARTL | D37: 348.60 | E37: 348.82 | F37: 345.48 | G37: 342.37 | H37: 339.03 | I37: 351.93 | J37: 355.27 | K37: 358.38 | L37: 352.15 | M37: 345.7 | N37: 40229634 | O37: 3.45%
A38: 28 | B38: Capital_Goods | C38: BHEL | D38: 51.80 | E38: 51.92 | F38: 50.73 | G38: 49.67 | H38: 48.48 | I38: 52.98 | J38: 54.17 | K38: 55.23 | L38: 53.1 | M38: 50.85 | N38: 53422500 | O38: 0.14%
A39: 29 | B39: Pharma | C39: BIOCON | D39: 225.05 | E39: 225.62 | F39: 223.33 | G39: 221.62 | H39: 219.33 | I39: 227.33 | J39: 229.62 | K39: 231.33 | L39: 227.9 | M39: 223.9 | N39: 12479400 | O39: -9.70%
A40: 30 | B40: Automobile | C40: BOSCHLTD | D40: 14615.00 | E40: 14730.15 | F40: 14399.65 | G40: 14184.30 | H40: 13853.80 | I40: 14945.50 | J40: 15276.00 | K40: 15491.35 | L40: 15060.65 | M40: 14514.8 | N40: 165540 | O40: -0.05%
A41: 31 | B41: Oil_Gas | C41: BPCL | D41: 462.35 | E41: 460.20 | F41: 444.55 | G41: 426.75 | H41: 411.10 | I41: 478.00 | J41: 493.65 | K41: 511.45 | L41: 475.85 | M41: 442.4 | N41: 26109000 | O41: 3.61%
A42: 32 | B42: FMCG | C42: BRITANNIA | D42: 3088.35 | E42: 3085.15 | F42: 3055.55 | G42: 3022.75 | H42: 2993.15 | I42: 3117.95 | J42: 3147.55 | K42: 3180.35 | L42: 3114.75 | M42: 3052.35 | N42: 2416200 | O42: -1.36%
A43: 33 | B43: Technology | C43: BSOFT | D43: 74.00 | E43: 73.62 | F43: 72.43 | G43: 70.87 | H43: 69.68 | I43: 75.18 | J43: 76.37 | K43: 77.93 | L43: 74.8 | M43: 72.05 | N43: 2463300 | O43: -11.21%
A44: 34 | B44: Pharma | C44: CADILAHC | D44: 254.30 | E44: 251.10 | F44: 246.30 | G44: 238.30 | H44: 233.50 | I44: 259.10 | J44: 263.90 | K44: 271.90 | L44: 255.9 | M44: 243.1 | N44: 10945600 | O44: 3.48%
A45: 35 | B45: Banking | C45: CANBK | D45: 203.60 | E45: 205.00 | F45: 199.75 | G45: 195.90 | H45: 190.65 | I45: 208.85 | J45: 214.10 | K45: 217.95 | L45: 210.25 | M45: 201.15 | N45: 12500000 | O45: -0.81%
A46: 36 | B46: Oil_Gas | C46: CASTROLIND | D46: 133.70 | E46: 133.63 | F46: 131.57 | G46: 129.43 | H46: 127.37 | I46: 135.77 | J46: 137.83 | K46: 139.97 | L46: 135.7 | M46: 131.5 | N46: 7014200 | O46: 4.30%
A47: 37 | B47: Textile | C47: CENTURYTEX | D47: 958.75 | E47: 959.58 | F47: 945.17 | G47: 931.58 | H47: 917.17 | I47: 973.17 | J47: 987.58 | K47: 1001.17 | L47: 974 | M47: 946 | N47: 3414600 | O47: -1.22%
A48: 38 | B48: Power | C48: CESC | D48: 791.70 | E48: 800.28 | F48: 774.67 | G48: 757.63 | H48: 732.02 | I48: 817.32 | J48: 842.93 | K48: 859.97 | L48: 825.9 | M48: 783.25 | N48: 1579200 | O48: 14.77%
A49: 39 | B49: Finance | C49: CHOLAFIN | D49: 303.90 | E49: 304.48 | F49: 295.47 | G49: 287.03 | H49: 278.02 | I49: 312.92 | J49: 321.93 | K49: 330.37 | L49: 313.5 | M49: 296.05 | N49: 4177500 | O49: 2.58%
A50: 40 | B50: Pharma | C50: CIPLA | D50: 450.75 | E50: 451.07 | F50: 446.13 | G50: 441.52 | H50: 436.58 | I50: 455.68 | J50: 460.62 | K50: 465.23 | L50: 456 | M50: 446.45 | N50: 12133000 | O50: -0.42%
A51: 41 | B51: Others | C51: COALINDIA | D51: 198.80 | E51: 200.78 | F51: 195.67 | G51: 192.53 | H51: 187.42 | I51: 203.92 | J51: 209.03 | K51: 212.17 | L51: 205.9 | M51: 197.65 | N51: 40845200 | O51: 1.71%
A52: 42 | B52: FMCG | C52: COLPAL | D52: 1520.65 | E52: 1524.63 | F52: 1502.92 | G52: 1485.18 | H52: 1463.47 | I52: 1542.37 | J52: 1564.08 | K52: 1581.82 | L52: 1546.35 | M52: 1506.9 | N52: 1562400 | O52: -5.94%
A53: 43 | B53: Others | C53: CONCOR | D53: 583.05 | E53: 583.65 | F53: 575.30 | G53: 567.55 | H53: 559.20 | I53: 591.40 | J53: 599.75 | K53: 607.50 | L53: 592 | M53: 575.9 | N53: 4746831 | O53: 11.37%
A54: 44 | B54: Capital_Goods | C54: CUMMINSIND | D54: 607.05 | E54: 611.73 | F54: 595.47 | G54: 583.88 | H54: 567.62 | I54: 623.32 | J54: 639.58 | K54: 651.17 | L54: 628 | M54: 600.15 | N54: 1833300 | O54: -6.50%
A55: 45 | B55: FMCG | C55: DABUR | D55: 452.40 | E55: 447.62 | F55: 441.78 | G55: 431.17 | H55: 425.33 | I55: 458.23 | J55: 464.07 | K55: 474.68 | L55: 453.45 | M55: 437 | N55: 11947500 | O55: 0.64%
A56: 46 | B56: Finance | C56: DHFL | D56: 45.10 | E56: 44.33 | F56: 42.57 | G56: 40.03 | H56: 38.27 | I56: 46.87 | J56: 48.63 | K56: 51.17 | L56: 46.1 | M56: 41.8 | N56: 8068000 | O56: -14.35%
A57: 47 | B57: Media | C57: DISHTV | D57: 21.55 | E57: 21.38 | F57: 20.22 | G57: 18.88 | H57: 17.72 | I57: 22.72 | J57: 23.88 | K57: 25.22 | L57: 22.55 | M57: 20.05 | N57: 121534000 | O57: 6.19%
A58: 48 | B58: Pharma | C58: DIVISLAB | D58: 1636.40 | E58: 1623.77 | F58: 1600.13 | G58: 1563.87 | H58: 1540.23 | I58: 1660.03 | J58: 1683.67 | K58: 1719.93 | L58: 1647.4 | M58: 1587.5 | N58: 2558000 | O58: 0.98%
A59: 49 | B59: Realty | C59: DLF | D59: 167.65 | E59: 168.20 | F59: 164.80 | G59: 161.95 | H59: 158.55 | I59: 171.05 | J59: 174.45 | K59: 177.30 | L59: 171.6 | M59: 165.35 | N59: 46471600 | O59: -1.55%
A60: 50 | B60: Pharma | C60: DRREDDY | D60: 2791.65 | E60: 2780.28 | F60: 2711.67 | G60: 2631.68 | H60: 2563.07 | I60: 2860.27 | J60: 2928.88 | K60: 3008.87 | L60: 2848.9 | M60: 2700.3 | N60: 3868500 | O60: 3.23%
A61: 51 | B61: Automobile | C61: EICHERMOT | D61: 18507.55 | E61: 18674.35 | F61: 17807.95 | G61: 17108.35 | H61: 16241.95 | I61: 19373.95 | J61: 20240.35 | K61: 20939.95 | L61: 19540.75 | M61: 17974.75 | N61: 370425 | O61: 1.04%
A62: 52 | B62: Infrastructure | C62: ENGINERSIN | D62: 112.25 | E62: 113.67 | F62: 109.23 | G62: 106.22 | H62: 101.78 | I62: 116.68 | J62: 121.12 | K62: 124.13 | L62: 118.1 | M62: 110.65 | N62: 2898000 | O62: -34.24%
A63: 53 | B63: Finance | C63: EQUITAS | D63: 103.80 | E63: 103.00 | F63: 101.30 | G63: 98.80 | H63: 97.10 | I63: 105.50 | J63: 107.20 | K63: 109.70 | L63: 104.7 | M63: 100.5 | N63: 15652000 | O63: -10.00%
A64: 54 | B64: Automobile | C64: ESCORTS | D64: 607.15 | E64: 612.85 | F64: 597.10 | G64: 587.05 | H64: 571.30 | I64: 622.90 | J64: 638.65 | K64: 648.70 | L64: 628.6 | M64: 602.8 | N64: 4478100 | O64: -0.56%
A65: 55 | B65: Automobile | C65: EXIDEIND | D65: 197.75 | E65: 200.73 | F65: 193.47 | G65: 189.18 | H65: 181.92 | I65: 205.02 | J65: 212.28 | K65: 216.57 | L65: 208 | M65: 196.45 | N65: 9700800 | O65: 3.01%
A66: 56 | B66: Banking | C66: FEDERALBNK | D66: 94.40 | E66: 95.12 | F66: 93.08 | G66: 91.77 | H66: 89.73 | I66: 96.43 | J66: 98.47 | K66: 99.78 | L66: 97.15 | M66: 93.8 | N66: 50631000 | O66: 4.49%
A67: 57 | B67: Oil_Gas | C67: GAIL | D67: 139.60 | E67: 139.67 | F67: 136.58 | G67: 133.57 | H67: 130.48 | I67: 142.68 | J67: 145.77 | K67: 148.78 | L67: 142.75 | M67: 136.65 | N67: 48939450 | O67: -1.13%
A68: 58 | B68: Pharma | C68: GLENMARK | D68: 349.65 | E68: 351.67 | F68: 346.93 | G68: 344.22 | H68: 339.48 | I68: 354.38 | J68: 359.12 | K68: 361.83 | L68: 356.4 | M68: 348.95 | N68: 5873000 | O68: -6.70%
A69: 59 | B69: Infrastructure | C69: GMRINFRA | D69: 17.20 | E69: 17.07 | F69: 16.73 | G69: 16.27 | H69: 15.93 | I69: 17.53 | J69: 17.87 | K69: 18.33 | L69: 17.4 | M69: 16.6 | N69: 169380000 | O69: 1.32%
A70: 60 | B70: FMCG | C70: GODREJCP | D70: 666.60 | E70: 666.17 | F70: 657.98 | G70: 649.37 | H70: 641.18 | I70: 674.78 | J70: 682.97 | K70: 691.58 | L70: 674.35 | M70: 657.55 | N70: 5960800 | O70: 2.46%
A71: 61 | B71: Cement | C71: GRASIM | D71: 750.75 | E71: 752.82 | F71: 739.18 | G71: 727.62 | H71: 713.98 | I71: 764.38 | J71: 778.02 | K71: 789.58 | L71: 766.45 | M71: 741.25 | N71: 16566000 | O71: -0.81%
A72: 62 | B72: Others | C72: HAVELLS | D72: 757.65 | E72: 746.77 | F72: 727.58 | G72: 697.52 | H72: 678.33 | I72: 776.83 | J72: 796.02 | K72: 826.08 | L72: 765.95 | M72: 716.7 | N72: 5518000 | O72: -2.75%
A73: 63 | B73: Technology | C73: HCLTECH | D73: 1049.90 | E73: 1042.42 | F73: 1031.18 | G73: 1012.47 | H73: 1001.23 | I73: 1061.13 | J73: 1072.37 | K73: 1091.08 | L73: 1053.65 | M73: 1023.7 | N73: 11112500 | O73: 1.27%
A74: 64 | B74: Finance | C74: HDFC | D74: 2135.95 | E74: 2147.88 | F74: 2109.67 | G74: 2083.38 | H74: 2045.17 | I74: 2174.17 | J74: 2212.38 | K74: 2238.67 | L74: 2186.1 | M74: 2121.6 | N74: 36862000 | O74: -0.41%
A75: 65 | B75: Banking | C75: HDFCBANK | D75: 1258.05 | E75: 1251.35 | F75: 1237.25 | G75: 1216.45 | H75: 1202.35 | I75: 1272.15 | J75: 1286.25 | K75: 1307.05 | L75: 1265.45 | M75: 1230.55 | N75: 35641000 | O75: 3.48%
A76: 66 | B76: Automobile | C76: HEROMOTOCO | D76: 2766.25 | E76: 2782.10 | F76: 2714.45 | G76: 2662.65 | H76: 2595.00 | I76: 2833.90 | J76: 2901.55 | K76: 2953.35 | L76: 2849.75 | M76: 2730.3 | N76: 2940200 | O76: -0.12%
A77: 67 | B77: Technology | C77: HEXAWARE | D77: 389.05 | E77: 384.30 | F77: 374.95 | G77: 360.85 | H77: 351.50 | I77: 398.40 | J77: 407.75 | K77: 421.85 | L77: 393.65 | M77: 370.2 | N77: 2761500 | O77: -16.39%
A78: 68 | B78: Metals | C78: HINDALCO | D78: 198.45 | E78: 199.13 | F78: 195.62 | G78: 192.78 | H78: 189.27 | I78: 201.97 | J78: 205.48 | K78: 208.32 | L78: 202.65 | M78: 196.3 | N78: 32609500 | O78: -0.93%
A79: 69 | B79: Oil_Gas | C79: HINDPETRO | D79: 283.65 | E79: 287.30 | F79: 277.00 | G79: 270.35 | H79: 260.05 | I79: 293.95 | J79: 304.25 | K79: 310.90 | L79: 297.6 | M79: 280.65 | N79: 21798000 | O79: 3.38%
A80: 70 | B80: FMCG | C80: HINDUNILVR | D80: 2056.75 | E80: 2048.33 | F80: 2023.42 | G80: 1990.08 | H80: 1965.17 | I80: 2081.67 | J80: 2106.58 | K80: 2139.92 | L80: 2073.25 | M80: 2015 | N80: 10080900 | O80: -4.01%
A81: 71 | B81: Metals | C81: HINDZINC | D81: 210.85 | E81: 211.68 | F81: 208.57 | G81: 206.28 | H81: 203.17 | I81: 213.97 | J81: 217.08 | K81: 219.37 | L81: 214.8 | M81: 209.4 | N81: 3296000 | O81: -4.72%
A82: 72 | B82: Finance | C82: IBULHSGFIN | D82: 434.60 | E82: 433.75 | F82: 426.95 | G82: 419.30 | H82: 412.50 | I82: 441.40 | J82: 448.20 | K82: 455.85 | L82: 440.55 | M82: 426.1 | N82: 22956800 | O82: -3.47%
A83: 73 | B83: Banking | C83: ICICIBANK | D83: 442.10 | E83: 441.77 | F83: 434.53 | G83: 426.97 | H83: 419.73 | I83: 449.33 | J83: 456.57 | K83: 464.13 | L83: 449 | M83: 434.2 | N83: 90828375 | O83: 5.40%
A84: 74 | B84: Finance | C84: ICICIPRULI | D84: 428.75 | E84: 426.82 | F84: 420.88 | G84: 413.02 | H84: 407.08 | I84: 434.68 | J84: 440.62 | K84: 448.48 | L84: 432.75 | M84: 418.95 | N84: 6001500 | O84: -1.48%
A85: 75 | B85: Banking | C85: IDBI | D85: 34.25 | E85: 33.02 | F85: 31.58 | G85: 28.92 | H85: 27.48 | I85: 35.68 | J85: 37.12 | K85: 39.78 | L85: 34.45 | M85: 30.35 | N85: 11580000 | O85: -25.54%
A86: 76 | B86: Telecom | C86: IDEA | D86: 5.60 | E86: 5.55 | F86: 5.35 | G86: 5.10 | H86: 4.90 | I86: 5.80 | J86: 6.00 | K86: 6.25 | L86: 5.75 | M86: 5.3 | N86: 571564000 | O86: 1.16%
A87: 77 | B87: Banking | C87: IDFCFIRSTB | D87: 42.90 | E87: 43.17 | F87: 42.48 | G87: 42.07 | H87: 41.38 | I87: 43.58 | J87: 44.27 | K87: 44.68 | L87: 43.85 | M87: 42.75 | N87: 187080000 | O87: -3.07%
A88: 78 | B88: Oil_Gas | C88: IGL | D88: 362.30 | E88: 363.97 | F88: 355.93 | G88: 349.57 | H88: 341.53 | I88: 370.33 | J88: 378.37 | K88: 384.73 | L88: 372 | M88: 357.6 | N88: 3734500 | O88: -2.30%
A89: 79 | B89: Others | C89: INDIGO | D89: 1816.55 | E89: 1811.95 | F89: 1793.70 | G89: 1770.85 | H89: 1752.60 | I89: 1834.80 | J89: 1853.05 | K89: 1875.90 | L89: 1830.2 | M89: 1789.1 | N89: 3302400 | O89: 6.13%
A90: 80 | B90: Banking | C90: INDUSINDBK | D90: 1517.20 | E90: 1514.80 | F90: 1500.20 | G90: 1483.20 | H90: 1468.60 | I90: 1531.80 | J90: 1546.40 | K90: 1563.40 | L90: 1529.4 | M90: 1497.8 | N90: 13924400 | O90: 2.56%
A91: 81 | B91: Telecom | C91: INFRATEL | D91: 258.00 | E91: 260.48 | F91: 252.97 | G91: 247.93 | H91: 240.42 | I91: 265.52 | J91: 273.03 | K91: 278.07 | L91: 268 | M91: 255.45 | N91: 8806000 | O91: -0.83%
A92: 82 | B92: Technology | C92: INFY | D92: 795.25 | E92: 787.35 | F92: 774.70 | G92: 754.15 | H92: 741.50 | I92: 807.90 | J92: 820.55 | K92: 841.10 | L92: 800 | M92: 766.8 | N92: 61773600 | O92: 2.20%
A93: 83 | B93: Oil_Gas | C93: IOC | D93: 139.15 | E93: 139.50 | F93: 136.70 | G93: 134.25 | H93: 131.45 | I93: 141.95 | J93: 144.75 | K93: 147.20 | L93: 142.3 | M93: 137.05 | N93: 48716500 | O93: -0.27%
A94: 84 | B94: FMCG | C94: ITC | D94: 255.85 | E94: 255.95 | F94: 253.75 | G94: 251.65 | H94: 249.45 | I94: 258.05 | J94: 260.25 | K94: 262.35 | L94: 258.15 | M94: 253.85 | N94: 121111200 | O94: -0.79%
A95: 85 | B95: Metals | C95: JINDALSTEL | D95: 107.45 | E95: 108.75 | F95: 105.40 | G95: 103.35 | H95: 100.00 | I95: 110.80 | J95: 114.15 | K95: 116.20 | L95: 112.1 | M95: 106.7 | N95: 38649600 | O95: -1.88%
A96: 86 | B96: Metals | C96: JSWSTEEL | D96: 234.20 | E96: 236.52 | F96: 230.83 | G96: 227.47 | H96: 221.78 | I96: 239.88 | J96: 245.57 | K96: 248.93 | L96: 242.2 | M96: 233.15 | N96: 59452000 | O96: 0.66%
A97: 87 | B97: Others | C97: JUBLFOOD | D97: 1459.60 | E97: 1449.67 | F97: 1434.53 | G97: 1409.47 | H97: 1394.33 | I97: 1474.73 | J97: 1489.87 | K97: 1514.93 | L97: 1464.8 | M97: 1424.6 | N97: 3296500 | O97: 0.30%
A98: 88 | B98: Others | C98: JUSTDIAL | D98: 705.40 | E98: 701.93 | F98: 694.97 | G98: 684.53 | H98: 677.57 | I98: 712.37 | J98: 719.33 | K98: 729.77 | L98: 708.9 | M98: 691.5 | N98: 2273600 | O98: -2.75%
A99: 89 | B99: Others | C99: KAJARIACER | D99: 593.95 | E99: 590.12 | F99: 578.88 | G99: 563.82 | H99: 552.58 | I99: 605.18 | J99: 616.42 | K99: 631.48 | L99: 601.35 | M99: 575.05 | N99: 369200 | O99: -23.86%
A100: 90 | B100: Banking | C100: KOTAKBANK | D100: 1621.35 | E100: 1618.93 | F100: 1594.97 | G100: 1568.58 | H100: 1544.62 | I100: 1645.32 | J100: 1669.28 | K100: 1695.67 | L100: 1642.9 | M100: 1592.55 | N100: 8797200 | O100: -4.80%
A101: 91 | B101: Finance | C101: L&TFH | D101: 97.35 | E101: 98.47 | F101: 95.58 | G101: 93.82 | H101: 90.93 | I101: 100.23 | J101: 103.12 | K101: 104.88 | L101: 101.35 | M101: 96.7 | N101: 38308500 | O101: -1.66%
A102: 92 | B102: Finance | C102: LICHSGFIN | D102: 419.20 | E102: 420.70 | F102: 413.20 | G102: 407.20 | H102: 399.70 | I102: 426.70 | J102: 434.20 | K102: 440.20 | L102: 428.2 | M102: 414.7 | N102: 11396000 | O102: -3.11%
A103: 93 | B103: Capital_Goods | C103: LT | D103: 1483.55 | E103: 1495.35 | F103: 1465.75 | G103: 1447.95 | H103: 1418.35 | I103: 1513.15 | J103: 1542.75 | K103: 1560.55 | L103: 1524.95 | M103: 1477.55 | N103: 13947750 | O103: 2.20%
A104: 94 | B104: Pharma | C104: LUPIN | D104: 741.80 | E104: 740.62 | F104: 733.03 | G104: 724.27 | H104: 716.68 | I104: 749.38 | J104: 756.97 | K104: 765.73 | L104: 748.2 | M104: 731.85 | N104: 7618100 | O104: -3.48%
A105: 95 | B105: Automobile | C105: M&M | D105: 560.45 | E105: 564.23 | F105: 552.27 | G105: 544.08 | H105: 532.12 | I105: 572.42 | J105: 584.38 | K105: 592.57 | L105: 576.2 | M105: 556.05 | N105: 22158000 | O105: 0.98%
A106: 96 | B106: Finance | C106: M&MFIN | D106: 343.70 | E106: 349.15 | F106: 331.95 | G106: 320.20 | H106: 303.00 | I106: 360.90 | J106: 378.10 | K106: 389.85 | L106: 366.35 | M106: 337.4 | N106: 14353750 | O106: 6.31%
A107: 97 | B107: Finance | C107: MANAPPURAM | D107: 137.15 | E107: 136.40 | F107: 134.55 | G107: 131.95 | H107: 130.10 | I107: 139.00 | J107: 140.85 | K107: 143.45 | L107: 138.25 | M107: 133.8 | N107: 14622000 | O107: 2.05%
A108: 98 | B108: FMCG | C108: MARICO | D108: 396.00 | E108: 392.67 | F108: 386.33 | G108: 376.67 | H108: 370.33 | I108: 402.33 | J108: 408.67 | K108: 418.33 | L108: 399 | M108: 383 | N108: 13275600 | O108: -4.17%
A109: 99 | B109: Automobile | C109: MARUTI | D109: 7028.90 | E109: 7015.30 | F109: 6863.70 | G109: 6698.50 | H109: 6546.90 | I109: 7180.50 | J109: 7332.10 | K109: 7497.30 | L109: 7166.9 | M109: 6850.1 | N109: 2672550 | O109: -1.66%
A110: 100 | B110: FMCG | C110: MCDOWELL-N | D110: 651.65 | E110: 650.07 | F110: 646.28 | G110: 640.92 | H110: 637.13 | I110: 655.43 | J110: 659.22 | K110: 664.58 | L110: 653.85 | M110: 644.7 | N110: 11492500 | O110: 0.79%
A111: 101 | B111: Others | C111: MCX | D111: 994.95 | E111: 995.02 | F111: 956.73 | G111: 918.52 | H111: 880.23 | I111: 1033.23 | J111: 1071.52 | K111: 1109.73 | L111: 1033.3 | M111: 956.8 | N111: 930300 | O111: -5.61%
A112: 102 | B112: Finance | C112: MFSL | D112: 415.60 | E112: 414.05 | F112: 407.55 | G112: 399.50 | H112: 393.00 | I112: 422.10 | J112: 428.60 | K112: 436.65 | L112: 420.55 | M112: 406 | N112: 2950800 | O112: -5.31%
A113: 103 | B113: Oil_Gas | C113: MGL | D113: 910.90 | E113: 913.27 | F113: 886.03 | G113: 861.17 | H113: 833.93 | I113: 938.13 | J113: 965.37 | K113: 990.23 | L113: 940.5 | M113: 888.4 | N113: 2158200 | O113: 0.78%
A114: 104 | B114: Technology | C114: MINDTREE | D114: 720.60 | E114: 722.18 | F114: 713.22 | G114: 705.83 | H114: 696.87 | I114: 729.57 | J114: 738.53 | K114: 745.92 | L114: 731.15 | M114: 714.8 | N114: 1589400 | O114: -4.61%
A115: 105 | B115: Automobile | C115: MOTHERSUMI | D115: 115.65 | E115: 115.90 | F115: 113.50 | G115: 111.35 | H115: 108.95 | I115: 118.05 | J115: 120.45 | K115: 122.60 | L115: 118.3 | M115: 113.75 | N115: 28703400 | O115: -2.55%
A116: 106 | B116: Automobile | C116: MRF | D116: 66098.90 | E116: 66210.17 | F116: 65520.33 | G116: 64941.77 | H116: 64251.93 | I116: 66788.73 | J116: 67478.57 | K116: 68057.13 | L116: 66900 | M116: 65631.6 | N116: 19960 | O116: 14.78%
A117: 107 | B117: Finance | C117: MUTHOOTFIN | D117: 689.60 | E117: 678.08 | F117: 659.82 | G117: 630.03 | H117: 611.77 | I117: 707.87 | J117: 726.13 | K117: 755.92 | L117: 696.35 | M117: 648.3 | N117: 2244000 | O117: 3.82%
A118: 108 | B118: Metals | C118: NATIONALUM | D118: 46.75 | E118: 47.27 | F118: 46.03 | G118: 45.32 | H118: 44.08 | I118: 47.98 | J118: 49.22 | K118: 49.93 | L118: 48.5 | M118: 46.55 | N118: 32560000 | O118: -2.40%
A119: 109 | B119: Infrastructure | C119: NBCC | D119: 39.35 | E119: 39.33 | F119: 38.52 | G119: 37.68 | H119: 36.87 | I119: 40.17 | J119: 40.98 | K119: 41.82 | L119: 40.15 | M119: 38.5 | N119: 32300000 | O119: -2.46%
A120: 110 | B120: Infrastructure | C120: NCC | D120: 64.90 | E120: 66.12 | F120: 63.28 | G120: 61.67 | H120: 58.83 | I120: 67.73 | J120: 70.57 | K120: 72.18 | L120: 68.95 | M120: 64.5 | N120: 48240000 | O120: -0.05%
A121: 111 | B121: FMCG | C121: NESTLEIND | D121: 13470.60 | E121: 13526.70 | F121: 13308.75 | G121: 13146.90 | H121: 12928.95 | I121: 13688.55 | J121: 13906.50 | K121: 14068.35 | L121: 13744.65 | M121: 13364.85 | N121: 482000 | O121: 1.10%
A122: 112 | B122: Technology | C122: NIITTECH | D122: 1427.50 | E122: 1427.88 | F122: 1400.62 | G122: 1373.73 | H122: 1346.47 | I122: 1454.77 | J122: 1482.03 | K122: 1508.92 | L122: 1455.15 | M122: 1401 | N122: 830250 | O122: -4.65%
A123: 113 | B123: Metals | C123: NMDC | D123: 89.55 | E123: 90.17 | F123: 88.33 | G123: 87.12 | H123: 85.28 | I123: 91.38 | J123: 93.22 | K123: 94.43 | L123: 92 | M123: 88.95 | N123: 26760000 | O123: 0.47%
A124: 114 | B124: Power | C124: NTPC | D124: 115.60 | E124: 115.70 | F124: 114.30 | G124: 113.00 | H124: 111.60 | I124: 117.00 | J124: 118.40 | K124: 119.70 | L124: 117.1 | M124: 114.4 | N124: 75062400 | O124: 5.86%
A125: 115 | B125: Technology | C125: OFSS | D125: 2941.00 | E125: 2965.35 | F125: 2904.15 | G125: 2867.30 | H125: 2806.10 | I125: 3002.20 | J125: 3063.40 | K125: 3100.25 | L125: 3026.55 | M125: 2928.5 | N125: 79950 | O125: -11.61%
A126: 116 | B126: Oil_Gas | C126: OIL | D126: 148.40 | E126: 149.95 | F126: 145.95 | G126: 143.50 | H126: 139.50 | I126: 152.40 | J126: 156.40 | K126: 158.85 | L126: 153.95 | M126: 147.5 | N126: 10370349 | O126: 4.24%
A127: 117 | B127: Oil_Gas | C127: ONGC | D127: 133.95 | E127: 135.38 | F127: 131.17 | G127: 128.38 | H127: 124.17 | I127: 138.17 | J127: 142.38 | K127: 145.17 | L127: 139.6 | M127: 132.6 | N127: 65028750 | O127: -2.17%
A128: 118 | B128: Textile | C128: PAGEIND | D128: 23333.50 | E128: 23494.48 | F128: 22789.02 | G128: 22244.53 | H128: 21539.07 | I128: 24038.97 | J128: 24744.43 | K128: 25288.92 | L128: 24199.95 | M128: 22950 | N128: 216700 | O128: -0.58%
A129: 119 | B129: Pharma | C129: PEL | D129: 1853.00 | E129: 1850.95 | F129: 1810.00 | G129: 1767.00 | H129: 1726.05 | I129: 1893.95 | J129: 1934.90 | K129: 1977.90 | L129: 1891.9 | M129: 1807.95 | N129: 4644760 | O129: -0.65%
A130: 120 | B130: Oil_Gas | C130: PETRONET | D130: 257.00 | E130: 258.83 | F130: 251.97 | G130: 246.93 | H130: 240.07 | I130: 263.87 | J130: 270.73 | K130: 275.77 | L130: 265.7 | M130: 253.8 | N130: 23115000 | O130: 4.64%
A131: 121 | B131: Finance | C131: PFC | D131: 104.30 | E131: 104.62 | F131: 102.33 | G131: 100.37 | H131: 98.08 | I131: 106.58 | J131: 108.87 | K131: 110.83 | L131: 106.9 | M131: 102.65 | N131: 46816200 | O131: 7.41%
A132: 122 | B132: FMCG | C132: PIDILITIND | D132: 1461.10 | E132: 1469.02 | F132: 1444.58 | G132: 1428.07 | H132: 1403.63 | I132: 1485.53 | J132: 1509.97 | K132: 1526.48 | L132: 1493.45 | M132: 1452.5 | N132: 2824000 | O132: -1.84%
A133: 123 | B133: Banking | C133: PNB | D133: 66.35 | E133: 66.35 | F133: 65.55 | G133: 64.75 | H133: 63.95 | I133: 67.15 | J133: 67.95 | K133: 68.75 | L133: 67.15 | M133: 65.55 | N133: 102263000 | O133: 2.56%
A134: 124 | B134: Power | C134: POWERGRID | D134: 190.75 | E134: 189.38 | F134: 186.77 | G134: 182.78 | H134: 180.17 | I134: 193.37 | J134: 195.98 | K134: 199.97 | L134: 192 | M134: 185.4 | N134: 37464000 | O134: -0.21%
A135: 125 | B135: Media | C135: PVR | D135: 1862.60 | E135: 1850.58 | F135: 1808.12 | G135: 1753.63 | H135: 1711.17 | I135: 1905.07 | J135: 1947.53 | K135: 2002.02 | L135: 1893.05 | M135: 1796.1 | N135: 1120000 | O135: -8.85%
A136: 126 | B136: Cement | C136: RAMCOCEM | D136: 767.00 | E136: 771.65 | F136: 755.35 | G136: 743.70 | H136: 727.40 | I136: 783.30 | J136: 799.60 | K136: 811.25 | L136: 787.95 | M136: 760 | N136: 1505600 | O136: -3.24%
A137: 127 | B137: Textile | C137: RAYMOND | D137: 591.20 | E137: 585.23 | F137: 576.47 | G137: 561.73 | H137: 552.97 | I137: 599.97 | J137: 608.73 | K137: 623.47 | L137: 594 | M137: 570.5 | N137: 881600 | O137: -21.95%
A138: 128 | B138: Banking | C138: RBLBANK | D138: 401.10 | E138: 397.37 | F138: 386.73 | G138: 372.37 | H138: 361.73 | I138: 411.73 | J138: 422.37 | K138: 436.73 | L138: 408 | M138: 383 | N138: 12736800 | O138: -5.50%
A139: 129 | B139: Power | C139: RECLTD | D139: 129.15 | E139: 129.65 | F139: 126.85 | G139: 124.55 | H139: 121.75 | I139: 131.95 | J139: 134.75 | K139: 137.05 | L139: 132.45 | M139: 127.35 | N139: 33708000 | O139: 5.88%
A140: 130 | B140: Finance | C140: RELCAPITAL | D140: 30.60 | E140: 29.98 | F140: 28.67 | G140: 26.73 | H140: 25.42 | I140: 31.92 | J140: 33.23 | K140: 35.17 | L140: 31.3 | M140: 28.05 | N140: 6558000 | O140: -18.95%
A141: 131 | B141: Oil_Gas | C141: RELIANCE | D141: 1282.90 | E141: 1275.82 | F141: 1250.13 | G141: 1217.37 | H141: 1191.68 | I141: 1308.58 | J141: 1334.27 | K141: 1367.03 | L141: 1301.5 | M141: 1243.05 | N141: 58726000 | O141: -1.68%
A142: 132 | B142: Power | C142: RELINFRA | D142: 36.75 | E142: 36.70 | F142: 35.65 | G142: 34.55 | H142: 33.50 | I142: 37.80 | J142: 38.85 | K142: 39.95 | L142: 37.75 | M142: 35.6 | N142: 7824000 | O142: -2.78%
A143: 133 | B143: Metals | C143: SAIL | D143: 34.40 | E143: 34.48 | F143: 34.07 | G143: 33.73 | H143: 33.32 | I143: 34.82 | J143: 35.23 | K143: 35.57 | L143: 34.9 | M143: 34.15 | N143: 93204000 | O143: -1.82%
A144: 134 | B144: Banking | C144: SBIN | D144: 303.00 | E144: 306.43 | F144: 298.17 | G144: 293.33 | H144: 285.07 | I144: 311.27 | J144: 319.53 | K144: 324.37 | L144: 314.7 | M144: 301.6 | N144: 98034000 | O144: 2.00%
A145: 135 | B145: Cement | C145: SHREECEM | D145: 19917.80 | E145: 19935.15 | F145: 19650.40 | G145: 19383.00 | H145: 19098.25 | I145: 20202.55 | J145: 20487.30 | K145: 20754.70 | L145: 20219.9 | M145: 19667.75 | N145: 179200 | O145: -0.06%
A146: 136 | B146: Capital_Goods | C146: SIEMENS | D146: 1440.10 | E146: 1452.47 | F146: 1410.43 | G146: 1380.77 | H146: 1338.73 | I146: 1482.13 | J146: 1524.17 | K146: 1553.83 | L146: 1494.5 | M146: 1422.8 | N146: 1318900 | O146: 5.83%
A147: 137 | B147: Textile | C147: SRF | D147: 2892.45 | E147: 2917.30 | F147: 2856.65 | G147: 2820.85 | H147: 2760.20 | I147: 2953.10 | J147: 3013.75 | K147: 3049.55 | L147: 2977.95 | M147: 2881.5 | N147: 950000 | O147: 7.19%
A148: 138 | B148: Finance | C148: SRTRANSFIN | D148: 1163.20 | E148: 1155.68 | F148: 1141.37 | G148: 1119.53 | H148: 1105.22 | I148: 1177.52 | J148: 1191.83 | K148: 1213.67 | L148: 1170 | M148: 1133.85 | N148: 4131000 | O148: -0.33%
A149: 139 | B149: Pharma | C149: STAR | D149: 348.20 | E149: 352.68 | F149: 336.32 | G149: 324.43 | H149: 308.07 | I149: 364.57 | J149: 380.93 | K149: 392.82 | L149: 369.05 | M149: 340.8 | N149: 2634000 | O149: 6.66%
A150: 140 | B150: Pharma | C150: SUNPHARMA | D150: 410.95 | E150: 412.77 | F150: 405.23 | G150: 399.52 | H150: 391.98 | I150: 418.48 | J150: 426.02 | K150: 431.73 | L150: 420.3 | M150: 407.05 | N150: 58173500 | O150: 2.45%
A151: 141 | B151: Media | C151: SUNTV | D151: 474.50 | E151: 480.00 | F151: 464.75 | G151: 455.00 | H151: 439.75 | I151: 489.75 | J151: 505.00 | K151: 514.75 | L151: 495.25 | M151: 470.25 | N151: 5186000 | O151: 0.33%
A152: 142 | B152: Fertilisers | C152: TATACHEM | D152: 607.80 | E152: 611.02 | F152: 601.88 | G152: 595.97 | H152: 586.83 | I152: 616.93 | J152: 626.07 | K152: 631.98 | L152: 620.15 | M152: 605.1 | N152: 2052000 | O152: 0.13%
A153: 143 | B153: Technology | C153: TATAELXSI | D153: 685.65 | E153: 677.53 | F153: 653.52 | G153: 621.38 | H153: 597.37 | I153: 709.67 | J153: 733.68 | K153: 765.82 | L153: 701.55 | M153: 645.4 | N153: 2094000 | O153: 1.99%
A154: 144 | B154: FMCG | C154: TATAGLOBAL | D154: 275.75 | E154: 274.73 | F154: 272.47 | G154: 269.18 | H154: 266.92 | I154: 278.02 | J154: 280.28 | K154: 283.57 | L154: 277 | M154: 271.45 | N154: 9579600 | O154: -1.77%
A155: 145 | B155: Automobile | C155: TATAMOTORS | D155: 131.30 | E155: 130.52 | F155: 128.63 | G155: 125.97 | H155: 124.08 | I155: 133.18 | J155: 135.07 | K155: 137.73 | L155: 132.4 | M155: 127.85 | N155: 71175000 | O155: -7.06%
A156: 146 | B156: Automobile | C156: TATAMTRDVR | D156: 60.00 | E156: 59.95 | F156: 59.05 | G156: 58.10 | H156: 57.20 | I156: 60.90 | J156: 61.80 | K156: 62.75 | L156: 60.85 | M156: 59 | N156: 39774000 | O156: 1.64%
A157: 147 | B157: Power | C157: TATAPOWER | D157: 66.65 | E157: 66.62 | F157: 65.48 | G157: 64.32 | H157: 63.18 | I157: 67.78 | J157: 68.92 | K157: 70.08 | L157: 67.75 | M157: 65.45 | N157: 44847000 | O157: 0.44%
A158: 148 | B158: Metals | C158: TATASTEEL | D158: 370.45 | E158: 372.62 | F158: 365.93 | G158: 361.42 | H158: 354.73 | I158: 377.13 | J158: 383.82 | K158: 388.33 | L158: 379.3 | M158: 368.1 | N158: 33637944 | O158: -0.61%
A159: 149 | B159: Technology | C159: TCS | D159: 2052.50 | E159: 2045.10 | F159: 2023.45 | G159: 1994.40 | H159: 1972.75 | I159: 2074.15 | J159: 2095.80 | K159: 2124.85 | L159: 2066.75 | M159: 2016.05 | N159: 19413250 | O159: -1.85%
A160: 150 | B160: Technology | C160: TECHM | D160: 704.45 | E160: 698.25 | F160: 689.25 | G160: 674.05 | H160: 665.05 | I160: 713.45 | J160: 722.45 | K160: 737.65 | L160: 707.25 | M160: 683.05 | N160: 15229200 | O160: 0.85%
A161: 151 | B161: FMCG | C161: TITAN | D161: 1296.45 | E161: 1300.00 | F161: 1279.30 | G161: 1262.15 | H161: 1241.45 | I161: 1317.15 | J161: 1337.85 | K161: 1355.00 | L161: 1320.7 | M161: 1282.85 | N161: 9614250 | O161: 1.02%
A162: 152 | B162: Pharma | C162: TORNTPHARM | D162: 1693.85 | E162: 1699.95 | F162: 1681.25 | G162: 1668.65 | H162: 1649.95 | I162: 1712.55 | J162: 1731.25 | K162: 1743.85 | L162: 1718.65 | M162: 1687.35 | N162: 407500 | O162: 9.84%
A163: 153 | B163: Power | C163: TORNTPOWER | D163: 287.65 | E163: 288.05 | F163: 283.10 | G163: 278.55 | H163: 273.60 | I163: 292.60 | J163: 297.55 | K163: 302.10 | L163: 293 | M163: 283.5 | N163: 4797000 | O163: -4.76%
A164: 154 | B164: Automobile | C164: TVSMOTOR | D164: 418.70 | E164: 421.65 | F164: 411.80 | G164: 404.90 | H164: 395.05 | I164: 428.55 | J164: 438.40 | K164: 445.30 | L164: 431.5 | M164: 414.75 | N164: 6949800 | O164: 0.33%
A165: 155 | B165: FMCG | C165: UBL | D165: 1375.20 | E165: 1366.05 | F165: 1347.70 | G165: 1320.20 | H165: 1301.85 | I165: 1393.55 | J165: 1411.90 | K165: 1439.40 | L165: 1384.4 | M165: 1338.55 | N165: 1865500 | O165: -4.00%
A166: 156 | B166: Finance | C166: UJJIVAN | D166: 318.45 | E166: 318.18 | F166: 313.37 | G166: 308.28 | H166: 303.47 | I166: 323.27 | J166: 328.08 | K166: 333.17 | L166: 323 | M166: 313.1 | N166: 8131200 | O166: 1.90%
A167: 157 | B167: Cement | C167: ULTRACEMCO | D167: 4316.60 | E167: 4348.28 | F167: 4273.77 | G167: 4230.93 | H167: 4156.42 | I167: 4391.12 | J167: 4465.63 | K167: 4508.47 | L167: 4422.8 | M167: 4305.45 | N167: 2836000 | O167: 2.67%
A168: 158 | B168: Banking | C168: UNIONBANK | D168: 60.05 | E168: 60.27 | F168: 58.93 | G168: 57.82 | H168: 56.48 | I168: 61.38 | J168: 62.72 | K168: 63.83 | L168: 61.6 | M168: 59.15 | N168: 36911000 | O168: 1.46%
A169: 159 | B169: Fertilisers | C169: UPL | D169: 578.70 | E169: 577.62 | F169: 572.23 | G169: 565.77 | H169: 560.38 | I169: 584.08 | J169: 589.47 | K169: 595.93 | L169: 583 | M169: 571.15 | N169: 15723900 | O169: -3.44%
A170: 160 | B170: Metals | C170: VEDL | D170: 159.75 | E170: 159.48 | F170: 156.87 | G170: 153.98 | H170: 151.37 | I170: 162.37 | J170: 164.98 | K170: 167.87 | L170: 162.1 | M170: 156.6 | N170: 60237000 | O170: -1.33%
A171: 161 | B171: Capital_Goods | C171: VOLTAS | D171: 668.35 | E171: 669.72 | F171: 662.03 | G171: 655.72 | H171: 648.03 | I171: 676.03 | J171: 683.72 | K171: 690.03 | L171: 677.4 | M171: 663.4 | N171: 2049000 | O171: 7.33%
A172: 162 | B172: Technology | C172: WIPRO | D172: 241.30 | E172: 241.33 | F172: 239.47 | G172: 237.63 | H172: 235.77 | I172: 243.17 | J172: 245.03 | K172: 246.87 | L172: 243.2 | M172: 239.5 | N172: 30012800 | O172: -0.85%
A173: 163 | B173: Banking | C173: YESBANK | D173: 56.20 | E173: 55.87 | F173: 53.93 | G173: 51.67 | H173: 49.73 | I173: 58.13 | J173: 60.07 | K173: 62.33 | L173: 57.8 | M173: 53.6 | N173: 158602400 | O173: 1.00%
A174: 164 | B174: Media | C174: ZEEL | D174: 280.80 | E174: 275.08 | F174: 262.17 | G174: 243.53 | H174: 230.62 | I174: 293.72 | J174: 306.63 | K174: 325.27 | L174: 288 | M174: 256.45 | N174: 33202000 | O174: 32.41%
A190: Pivot Point: This is trigger point for intra day buy/sell based on the price range of the previous day
A191: As per the tool,the trader should take BUY position just above Pivot and keep the stop loss of pivot point and the first target would be Resistance 1(R1)
A192: If R1 is crossed then R2 becomes the next target with stop loss of at R1
A193: Similarly if price goes below pivot point then the trader should sell and keep a stop loss of pivot point and the first target would be S1
A194: If S1 is crossed then S2 becomes the next target with stop loss of at S1
A196: Disclaimer:
A197: This document has been prepared by the Retail Research Desk of Asit C Mehta
A198: Investment Intermediates Ltd. and is meant for use of the recipient only
A199: and is not for circulation. This document is not to be reported or
A200: copied or made available to others. It should not be considered to be
A201: taken as an offer to sell or a solicitation to buy any security. The
A202: information contained herein is from sources believed reliable. We do
A203: not represent that it is accurate or complete and it should not be
A204: relied upon as such. We may from time to time have positions in and buy
A205: and sell securities referred to herein

Sheet Cash Intra
M5: Back to Main Page
A6: FOR INTRA DAY TRADING | K6: =Main!B10 -> 2019-09-25
A8: Sr.no | B8: Scrip | C8: CLOSE RATE | D8: Pivot Point | E8: Supports | H8: Resistances
C9: Point | E9: S1 | F9: S2 | G9: S3 | H9: R1 | I9: R2 | J9: R3 | K9: HIGH | L9: LOW | M9: Total Trade Quanity in Lakhs
A10: 1 | B10: Nifty 50 | C10: 11588.2 | D10: 11594.15 | E10: 11533.25 | F10: 11478.30 | G10: 11417.40 | H10: 11649.10 | I10: 11710.00 | J10: 11764.95 | K10: 11655.05 | L10: 11539.2
A11: 2 | B11: Nifty Bank | C11: 30183.1 | D11: 30246.92 | E11: 29825.73 | F11: 29468.37 | G11: 29047.18 | H11: 30604.28 | I11: 31025.47 | J11: 31382.83 | K11: 30668.1 | L11: 29889.55
A12: 3 | B12: Nifty CPSE | C12: 1947.4 | D12: 1961.78 | E12: 1926.57 | F12: 1905.73 | G12: 1870.52 | H12: 1982.62 | I12: 2017.83 | J12: 2038.67 | K12: 1997 | L12: 1940.95
A13: 4 | B13: Nifty Infra | C13: 3175.25 | D13: 3183.98 | E13: 3158.37 | F13: 3141.48 | G13: 3115.87 | H13: 3200.87 | I13: 3226.48 | J13: 3243.37 | K13: 3209.6 | L13: 3167.1
A14: 5 | B14: Nifty IT | C14: 15338.65 | D14: 15258.02 | E14: 15135.68 | F14: 14932.72 | G14: 14810.38 | H14: 15460.98 | I14: 15583.32 | J14: 15786.28 | K14: 15380.35 | L14: 15055.05
A15: 6 | B15: Nifty PSE | C15: 3200.4 | D15: 3210.13 | E15: 3173.77 | F15: 3147.13 | G15: 3110.77 | H15: 3236.77 | I15: 3273.13 | J15: 3299.77 | K15: 3246.5 | L15: 3183.5
A16: 7 | B16: Nifty Midcap 50 | C16: 4554.95 | D16: 4568.17 | E16: 4512.83 | F16: 4470.72 | G16: 4415.38 | H16: 4610.28 | I16: 4665.62 | J16: 4707.73 | K16: 4623.5 | L16: 4526.05
A17: 8 | B17: ABB | C17: 1573.35 | D17: 1566.45 | E17: 1551.90 | F17: 1530.45 | G17: 1515.90 | H17: 1587.90 | I17: 1602.45 | J17: 1623.90 | K17: 1581 | L17: 1545 | M17: 1.37947
A18: 9 | B18: ACC | C18: 1650.8 | D18: 1648.27 | E18: 1624.53 | F18: 1598.27 | G18: 1574.53 | H18: 1674.53 | I18: 1698.27 | J18: 1724.53 | K18: 1672 | L18: 1622 | M18: 6.09163
A19: 10 | B19: AUBANK | C19: 669.95 | D19: 673.25 | E19: 656.70 | F19: 643.45 | G19: 626.90 | H19: 686.50 | I19: 703.05 | J19: 716.30 | K19: 689.8 | L19: 660 | M19: 1.74218
A20: 11 | B20: ADANIPORTS | C20: 413.85 | D20: 411.77 | E20: 406.03 | F20: 398.22 | G20: 392.48 | H20: 419.58 | I20: 425.32 | J20: 433.13 | K20: 417.5 | L20: 403.95 | M20: 31.12368
A21: 12 | B21: ADANIPOWER | C21: 67.6 | D21: 67.17 | E21: 66.13 | F21: 64.67 | G21: 63.63 | H21: 68.63 | I21: 69.67 | J21: 71.13 | K21: 68.2 | L21: 65.7 | M21: 204.51509
A22: 13 | B22: ABCAPITAL | C22: 90.85 | D22: 92.17 | E22: 89.33 | F22: 87.82 | G22: 84.98 | H22: 93.68 | I22: 96.52 | J22: 98.03 | K22: 95 | L22: 90.65 | M22: 13.94289
A23: 14 | B23: ABFRL | C23: 211.45 | D23: 211.33 | E23: 206.67 | F23: 201.88 | G23: 197.22 | H23: 216.12 | I23: 220.78 | J23: 225.57 | K23: 216 | L23: 206.55 | M23: 3.715
A24: 15 | B24: AJANTPHARM | C24: 1030.9 | D24: 1028.93 | E24: 1018.17 | F24: 1005.43 | G24: 994.67 | H24: 1041.67 | I24: 1052.43 | J24: 1065.17 | K24: 1039.7 | L24: 1016.2 | M24: 1.88817
A25: 16 | B25: ALKEM | C25: 1942.6 | D25: 1940.05 | E25: 1922.60 | F25: 1902.60 | G25: 1885.15 | H25: 1960.05 | I25: 1977.50 | J25: 1997.50 | K25: 1957.5 | L25: 1920.05 | M25: 0.25259
A26: 17 | B26: AMARAJABAT | C26: 728.15 | D26: 731.02 | E26: 717.33 | F26: 706.52 | G26: 692.83 | H26: 741.83 | I26: 755.52 | J26: 766.33 | K26: 744.7 | L26: 720.2 | M26: 10.35787
A27: 18 | B27: AMBUJACEM | C27: 215.75 | D27: 215.97 | E27: 212.48 | F27: 209.22 | G27: 205.73 | H27: 219.23 | I27: 222.72 | J27: 225.98 | K27: 219.45 | L27: 212.7 | M27: 27.01974
A28: 19 | B28: APOLLOHOSP | C28: 1453.1 | D28: 1458.23 | E28: 1428.07 | F28: 1403.03 | G28: 1372.87 | H28: 1483.27 | I28: 1513.43 | J28: 1538.47 | K28: 1488.4 | L28: 1433.2 | M28: 4.10553
A29: 20 | B29: APOLLOTYRE | C29: 186.25 | D29: 187.63 | E29: 183.87 | F29: 181.48 | G29: 177.72 | H29: 190.02 | I29: 193.78 | J29: 196.17 | K29: 191.4 | L29: 185.25 | M29: 18.78154
A30: 21 | B30: ASHOKLEY | C30: 75.15 | D30: 75.35 | E30: 73.10 | F30: 71.05 | G30: 68.80 | H30: 77.40 | I30: 79.65 | J30: 81.70 | K30: 77.6 | L30: 73.3 | M30: 636.35601
A31: 22 | B31: ASIANPAINT | C31: 1765.9 | D31: 1773.62 | E31: 1744.28 | F31: 1722.67 | G31: 1693.33 | H31: 1795.23 | I31: 1824.57 | J31: 1846.18 | K31: 1802.95 | L31: 1752 | M31: 20.28042
A32: 23 | B32: AUROPHARMA | C32: 619.05 | D32: 609.75 | E32: 598.20 | F32: 577.35 | G32: 565.80 | H32: 630.60 | I32: 642.15 | J32: 663.00 | K32: 621.3 | L32: 588.9 | M32: 36.66862
A33: 24 | B33: DMART | C33: 1880.25 | D33: 1881.45 | E33: 1838.90 | F33: 1797.55 | G33: 1755.00 | H33: 1922.80 | I33: 1965.35 | J33: 2006.70 | K33: 1924 | L33: 1840.1 | M33: 6.05198
A34: 25 | B34: AXISBANK | C34: 704.4 | D34: 713.30 | E34: 693.35 | F34: 682.30 | G34: 662.35 | H34: 724.35 | I34: 744.30 | J34: 755.35 | K34: 733.25 | L34: 702.25 | M34: 156.83656
A35: 26 | B35: BAJAJ-AUTO | C35: 2958.15 | D35: 2964.12 | E35: 2923.23 | F35: 2888.32 | G35: 2847.43 | H35: 2999.03 | I35: 3039.92 | J35: 3074.83 | K35: 3005 | L35: 2929.2 | M35: 4.79273
A36: 27 | B36: BAJFINANCE | C36: 3961.75 | D36: 3971.25 | E36: 3917.50 | F36: 3873.25 | G36: 3819.50 | H36: 4015.50 | I36: 4069.25 | J36: 4113.50 | K36: 4025 | L36: 3927 | M36: 21.89604
A37: 28 | B37: BAJAJFINSV | C37: 8240.7 | D37: 8257.50 | E37: 8140.25 | F37: 8039.80 | G37: 7922.55 | H37: 8357.95 | I37: 8475.20 | J37: 8575.65 | K37: 8374.75 | L37: 8157.05 | M37: 3.76734
A38: 29 | B38: BAJAJHLDNG | C38: 3688.05 | D38: 3606.02 | E38: 3502.03 | F38: 3316.02 | G38: 3212.03 | H38: 3792.03 | I38: 3896.02 | J38: 4082.03 | K38: 3710 | L38: 3420 | M38: 0.6096
A39: 30 | B39: BALKRISIND | C39: 789.3 | D39: 793.93 | E39: 777.87 | F39: 766.43 | G39: 750.37 | H39: 805.37 | I39: 821.43 | J39: 832.87 | K39: 810 | L39: 782.5 | M39: 2.5072
A40: 31 | B40: BANDHANBNK | C40: 506.15 | D40: 513.82 | E40: 493.58 | F40: 481.02 | G40: 460.78 | H40: 526.38 | I40: 546.62 | J40: 559.18 | K40: 534.05 | L40: 501.25 | M40: 5.56392
A41: 32 | B41: BANKBARODA | C41: 99.2 | D41: 99.85 | E41: 98.10 | F41: 97.00 | G41: 95.25 | H41: 100.95 | I41: 102.70 | J41: 103.80 | K41: 101.6 | L41: 98.75 | M41: 233.31962
A42: 33 | B42: BANKINDIA | C42: 70.6 | D42: 71.05 | E42: 69.25 | F42: 67.90 | G42: 66.10 | H42: 72.40 | I42: 74.20 | J42: 75.55 | K42: 72.85 | L42: 69.7 | M42: 116.93496
A43: 34 | B43: BATAINDIA | C43: 1721.05 | D43: 1725.65 | E43: 1696.40 | F43: 1671.75 | G43: 1642.50 | H43: 1750.30 | I43: 1779.55 | J43: 1804.20 | K43: 1754.9 | L43: 1701 | M43: 7.6704
A44: 35 | B44: BERGEPAINT | C44: 427 | D44: 428.88 | E44: 422.22 | F44: 417.43 | G44: 410.77 | H44: 433.67 | I44: 440.33 | J44: 445.12 | K44: 435.55 | L44: 424.1 | M44: 15.8186
A45: 36 | B45: BEL | C45: 111.85 | D45: 111.87 | E45: 110.48 | F45: 109.12 | G45: 107.73 | H45: 113.23 | I45: 114.62 | J45: 115.98 | K45: 113.25 | L45: 110.5 | M45: 111.7045
A46: 37 | B46: BHARATFORG | C46: 460.2 | D46: 458.72 | E46: 450.48 | F46: 440.77 | G46: 432.53 | H46: 468.43 | I46: 476.67 | J46: 486.38 | K46: 466.95 | L46: 449 | M46: 17.95514
A47: 38 | B47: BHEL | C47: 51.9 | D47: 51.88 | E47: 50.82 | F47: 49.73 | G47: 48.67 | H47: 52.97 | I47: 54.03 | J47: 55.12 | K47: 52.95 | L47: 50.8 | M47: 142.63656
A48: 39 | B48: BPCL | C48: 461.3 | D48: 459.35 | E48: 443.95 | F48: 426.60 | G48: 411.20 | H48: 476.70 | I48: 492.10 | J48: 509.45 | K48: 474.75 | L48: 442 | M48: 313.33076
A49: 40 | B49: BHARTIARTL | C49: 348.65 | D49: 348.68 | E49: 345.37 | F49: 342.08 | G49: 338.77 | H49: 351.97 | I49: 355.28 | J49: 358.57 | K49: 352 | L49: 345.4 | M49: 47.22666
A50: 41 | B50: INFRATEL | C50: 257.65 | D50: 260.35 | E50: 251.95 | F50: 246.25 | G50: 237.85 | H50: 266.05 | I50: 274.45 | J50: 280.15 | K50: 268.75 | L50: 254.65 | M50: 27.7408
A51: 42 | B51: BIOCON | C51: 224.4 | D51: 225.47 | E51: 222.93 | F51: 221.47 | G51: 218.93 | H51: 226.93 | I51: 229.47 | J51: 230.93 | K51: 228 | L51: 224 | M51: 20.27112
A52: 43 | B52: BBTC | C52: 1241.25 | D52: 1248.50 | E52: 1210.00 | F52: 1178.75 | G52: 1140.25 | H52: 1279.75 | I52: 1318.25 | J52: 1349.50 | K52: 1287 | L52: 1217.25 | M52: 2.30266
A53: 44 | B53: BOSCHLTD | C53: 14575.65 | D53: 14701.55 | E53: 14374.10 | F53: 14172.55 | G53: 13845.10 | H53: 14903.10 | I53: 15230.55 | J53: 15432.10 | K53: 15029 | L53: 14500 | M53: 0.18597
A54: 45 | B54: BRITANNIA | C54: 3080.2 | D54: 3083.40 | E54: 3051.80 | F54: 3023.40 | G54: 2991.80 | H54: 3111.80 | I54: 3143.40 | J54: 3171.80 | K54: 3115 | L54: 3055 | M54: 8.09417
A55: 46 | B55: CADILAHC | C55: 253.95 | D55: 250.78 | E55: 246.37 | F55: 238.78 | G55: 234.37 | H55: 258.37 | I55: 262.78 | J55: 270.37 | K55: 255.2 | L55: 243.2 | M55: 17.90968
A56: 47 | B56: CANBK | C56: 203.25 | D56: 205.05 | E56: 199.40 | F56: 195.55 | G56: 189.90 | H56: 208.90 | I56: 214.55 | J56: 218.40 | K56: 210.7 | L56: 201.2 | M56: 87.09233
A57: 48 | B57: CASTROLIND | C57: 133.45 | D57: 133.60 | E57: 131.35 | F57: 129.25 | G57: 127.00 | H57: 135.70 | I57: 137.95 | J57: 140.05 | K57: 135.85 | L57: 131.5 | M57: 12.54486
A58: 49 | B58: CHOLAFIN | C58: 303.15 | D58: 304.13 | E58: 294.62 | F58: 286.08 | G58: 276.57 | H58: 312.67 | I58: 322.18 | J58: 330.72 | K58: 313.65 | L58: 295.6 | M58: 19.83072
A59: 50 | B59: CIPLA | C59: 450.25 | D59: 450.63 | E59: 446.22 | F59: 442.18 | G59: 437.77 | H59: 454.67 | I59: 459.08 | J59: 463.12 | K59: 455.05 | L59: 446.6 | M59: 19.59468
A60: 51 | B60: COALINDIA | C60: 198.15 | D60: 200.32 | E60: 194.93 | F60: 191.72 | G60: 186.33 | H60: 203.53 | I60: 208.92 | J60: 212.13 | K60: 205.7 | L60: 197.1 | M60: 96.62821
A61: 52 | B61: COLPAL | C61: 1518.4 | D61: 1524.83 | E61: 1503.62 | F61: 1488.83 | G61: 1467.62 | H61: 1539.62 | I61: 1560.83 | J61: 1575.62 | K61: 1546.05 | L61: 1510.05 | M61: 8.17807
A62: 53 | B62: CONCOR | C62: 581.1 | D62: 582.17 | E62: 572.43 | F62: 563.77 | G62: 554.03 | H62: 590.83 | I62: 600.57 | J62: 609.23 | K62: 591.9 | L62: 573.5 | M62: 20.86193
A63: 54 | B63: COROMANDEL | C63: 417.35 | D63: 421.18 | E63: 409.57 | F63: 401.78 | G63: 390.17 | H63: 428.97 | I63: 440.58 | J63: 448.37 | K63: 432.8 | L63: 413.4 | M63: 6.24606
A64: 55 | B64: CROMPTON | C64: 264 | D64: 263.85 | E64: 258.85 | F64: 253.70 | G64: 248.70 | H64: 269.00 | I64: 274.00 | J64: 279.15 | K64: 268.85 | L64: 258.7 | M64: 6.82088
A65: 56 | B65: CUMMINSIND | C65: 606.85 | D65: 610.83 | E65: 594.67 | F65: 582.48 | G65: 566.32 | H65: 623.02 | I65: 639.18 | J65: 651.37 | K65: 627 | L65: 598.65 | M65: 6.43469
A66: 57 | B66: DLF | C66: 167.25 | D66: 167.95 | E66: 164.55 | F66: 161.85 | G66: 158.45 | H66: 170.65 | I66: 174.05 | J66: 176.75 | K66: 171.35 | L66: 165.25 | M66: 79.08403
A67: 58 | B67: DABUR | C67: 451.9 | D67: 447.15 | E67: 440.75 | F67: 429.60 | G67: 423.20 | H67: 458.30 | I67: 464.70 | J67: 475.85 | K67: 453.55 | L67: 436 | M67: 30.51265
A68: 59 | B68: DHFL | C68: 44.95 | D68: 44.23 | E68: 42.52 | F68: 40.08 | G68: 38.37 | H68: 46.67 | I68: 48.38 | J68: 50.82 | K68: 45.95 | L68: 41.8 | M68: 273.3595
A69: 60 | B69: DBL | C69: 438.25 | D69: 443.13 | E69: 430.67 | F69: 423.08 | G69: 410.62 | H69: 450.72 | I69: 463.18 | J69: 470.77 | K69: 455.6 | L69: 435.55 | M69: 2.22865
A70: 61 | B70: DISHTV | C70: 21.45 | D70: 21.30 | E70: 20.15 | F70: 18.85 | G70: 17.70 | H70: 22.60 | I70: 23.75 | J70: 25.05 | K70: 22.45 | L70: 20 | M70: 520.4844
A71: 62 | B71: DIVISLAB | C71: 1629.65 | D71: 1620.78 | E71: 1596.57 | F71: 1563.48 | G71: 1539.27 | H71: 1653.87 | I71: 1678.08 | J71: 1711.17 | K71: 1645 | L71: 1587.7 | M71: 6.92476
A72: 63 | B72: DRREDDY | C72: 2785.25 | D72: 2781.75 | E72: 2718.50 | F72: 2651.75 | G72: 2588.50 | H72: 2848.50 | I72: 2911.75 | J72: 2978.50 | K72: 2845 | L72: 2715 | M72: 6.7965
A73: 64 | B73: EDELWEISS | C73: 115.5 | D73: 117.92 | E73: 112.23 | F73: 108.97 | G73: 103.28 | H73: 121.18 | I73: 126.87 | J73: 130.13 | K73: 123.6 | L73: 114.65 | M73: 38.38539
A74: 65 | B74: EICHERMOT | C74: 18434.25 | D74: 18651.42 | E74: 17737.83 | F74: 17041.42 | G74: 16127.83 | H74: 19347.83 | I74: 20261.42 | J74: 20957.83 | K74: 19565 | L74: 17955 | M74: 2.8601
A75: 66 | B75: ENDURANCE | C75: 999.4 | D75: 991.53 | E75: 974.07 | F75: 948.73 | G75: 931.27 | H75: 1016.87 | I75: 1034.33 | J75: 1059.67 | K75: 1009 | L75: 966.2 | M75: 0.38414
A76: 67 | B76: ENGINERSIN | C76: 112.2 | D76: 113.97 | E76: 109.28 | F76: 106.37 | G76: 101.68 | H76: 116.88 | I76: 121.57 | J76: 124.48 | K76: 118.65 | L76: 111.05 | M76: 34.94775
A77: 68 | B77: ESCORTS | C77: 605.1 | D77: 613.15 | E77: 594.60 | F77: 584.10 | G77: 565.55 | H77: 623.65 | I77: 642.20 | J77: 652.70 | K77: 631.7 | L77: 602.65 | M77: 52.32659
A78: 69 | B78: EXIDEIND | C78: 197.25 | D78: 200.70 | E78: 192.65 | F78: 188.05 | G78: 180.00 | H78: 205.30 | I78: 213.35 | J78: 217.95 | K78: 208.75 | L78: 196.1 | M78: 108.27705
A79: 70 | B79: FEDERALBNK | C79: 94.3 | D79: 95.10 | E79: 93.00 | F79: 91.70 | G79: 89.60 | H79: 96.40 | I79: 98.50 | J79: 99.80 | K79: 97.2 | L79: 93.8 | M79: 92.30752
A80: 71 | B80: FCONSUMER | C80: 30.45 | D80: 30.52 | E80: 29.43 | F80: 28.42 | G80: 27.33 | H80: 31.53 | I80: 32.62 | J80: 33.63 | K80: 31.6 | L80: 29.5 | M80: 21.88143
A81: 72 | B81: FRETAIL | C81: 398.75 | D81: 399.92 | E81: 393.83 | F81: 388.92 | G81: 382.83 | H81: 404.83 | I81: 410.92 | J81: 415.83 | K81: 406 | L81: 395 | M81: 3.23662
A82: 73 | B82: GAIL | C82: 139.25 | D82: 139.38 | E82: 136.17 | F82: 133.08 | G82: 129.87 | H82: 142.47 | I82: 145.68 | J82: 148.77 | K82: 142.6 | L82: 136.3 | M82: 83.62288
A83: 74 | B83: GMRINFRA | C83: 17.2 | D83: 17.05 | E83: 16.70 | F83: 16.20 | G83: 15.85 | H83: 17.55 | I83: 17.90 | J83: 18.40 | K83: 17.4 | L83: 16.55 | M83: 206.83639
A84: 75 | B84: GICRE | C84: 197.4 | D84: 198.67 | E84: 193.83 | F84: 190.27 | G84: 185.43 | H84: 202.23 | I84: 207.07 | J84: 210.63 | K84: 203.5 | L84: 195.1 | M84: 5.85024
A85: 76 | B85: GSKCONS | C85: 8799.45 | D85: 8754.47 | E85: 8645.98 | F85: 8492.52 | G85: 8384.03 | H85: 8907.93 | I85: 9016.42 | J85: 9169.88 | K85: 8862.95 | L85: 8601 | M85: 0.09902
A86: 77 | B86: GLENMARK | C86: 348.9 | D86: 351.03 | E86: 345.87 | F86: 342.83 | G86: 337.67 | H86: 354.07 | I86: 359.23 | J86: 362.27 | K86: 356.2 | L86: 348 | M86: 9.68546
A87: 78 | B87: GODREJAGRO | C87: 488.25 | D87: 486.67 | E87: 480.68 | F87: 473.12 | G87: 467.13 | H87: 494.23 | I87: 500.22 | J87: 507.78 | K87: 492.65 | L87: 479.1 | M87: 0.47684
A88: 79 | B88: GODREJCP | C88: 664 | D88: 665.27 | E88: 656.03 | F88: 648.07 | G88: 638.83 | H88: 673.23 | I88: 682.47 | J88: 690.43 | K88: 674.5 | L88: 657.3 | M88: 8.88965
A89: 80 | B89: GODREJIND | C89: 423.2 | D89: 423.77 | E89: 416.93 | F89: 410.67 | G89: 403.83 | H89: 430.03 | I89: 436.87 | J89: 443.13 | K89: 430.6 | L89: 417.5 | M89: 1.16234
A90: 81 | B90: GRAPHITE | C90: 348.1 | D90: 348.42 | E90: 332.03 | F90: 315.97 | G90: 299.58 | H90: 364.48 | I90: 380.87 | J90: 396.93 | K90: 364.8 | L90: 332.35 | M90: 53.99421
A91: 82 | B91: GRASIM | C91: 749.7 | D91: 751.88 | E91: 738.07 | F91: 726.43 | G91: 712.62 | H91: 763.52 | I91: 777.33 | J91: 788.97 | K91: 765.7 | L91: 740.25 | M91: 13.87878
A92: 83 | B92: GRUH | C92: 268 | D92: 272.15 | E92: 262.05 | F92: 256.10 | G92: 246.00 | H92: 278.10 | I92: 288.20 | J92: 294.15 | K92: 282.25 | L92: 266.2 | M92: 16.30544
A93: 84 | B93: GSPL | C93: 219.75 | D93: 219.53 | E93: 215.42 | F93: 211.08 | G93: 206.97 | H93: 223.87 | I93: 227.98 | J93: 232.32 | K93: 223.65 | L93: 215.2 | M93: 8.00815
A94: 85 | B94: HEG | C94: 1197.2 | D94: 1213.98 | E94: 1165.47 | F94: 1133.73 | G94: 1085.22 | H94: 1245.72 | I94: 1294.23 | J94: 1325.97 | K94: 1262.5 | L94: 1182.25 | M94: 12.89389
A95: 86 | B95: HCLTECH | C95: 1047.4 | D95: 1040.70 | E95: 1029.70 | F95: 1012.00 | G95: 1001.00 | H95: 1058.40 | I95: 1069.40 | J95: 1087.10 | K95: 1051.7 | L95: 1023 | M95: 28.07226
A96: 87 | B96: HDFCAMC | C96: 2929.95 | D96: 2925.97 | E96: 2906.93 | F96: 2883.92 | G96: 2864.88 | H96: 2948.98 | I96: 2968.02 | J96: 2991.03 | K96: 2945 | L96: 2902.95 | M96: 4.03851
A97: 88 | B97: HDFCBANK | C97: 1253.8 | D97: 1247.77 | E97: 1233.58 | F97: 1213.37 | G97: 1199.18 | H97: 1267.98 | I97: 1282.17 | J97: 1302.38 | K97: 1261.95 | L97: 1227.55 | M97: 116.89524
A98: 89 | B98: HDFCLIFE | C98: 551.05 | D98: 548.72 | E98: 542.48 | F98: 533.92 | G98: 527.68 | H98: 557.28 | I98: 563.52 | J98: 572.08 | K98: 554.95 | L98: 540.15 | M98: 25.48423
A99: 90 | B99: HAVELLS | C99: 757 | D99: 745.98 | E99: 726.22 | F99: 695.43 | G99: 675.67 | H99: 776.77 | I99: 796.53 | J99: 827.32 | K99: 765.75 | L99: 715.2 | M99: 22.02687
A100: 91 | B100: HEROMOTOCO | C100: 2755.95 | D100: 2775.30 | E100: 2705.30 | F100: 2654.65 | G100: 2584.65 | H100: 2825.95 | I100: 2895.95 | J100: 2946.60 | K100: 2845.3 | L100: 2724.65 | M100: 10.6429
A101: 92 | B101: HEXAWARE | C101: 388.3 | D101: 383.83 | E101: 373.97 | F101: 359.63 | G101: 349.77 | H101: 398.17 | I101: 408.03 | J101: 422.37 | K101: 393.7 | L101: 369.5 | M101: 16.58574
A102: 93 | B102: HINDALCO | C102: 197.8 | D102: 198.73 | E102: 195.12 | F102: 192.43 | G102: 188.82 | H102: 201.42 | I102: 205.03 | J102: 207.72 | K102: 202.35 | L102: 196.05 | M102: 58.05761
A103: 94 | B103: HINDPETRO | C103: 282.85 | D103: 287.07 | E103: 275.88 | F103: 268.92 | G103: 257.73 | H103: 294.03 | I103: 305.22 | J103: 312.18 | K103: 298.25 | L103: 280.1 | M103: 128.1313
A104: 95 | B104: HINDUNILVR | C104: 2050.45 | D104: 2042.48 | E104: 2017.07 | F104: 1983.68 | G104: 1958.27 | H104: 2075.87 | I104: 2101.28 | J104: 2134.67 | K104: 2067.9 | L104: 2009.1 | M104: 17.84798
A105: 96 | B105: HINDZINC | C105: 210.5 | D105: 212.17 | E105: 207.68 | F105: 204.87 | G105: 200.38 | H105: 214.98 | I105: 219.47 | J105: 222.28 | K105: 216.65 | L105: 209.35 | M105: 7.22057
A106: 97 | B106: HUDCO | C106: 37.9 | D106: 38.02 | E106: 37.38 | F106: 36.87 | G106: 36.23 | H106: 38.53 | I106: 39.17 | J106: 39.68 | K106: 38.65 | L106: 37.5 | M106: 7.31738
A107: 98 | B107: HDFC | C107: 2130 | D107: 2143.08 | E107: 2101.17 | F107: 2072.33 | G107: 2030.42 | H107: 2171.92 | I107: 2213.83 | J107: 2242.67 | K107: 2185 | L107: 2114.25 | M107: 47.63968
A108: 99 | B108: ICICIBANK | C108: 440.9 | D108: 440.97 | E108: 433.28 | F108: 425.67 | G108: 417.98 | H108: 448.58 | I108: 456.27 | J108: 463.88 | K108: 448.65 | L108: 433.35 | M108: 266.39931
A109: 100 | B109: ICICIGI | C109: 1222.4 | D109: 1219.77 | E109: 1190.63 | F109: 1158.87 | G109: 1129.73 | H109: 1251.53 | I109: 1280.67 | J109: 1312.43 | K109: 1248.9 | L109: 1188 | M109: 8.89536
A110: 101 | B110: ICICIPRULI | C110: 427.4 | D110: 425.87 | E110: 419.98 | F110: 412.57 | G110: 406.68 | H110: 433.28 | I110: 439.17 | J110: 446.58 | K110: 431.75 | L110: 418.45 | M110: 17.58874
A111: 102 | B111: IDBI | C111: 34.1 | D111: 32.97 | E111: 31.53 | F111: 28.97 | G111: 27.53 | H111: 35.53 | I111: 36.97 | J111: 39.53 | K111: 34.4 | L111: 30.4 | M111: 214.50076
A112: 103 | B112: IDFCFIRSTB | C112: 42.8 | D112: 43.10 | E112: 42.35 | F112: 41.90 | G112: 41.15 | H112: 43.55 | I112: 44.30 | J112: 44.75 | K112: 43.85 | L112: 42.65 | M112: 140.46346
A113: 104 | B113: ITC | C113: 256 | D113: 255.93 | E113: 253.87 | F113: 251.73 | G113: 249.67 | H113: 258.07 | I113: 260.13 | J113: 262.27 | K113: 258 | L113: 253.8 | M113: 171.67257
A114: 105 | B114: IBULHSGFIN | C114: 435 | D114: 435.53 | E114: 426.67 | F114: 418.33 | G114: 409.47 | H114: 443.87 | I114: 452.73 | J114: 461.07 | K114: 444.4 | L114: 427.2 | M114: 102.18122
A115: 106 | B115: IBVENTURES | C115: 183.45 | D115: 185.18 | E115: 178.37 | F115: 173.28 | G115: 166.47 | H115: 190.27 | I115: 197.08 | J115: 202.17 | K115: 192 | L115: 180.1 | M115: 10.86612
A116: 107 | B116: INDIANB | C116: 148 | D116: 149.17 | E116: 145.33 | F116: 142.67 | G116: 138.83 | H116: 151.83 | I116: 155.67 | J116: 158.33 | K116: 153 | L116: 146.5 | M116: 10.2996
A117: 108 | B117: INDHOTEL | C117: 159.85 | D117: 157.82 | E117: 154.38 | F117: 148.92 | G117: 145.48 | H117: 163.28 | I117: 166.72 | J117: 172.18 | K117: 161.25 | L117: 152.35 | M117: 32.05251
A118: 109 | B118: IOC | C118: 138.7 | D118: 139.35 | E118: 136.20 | F118: 133.70 | G118: 130.55 | H118: 141.85 | I118: 145.00 | J118: 147.50 | K118: 142.5 | L118: 136.85 | M118: 167.85533
A119: 110 | B119: IGL | C119: 361.95 | D119: 363.77 | E119: 355.18 | F119: 348.42 | G119: 339.83 | H119: 370.53 | I119: 379.12 | J119: 385.88 | K119: 372.35 | L119: 357 | M119: 36.42446
A120: 111 | B120: INDUSINDBK | C120: 1516.3 | D120: 1513.22 | E120: 1499.43 | F120: 1482.57 | G120: 1468.78 | H120: 1530.08 | I120: 1543.87 | J120: 1560.73 | K120: 1527 | L120: 1496.35 | M120: 51.67834
A121: 112 | B121: NAUKRI | C121: 2082.2 | D121: 2093.42 | E121: 2050.83 | F121: 2019.47 | G121: 1976.88 | H121: 2124.78 | I121: 2167.37 | J121: 2198.73 | K121: 2136 | L121: 2062.05 | M121: 1.53098
A122: 113 | B122: INFY | C122: 794.05 | D122: 785.90 | E122: 773.15 | F122: 752.25 | G122: 739.50 | H122: 806.80 | I122: 819.55 | J122: 840.45 | K122: 798.65 | L122: 765 | M122: 137.17998
A123: 114 | B123: INDIGO | C123: 1817.9 | D123: 1814.10 | E123: 1795.50 | F123: 1773.10 | G123: 1754.50 | H123: 1836.50 | I123: 1855.10 | J123: 1877.50 | K123: 1832.7 | L123: 1791.7 | M123: 7.82292
A124: 115 | B124: JSWENERGY | C124: 64.85 | D124: 65.18 | E124: 64.17 | F124: 63.48 | G124: 62.47 | H124: 65.87 | I124: 66.88 | J124: 67.57 | K124: 66.2 | L124: 64.5 | M124: 6.97788
A125: 116 | B125: JSWSTEEL | C125: 233.35 | D125: 235.95 | E125: 229.90 | F125: 226.45 | G125: 220.40 | H125: 239.40 | I125: 245.45 | J125: 248.90 | K125: 242 | L125: 232.5 | M125: 90.73501
A126: 117 | B126: JINDALSTEL | C126: 107.15 | D126: 108.45 | E126: 105.00 | F126: 102.85 | G126: 99.40 | H126: 110.60 | I126: 114.05 | J126: 116.20 | K126: 111.9 | L126: 106.3 | M126: 149.69322
A127: 118 | B127: JUBLFOOD | C127: 1453.9 | D127: 1445.80 | E127: 1431.60 | F127: 1409.30 | G127: 1395.10 | H127: 1468.10 | I127: 1482.30 | J127: 1504.60 | K127: 1460 | L127: 1423.5 | M127: 5.92519
A128: 119 | B128: JUBILANT | C128: 567.05 | D128: 557.42 | E128: 542.43 | F128: 517.82 | G128: 502.83 | H128: 582.03 | I128: 597.02 | J128: 621.63 | K128: 572.4 | L128: 532.8 | M128: 7.40122
A129: 120 | B129: KOTAKBANK | C129: 1618.1 | D129: 1616.60 | E129: 1591.50 | F129: 1564.90 | G129: 1539.80 | H129: 1643.20 | I129: 1668.30 | J129: 1694.90 | K129: 1641.7 | L129: 1590 | M129: 37.70541
A130: 121 | B130: L&TFH | C130: 97.05 | D130: 98.27 | E130: 95.38 | F130: 93.72 | G130: 90.83 | H130: 99.93 | I130: 102.82 | J130: 104.48 | K130: 101.15 | L130: 96.6 | M130: 120.15309
A131: 122 | B131: LTTS | C131: 1564.6 | D131: 1575.18 | E131: 1545.42 | F131: 1526.23 | G131: 1496.47 | H131: 1594.37 | I131: 1624.13 | J131: 1643.32 | K131: 1604.95 | L131: 1556 | M131: 0.4455
A132: 123 | B132: LICHSGFIN | C132: 419.1 | D132: 420.68 | E132: 412.82 | F132: 406.53 | G132: 398.67 | H132: 426.97 | I132: 434.83 | J132: 441.12 | K132: 428.55 | L132: 414.4 | M132: 19.97626
A133: 124 | B133: LTI | C133: 1477.1 | D133: 1485.37 | E133: 1465.73 | F133: 1454.37 | G133: 1434.73 | H133: 1496.73 | I133: 1516.37 | J133: 1527.73 | K133: 1505 | L133: 1474 | M133: 2.26168
A134: 125 | B134: LT | C134: 1481.3 | D134: 1493.62 | E134: 1463.23 | F134: 1445.17 | G134: 1414.78 | H134: 1511.68 | I134: 1542.07 | J134: 1560.13 | K134: 1524 | L134: 1475.55 | M134: 38.31602
A135: 126 | B135: LUPIN | C135: 739.25 | D135: 738.90 | E135: 731.40 | F135: 723.55 | G135: 716.05 | H135: 746.75 | I135: 754.25 | J135: 762.10 | K135: 746.4 | L135: 731.05 | M135: 12.03386
A136: 127 | B136: MRF | C136: 65879.55 | D136: 66266.13 | E136: 65304.72 | F136: 64729.88 | G136: 63768.47 | H136: 66840.97 | I136: 67802.38 | J136: 68377.22 | K136: 67227.55 | L136: 65691.3 | M136: 0.08452
A137: 128 | B137: MGL | C137: 908.45 | D137: 912.00 | E137: 884.85 | F137: 861.25 | G137: 834.10 | H137: 935.60 | I137: 962.75 | J137: 986.35 | K137: 939.15 | L137: 888.4 | M137: 7.7773
A138: 129 | B138: M&MFIN | C138: 342.6 | D138: 348.38 | E138: 331.02 | F138: 319.43 | G138: 302.07 | H138: 359.97 | I138: 377.33 | J138: 388.92 | K138: 365.75 | L138: 336.8 | M138: 34.60482
A139: 130 | B139: M&M | C139: 558.75 | D139: 562.92 | E139: 550.43 | F139: 542.12 | G139: 529.63 | H139: 571.23 | I139: 583.72 | J139: 592.03 | K139: 575.4 | L139: 554.6 | M139: 36.15703
A140: 131 | B140: MANAPPURAM | C140: 136.75 | D140: 136.07 | E140: 134.23 | F140: 131.72 | G140: 129.88 | H140: 138.58 | I140: 140.42 | J140: 142.93 | K140: 137.9 | L140: 133.55 | M140: 52.30198
A141: 132 | B141: MRPL | C141: 48.2 | D141: 48.43 | E141: 47.47 | F141: 46.73 | G141: 45.77 | H141: 49.17 | I141: 50.13 | J141: 50.87 | K141: 49.4 | L141: 47.7 | M141: 3.5988
A142: 133 | B142: MARICO | C142: 396.45 | D142: 393.20 | E142: 387.40 | F142: 378.35 | G142: 372.55 | H142: 402.25 | I142: 408.05 | J142: 417.10 | K142: 399 | L142: 384.15 | M142: 26.98045
A143: 134 | B143: MARUTI | C143: 7009.1 | D143: 7014.00 | E143: 6850.10 | F143: 6691.10 | G143: 6527.20 | H143: 7173.00 | I143: 7336.90 | J143: 7495.90 | K143: 7177.9 | L143: 6855 | M143: 23.5423
A144: 135 | B144: MFSL | C144: 415.1 | D144: 414.03 | E144: 407.07 | F144: 399.03 | G144: 392.07 | H144: 422.07 | I144: 429.03 | J144: 437.07 | K144: 421 | L144: 406 | M144: 5.66108
A145: 136 | B145: MINDTREE | C145: 718.35 | D145: 720.77 | E145: 711.68 | F145: 705.02 | G145: 695.93 | H145: 727.43 | I145: 736.52 | J145: 743.18 | K145: 729.85 | L145: 714.1 | M145: 4.6244
A146: 137 | B146: MOTHERSUMI | C146: 115.55 | D146: 115.95 | E146: 113.65 | F146: 111.75 | G146: 109.45 | H146: 117.85 | I146: 120.15 | J146: 122.05 | K146: 118.25 | L146: 114.05 | M146: 91.66366
A147: 138 | B147: MPHASIS | C147: 966.1 | D147: 962.25 | E147: 942.15 | F147: 918.20 | G147: 898.10 | H147: 986.20 | I147: 1006.30 | J147: 1030.25 | K147: 982.35 | L147: 938.3 | M147: 2.30806
A148: 139 | B148: MUTHOOTFIN | C148: 689.95 | D148: 678.73 | E148: 658.47 | F148: 626.98 | G148: 606.72 | H148: 710.22 | I148: 730.48 | J148: 761.97 | K148: 699 | L148: 647.25 | M148: 24.01596
A149: 140 | B149: NATCOPHARM | C149: 586.55 | D149: 583.40 | E149: 568.15 | F149: 549.75 | G149: 534.50 | H149: 601.80 | I149: 617.05 | J149: 635.45 | K149: 598.65 | L149: 565 | M149: 1.18183
A150: 141 | B150: NBCC | C150: 39.35 | D150: 39.30 | E150: 38.60 | F150: 37.85 | G150: 37.15 | H150: 40.05 | I150: 40.75 | J150: 41.50 | K150: 40 | L150: 38.55 | M150: 155.05055
A151: 142 | B151: NHPC | C151: 23.15 | D151: 23.25 | E151: 23.00 | F151: 22.85 | G151: 22.60 | H151: 23.40 | I151: 23.65 | J151: 23.80 | K151: 23.5 | L151: 23.1 | M151: 10.26893
A152: 143 | B152: NMDC | C152: 89.55 | D152: 90.08 | E152: 88.27 | F152: 86.98 | G152: 85.17 | H152: 91.37 | I152: 93.18 | J152: 94.47 | K152: 91.9 | L152: 88.8 | M152: 25.58807
A153: 144 | B153: NTPC | C153: 115.15 | D153: 115.43 | E153: 114.07 | F153: 112.98 | G153: 111.62 | H153: 116.52 | I153: 117.88 | J153: 118.97 | K153: 116.8 | L153: 114.35 | M153: 208.64605
A154: 145 | B154: NATIONALUM | C154: 46.65 | D154: 47.18 | E154: 45.87 | F154: 45.08 | G154: 43.77 | H154: 47.97 | I154: 49.28 | J154: 50.07 | K154: 48.5 | L154: 46.4 | M154: 79.89221
A155: 146 | B155: OBEROIRLTY | C155: 546.3 | D155: 548.68 | E155: 537.62 | F155: 528.93 | G155: 517.87 | H155: 557.37 | I155: 568.43 | J155: 577.12 | K155: 559.75 | L155: 540 | M155: 1.84085
A156: 147 | B156: ONGC | C156: 133.5 | D156: 135.37 | E156: 130.93 | F156: 128.37 | G156: 123.93 | H156: 137.93 | I156: 142.37 | J156: 144.93 | K156: 139.8 | L156: 132.8 | M156: 160.12272
A157: 148 | B157: OIL | C157: 148.05 | D157: 149.62 | E157: 145.73 | F157: 143.42 | G157: 139.53 | H157: 151.93 | I157: 155.82 | J157: 158.13 | K157: 153.5 | L157: 147.3 | M157: 13.00878
A158: 149 | B158: OFSS | C158: 2939.8 | D158: 2971.73 | E158: 2894.82 | F158: 2849.83 | G158: 2772.92 | H158: 3016.72 | I158: 3093.63 | J158: 3138.62 | K158: 3048.65 | L158: 2926.75 | M158: 0.45324
A159: 150 | B159: PIIND | C159: 1286.65 | D159: 1278.15 | E159: 1258.30 | F159: 1229.95 | G159: 1210.10 | H159: 1306.50 | I159: 1326.35 | J159: 1354.70 | K159: 1298 | L159: 1249.8 | M159: 0.81652
A160: 151 | B160: PNBHOUSING | C160: 640.65 | D160: 641.80 | E160: 623.85 | F160: 607.05 | G160: 589.10 | H160: 658.60 | I160: 676.55 | J160: 693.35 | K160: 659.75 | L160: 625 | M160: 1.67548
A161: 152 | B161: PAGEIND | C161: 23358.95 | D161: 23491.78 | E161: 22797.17 | F161: 22235.38 | G161: 21540.77 | H161: 24053.57 | I161: 24748.18 | J161: 25309.97 | K161: 24186.4 | L161: 22930 | M161: 0.44019
A162: 153 | B162: PETRONET | C162: 256.25 | D162: 258.25 | E162: 251.55 | F162: 246.85 | G162: 240.15 | H162: 262.95 | I162: 269.65 | J162: 274.35 | K162: 264.95 | L162: 253.55 | M162: 93.11183
A163: 154 | B163: PFIZER | C163: 3362.9 | D163: 3400.30 | E163: 3312.60 | F163: 3262.30 | G163: 3174.60 | H163: 3450.60 | I163: 3538.30 | J163: 3588.60 | K163: 3488 | L163: 3350 | M163: 0.64303
A164: 155 | B164: PIDILITIND | C164: 1456.8 | D164: 1467.03 | E164: 1440.57 | F164: 1424.33 | G164: 1397.87 | H164: 1483.27 | I164: 1509.73 | J164: 1525.97 | K164: 1493.5 | L164: 1450.8 | M164: 4.5433
A165: 156 | B165: PEL | C165: 1848.85 | D165: 1850.18 | E165: 1808.72 | F165: 1768.58 | G165: 1727.12 | H165: 1890.32 | I165: 1931.78 | J165: 1971.92 | K165: 1891.65 | L165: 1810.05 | M165: 8.17253
A166: 157 | B166: PFC | C166: 104.1 | D166: 104.48 | E166: 102.17 | F166: 100.23 | G166: 97.92 | H166: 106.42 | I166: 108.73 | J166: 110.67 | K166: 106.8 | L166: 102.55 | M166: 65.17697
A167: 158 | B167: POWERGRID | C167: 190.45 | D167: 189.13 | E167: 186.32 | F167: 182.18 | G167: 179.37 | H167: 193.27 | I167: 196.08 | J167: 200.22 | K167: 191.95 | L167: 185 | M167: 102.56859
A168: 159 | B168: PRESTIGE | C168: 295.45 | D168: 297.95 | E168: 290.10 | F168: 284.75 | G168: 276.90 | H168: 303.30 | I168: 311.15 | J168: 316.50 | K168: 305.8 | L168: 292.6 | M168: 0.55485
A169: 160 | B169: PGHH | C169: 11790.65 | D169: 11603.85 | E169: 11207.80 | F169: 10624.95 | G169: 10228.90 | H169: 12186.70 | I169: 12582.75 | J169: 13165.60 | K169: 11999.9 | L169: 11021 | M169: 0.06162
A170: 161 | B170: PNB | C170: 66.15 | D170: 66.27 | E170: 65.43 | F170: 64.72 | G170: 63.88 | H170: 66.98 | I170: 67.82 | J170: 68.53 | K170: 67.1 | L170: 65.55 | M170: 191.84229
A171: 162 | B171: QUESS | C171: 448.65 | D171: 453.48 | E171: 442.17 | F171: 435.68 | G171: 424.37 | H171: 459.97 | I171: 471.28 | J171: 477.77 | K171: 464.8 | L171: 447 | M171: 1.53305
A172: 163 | B172: RBLBANK | C172: 401 | D172: 397.57 | E172: 388.63 | F172: 376.27 | G172: 367.33 | H172: 409.93 | I172: 418.87 | J172: 431.23 | K172: 406.5 | L172: 385.2 | M172: 81.40651
A173: 164 | B173: RECLTD | C173: 129.05 | D173: 129.62 | E173: 126.68 | F173: 124.32 | G173: 121.38 | H173: 131.98 | I173: 134.92 | J173: 137.28 | K173: 132.55 | L173: 127.25 | M173: 57.14711
A174: 165 | B174: RAJESHEXPO | C174: 670.85 | D174: 673.75 | E174: 663.60 | F174: 656.35 | G174: 646.20 | H174: 681.00 | I174: 691.15 | J174: 698.40 | K174: 683.9 | L174: 666.5 | M174: 2.25306
A175: 166 | B175: RELCAPITAL | C175: 30.45 | D175: 30.00 | E175: 28.70 | F175: 26.95 | G175: 25.65 | H175: 31.75 | I175: 33.05 | J175: 34.80 | K175: 31.3 | L175: 28.25 | M175: 289.34551
A176: 167 | B176: RELIANCE | C176: 1278.7 | D176: 1273.42 | E176: 1248.03 | F176: 1217.37 | G176: 1191.98 | H176: 1304.08 | I176: 1329.47 | J176: 1360.13 | K176: 1298.8 | L176: 1242.75 | M176: 159.82067
A177: 168 | B177: RELINFRA | C177: 36.65 | D177: 36.67 | E177: 35.53 | F177: 34.42 | G177: 33.28 | H177: 37.78 | I177: 38.92 | J177: 40.03 | K177: 37.8 | L177: 35.55 | M177: 146.09768
A178: 169 | B178: RPOWER | C178: 2.75 | D178: 2.80 | E178: 2.70 | F178: 2.65 | G178: 2.55 | H178: 2.85 | I178: 2.95 | J178: 3.00 | K178: 2.9 | L178: 2.75 | M178: 173.73973
A179: 170 | B179: SBILIFE | C179: 795.15 | D179: 795.27 | E179: 786.88 | F179: 778.62 | G179: 770.23 | H179: 803.53 | I179: 811.92 | J179: 820.18 | K179: 803.65 | L179: 787 | M179: 9.76843
A180: 171 | B180: SRF | C180: 2881.6 | D180: 2910.03 | E180: 2842.57 | F180: 2803.53 | G180: 2736.07 | H180: 2949.07 | I180: 3016.53 | J180: 3055.57 | K180: 2977.5 | L180: 2871 | M180: 3.13814
A181: 172 | B181: SHREECEM | C181: 19931 | D181: 19911.00 | E181: 19621.00 | F181: 19311.00 | G181: 19021.00 | H181: 20221.00 | I181: 20511.00 | J181: 20821.00 | K181: 20201 | L181: 19601 | M181: 0.38944
A182: 173 | B182: SRTRANSFIN | C182: 1165.65 | D182: 1156.32 | E182: 1140.33 | F182: 1115.02 | G182: 1099.03 | H182: 1181.63 | I182: 1197.62 | J182: 1222.93 | K182: 1172.3 | L182: 1131 | M182: 11.60109
A183: 174 | B183: SIEMENS | C183: 1435.3 | D183: 1450.27 | E183: 1406.73 | F183: 1378.17 | G183: 1334.63 | H183: 1478.83 | I183: 1522.37 | J183: 1550.93 | K183: 1493.8 | L183: 1421.7 | M183: 7.94716
A184: 175 | B184: SBIN | C184: 302.6 | D184: 306.18 | E184: 297.22 | F184: 291.83 | G184: 282.87 | H184: 311.57 | I184: 320.53 | J184: 325.92 | K184: 315.15 | L184: 300.8 | M184: 400.96711
A185: 176 | B185: SAIL | C185: 34.35 | D185: 34.50 | E185: 34.05 | F185: 33.75 | G185: 33.30 | H185: 34.80 | I185: 35.25 | J185: 35.55 | K185: 34.95 | L185: 34.2 | M185: 205.33187
A186: 177 | B186: STRTECH | C186: 169.15 | D186: 171.48 | E186: 165.17 | F186: 161.18 | G186: 154.87 | H186: 175.47 | I186: 181.78 | J186: 185.77 | K186: 177.8 | L186: 167.5 | M186: 16.46106
A187: 178 | B187: SPARC | C187: 149 | D187: 151.20 | E187: 146.00 | F187: 143.00 | G187: 137.80 | H187: 154.20 | I187: 159.40 | J187: 162.40 | K187: 156.4 | L187: 148.2 | M187: 6.80397
A188: 179 | B188: SUNPHARMA | C188: 409.65 | D188: 411.90 | E188: 404.10 | F188: 398.55 | G188: 390.75 | H188: 417.45 | I188: 425.25 | J188: 430.80 | K188: 419.7 | L188: 406.35 | M188: 58.60106
A189: 180 | B189: SUNTV | C189: 473.05 | D189: 480.77 | E189: 462.28 | F189: 451.52 | G189: 433.03 | H189: 491.53 | I189: 510.02 | J189: 520.78 | K189: 499.25 | L189: 470 | M189: 31.89317
A190: 181 | B190: SYNGENE | C190: 313.35 | D190: 313.62 | E190: 309.23 | F190: 305.12 | G190: 300.73 | H190: 317.73 | I190: 322.12 | J190: 326.23 | K190: 318 | L190: 309.5 | M190: 1.52576
A191: 182 | B191: TVSMOTOR | C191: 418.5 | D191: 421.58 | E191: 411.17 | F191: 403.83 | G191: 393.42 | H191: 428.92 | I191: 439.33 | J191: 446.67 | K191: 432 | L191: 414.25 | M191: 17.59021
A192: 183 | B192: TATACHEM | C192: 607.15 | D192: 611.68 | E192: 598.97 | F192: 590.78 | G192: 578.07 | H192: 619.87 | I192: 632.58 | J192: 640.77 | K192: 624.4 | L192: 603.5 | M192: 9.50992
A193: 184 | B193: TCS | C193: 2044.7 | D193: 2039.57 | E193: 2018.13 | F193: 1991.57 | G193: 1970.13 | H193: 2066.13 | I193: 2087.57 | J193: 2114.13 | K193: 2061 | L193: 2013 | M193: 46.20978
A194: 185 | B194: TATAGLOBAL | C194: 275 | D194: 274.82 | E194: 272.13 | F194: 269.27 | G194: 266.58 | H194: 277.68 | I194: 280.37 | J194: 283.23 | K194: 277.5 | L194: 271.95 | M194: 21.60946
A195: 186 | B195: TATAMTRDVR | C195: 59.9 | D195: 59.98 | E195: 58.97 | F195: 58.03 | G195: 57.02 | H195: 60.92 | I195: 61.93 | J195: 62.87 | K195: 61 | L195: 59.05 | M195: 59.03239
A196: 187 | B196: TATAMOTORS | C196: 130.9 | D196: 130.37 | E196: 128.53 | F196: 126.17 | G196: 124.33 | H196: 132.73 | I196: 134.57 | J196: 136.93 | K196: 132.2 | L196: 128 | M196: 416.591
A197: 188 | B197: TATAPOWER | C197: 66.4 | D197: 66.57 | E197: 65.18 | F197: 63.97 | G197: 62.58 | H197: 67.78 | I197: 69.17 | J197: 70.38 | K197: 67.95 | L197: 65.35 | M197: 72.43291
A198: 189 | B198: TATASTEEL | C198: 370.8 | D198: 372.77 | E198: 366.23 | F198: 361.67 | G198: 355.13 | H198: 377.33 | I198: 383.87 | J198: 388.43 | K198: 379.3 | L198: 368.2 | M198: 95.78989
A199: 190 | B199: TECHM | C199: 703.85 | D199: 697.82 | E199: 689.73 | F199: 675.62 | G199: 667.53 | H199: 711.93 | I199: 720.02 | J199: 734.13 | K199: 705.9 | L199: 683.7 | M199: 31.28057
A200: 191 | B200: NIACL | C200: 105.95 | D200: 106.87 | E200: 104.08 | F200: 102.22 | G200: 99.43 | H200: 108.73 | I200: 111.52 | J200: 113.38 | K200: 109.65 | L200: 105 | M200: 1.26775
A201: 192 | B201: RAMCOCEM | C201: 764.85 | D201: 769.98 | E201: 753.97 | F201: 743.08 | G201: 727.07 | H201: 780.87 | I201: 796.88 | J201: 807.77 | K201: 786 | L201: 759.1 | M201: 1.98038
A202: 193 | B202: TITAN | C202: 1292.65 | D202: 1299.63 | E202: 1275.02 | F202: 1257.38 | G202: 1232.77 | H202: 1317.27 | I202: 1341.88 | J202: 1359.52 | K202: 1324.25 | L202: 1282 | M202: 26.42955
A203: 194 | B203: TORNTPHARM | C203: 1697.95 | D203: 1702.25 | E203: 1676.90 | F203: 1655.85 | G203: 1630.50 | H203: 1723.30 | I203: 1748.65 | J203: 1769.70 | K203: 1727.6 | L203: 1681.2 | M203: 2.92557
A204: 195 | B204: TORNTPOWER | C204: 286.7 | D204: 287.85 | E204: 282.85 | F204: 279.00 | G204: 274.00 | H204: 291.70 | I204: 296.70 | J204: 300.55 | K204: 292.85 | L204: 284 | M204: 12.25151
A205: 196 | B205: UPL | C205: 579.4 | D205: 578.75 | E205: 572.85 | F205: 566.30 | G205: 560.40 | H205: 585.30 | I205: 591.20 | J205: 597.75 | K205: 584.65 | L205: 572.2 | M205: 25.52214
... 30 more rows

Sheet MidCap Intra
L5: Back To Main Page
A6: FOR INTRA DAY TRADING | K6: =Main!B10 -> 2019-09-25
A9: Sr.no | B9: Scrip | C9: CLOSE RATE | D9: Pivot Point | E9: Supports | H9: Resistances
C10: Point | E10: S1 | F10: S2 | G10: S3 | H10: R1 | I10: R2 | J10: R3 | K10: HIGH | L10: LOW | M10: Total Trade Quanity in Lakhs
A11: 1 | B11: 3MINDIA | C11: 19722.3 | D11: 20007.42 | E11: 19314.88 | F11: 18907.47 | G11: 18214.93 | H11: 20414.83 | I11: 21107.37 | J11: 21514.78 | K11: 20699.95 | L11: 19600 | M11: 0.02556
A12: 2 | B12: ABB | C12: 1573.35 | D12: 1566.45 | E12: 1551.90 | F12: 1530.45 | G12: 1515.90 | H12: 1587.90 | I12: 1602.45 | J12: 1623.90 | K12: 1581 | L12: 1545 | M12: 1.37947
A13: 3 | B13: ACC | C13: 1650.8 | D13: 1648.27 | E13: 1624.53 | F13: 1598.27 | G13: 1574.53 | H13: 1674.53 | I13: 1698.27 | J13: 1724.53 | K13: 1672 | L13: 1622 | M13: 6.09163
A14: 4 | B14: AIAENG | C14: 1759.65 | D14: 1752.57 | E14: 1725.33 | F14: 1691.02 | G14: 1663.78 | H14: 1786.88 | I14: 1814.12 | J14: 1848.43 | K14: 1779.8 | L14: 1718.25 | M14: 0.22519
A15: 5 | B15: APLAPOLLO | C15: 1417.45 | D15: 1421.32 | E15: 1392.63 | F15: 1367.82 | G15: 1339.13 | H15: 1446.13 | I15: 1474.82 | J15: 1499.63 | K15: 1450 | L15: 1396.5 | M15: 0.15771
A16: 6 | B16: AUBANK | C16: 669.95 | D16: 673.25 | E16: 656.70 | F16: 643.45 | G16: 626.90 | H16: 686.50 | I16: 703.05 | J16: 716.30 | K16: 689.8 | L16: 660 | M16: 1.74218
A17: 7 | B17: AAVAS | C17: 1585.25 | D17: 1595.03 | E17: 1550.32 | F17: 1515.38 | G17: 1470.67 | H17: 1629.97 | I17: 1674.68 | J17: 1709.62 | K17: 1639.75 | L17: 1560.1 | M17: 0.16189
A18: 8 | B18: ADANIGREEN | C18: 52.7 | D18: 52.50 | E18: 51.50 | F18: 50.30 | G18: 49.30 | H18: 53.70 | I18: 54.70 | J18: 55.90 | K18: 53.5 | L18: 51.3 | M18: 7.63788
A19: 9 | B19: ADANIPORTS | C19: 413.85 | D19: 411.77 | E19: 406.03 | F19: 398.22 | G19: 392.48 | H19: 419.58 | I19: 425.32 | J19: 433.13 | K19: 417.5 | L19: 403.95 | M19: 31.12368
A20: 10 | B20: ADANIPOWER | C20: 67.6 | D20: 67.17 | E20: 66.13 | F20: 64.67 | G20: 63.63 | H20: 68.63 | I20: 69.67 | J20: 71.13 | K20: 68.2 | L20: 65.7 | M20: 204.51509
A21: 11 | B21: ADANITRANS | C21: 232.5 | D21: 233.43 | E21: 229.67 | F21: 226.83 | G21: 223.07 | H21: 236.27 | I21: 240.03 | J21: 242.87 | K21: 237.2 | L21: 230.6 | M21: 0.73384
A22: 12 | B22: ABCAPITAL | C22: 90.85 | D22: 92.17 | E22: 89.33 | F22: 87.82 | G22: 84.98 | H22: 93.68 | I22: 96.52 | J22: 98.03 | K22: 95 | L22: 90.65 | M22: 13.94289
A23: 13 | B23: ABFRL | C23: 211.45 | D23: 211.33 | E23: 206.67 | F23: 201.88 | G23: 197.22 | H23: 216.12 | I23: 220.78 | J23: 225.57 | K23: 216 | L23: 206.55 | M23: 3.715
A24: 14 | B24: ADVENZYMES | C24: 165.65 | D24: 167.03 | E24: 161.62 | F24: 157.58 | G24: 152.17 | H24: 171.07 | I24: 176.48 | J24: 180.52 | K24: 172.45 | L24: 163 | M24: 0.57185
A25: 15 | B25: AEGISCHEM | C25: 183.2 | D25: 184.15 | E25: 180.65 | F25: 178.10 | G25: 174.60 | H25: 186.70 | I25: 190.20 | J25: 192.75 | K25: 187.65 | L25: 181.6 | M25: 2.6183
A26: 16 | B26: AJANTPHARM | C26: 1030.9 | D26: 1028.93 | E26: 1018.17 | F26: 1005.43 | G26: 994.67 | H26: 1041.67 | I26: 1052.43 | J26: 1065.17 | K26: 1039.7 | L26: 1016.2 | M26: 1.88817
A27: 17 | B27: AKZOINDIA | C27: 1905.3 | D27: 1925.90 | E27: 1865.40 | F27: 1825.50 | G27: 1765.00 | H27: 1965.80 | I27: 2026.30 | J27: 2066.20 | K27: 1986.4 | L27: 1886 | M27: 0.24021
A28: 18 | B28: APLLTD | C28: 533.05 | D28: 535.25 | E28: 526.80 | F28: 520.55 | G28: 512.10 | H28: 541.50 | I28: 549.95 | J28: 556.20 | K28: 543.7 | L28: 529 | M28: 0.15284
A29: 19 | B29: ALKEM | C29: 1942.6 | D29: 1940.05 | E29: 1922.60 | F29: 1902.60 | G29: 1885.15 | H29: 1960.05 | I29: 1977.50 | J29: 1997.50 | K29: 1957.5 | L29: 1920.05 | M29: 0.25259
A30: 20 | B30: ALBK | C30: 31.05 | D30: 31.15 | E30: 30.70 | F30: 30.35 | G30: 29.90 | H30: 31.50 | I30: 31.95 | J30: 32.30 | K30: 31.6 | L30: 30.8 | M30: 4.87725
A31: 21 | B31: ALLCARGO | C31: 108.55 | D31: 110.05 | E31: 105.20 | F31: 101.85 | G31: 97.00 | H31: 113.40 | I31: 118.25 | J31: 121.60 | K31: 114.9 | L31: 106.7 | M31: 11.44277
A32: 22 | B32: AMARAJABAT | C32: 728.15 | D32: 731.02 | E32: 717.33 | F32: 706.52 | G32: 692.83 | H32: 741.83 | I32: 755.52 | J32: 766.33 | K32: 744.7 | L32: 720.2 | M32: 10.35787
A33: 23 | B33: AMBUJACEM | C33: 215.75 | D33: 215.97 | E33: 212.48 | F33: 209.22 | G33: 205.73 | H33: 219.23 | I33: 222.72 | J33: 225.98 | K33: 219.45 | L33: 212.7 | M33: 27.01974
A34: 24 | B34: ANDHRABANK | C34: 18.7 | D34: 18.85 | E34: 18.45 | F34: 18.20 | G34: 17.80 | H34: 19.10 | I34: 19.50 | J34: 19.75 | K34: 19.25 | L34: 18.6 | M34: 3.84249
A35: 25 | B35: APOLLOHOSP | C35: 1453.1 | D35: 1458.23 | E35: 1428.07 | F35: 1403.03 | G35: 1372.87 | H35: 1483.27 | I35: 1513.43 | J35: 1538.47 | K35: 1488.4 | L35: 1433.2 | M35: 4.10553
A36: 26 | B36: APOLLOTYRE | C36: 186.25 | D36: 187.63 | E36: 183.87 | F36: 181.48 | G36: 177.72 | H36: 190.02 | I36: 193.78 | J36: 196.17 | K36: 191.4 | L36: 185.25 | M36: 18.78154
A37: 27 | B37: ASHOKLEY | C37: 75.15 | D37: 75.35 | E37: 73.10 | F37: 71.05 | G37: 68.80 | H37: 77.40 | I37: 79.65 | J37: 81.70 | K37: 77.6 | L37: 73.3 | M37: 636.35601
A38: 28 | B38: ASHOKA | C38: 109.9 | D38: 112.30 | E38: 106.60 | F38: 103.30 | G38: 97.60 | H38: 115.60 | I38: 121.30 | J38: 124.60 | K38: 118 | L38: 109 | M38: 5.51756
A39: 29 | B39: ASIANPAINT | C39: 1765.9 | D39: 1773.62 | E39: 1744.28 | F39: 1722.67 | G39: 1693.33 | H39: 1795.23 | I39: 1824.57 | J39: 1846.18 | K39: 1802.95 | L39: 1752 | M39: 20.28042
A40: 30 | B40: ASTERDM | C40: 122.75 | D40: 123.40 | E40: 121.40 | F40: 120.05 | G40: 118.05 | H40: 124.75 | I40: 126.75 | J40: 128.10 | K40: 125.4 | L40: 122.05 | M40: 0.25008
A41: 31 | B41: ASTRAZEN | C41: 2196.2 | D41: 2173.73 | E41: 2122.47 | F41: 2048.73 | G41: 1997.47 | H41: 2247.47 | I41: 2298.73 | J41: 2372.47 | K41: 2225 | L41: 2100 | M41: 0.45144
A42: 32 | B42: ASTRAL | C42: 1174.45 | D42: 1192.17 | E42: 1149.38 | F42: 1124.32 | G42: 1081.53 | H42: 1217.23 | I42: 1260.02 | J42: 1285.08 | K42: 1234.95 | L42: 1167.1 | M42: 3.31985
A43: 33 | B43: ATUL | C43: 3945.4 | D43: 3963.53 | E43: 3911.97 | F43: 3878.53 | G43: 3826.97 | H43: 3996.97 | I43: 4048.53 | J43: 4081.97 | K43: 4015.1 | L43: 3930.1 | M43: 0.09489
A44: 34 | B44: AUROPHARMA | C44: 619.05 | D44: 609.75 | E44: 598.20 | F44: 577.35 | G44: 565.80 | H44: 630.60 | I44: 642.15 | J44: 663.00 | K44: 621.3 | L44: 588.9 | M44: 36.66862
A45: 35 | B45: AVANTIFEED | C45: 378.3 | D45: 372.60 | E45: 362.60 | F45: 346.90 | G45: 336.90 | H45: 388.30 | I45: 398.30 | J45: 414.00 | K45: 382.6 | L45: 356.9 | M45: 9.28834
A46: 36 | B46: DMART | C46: 1880.25 | D46: 1881.45 | E46: 1838.90 | F46: 1797.55 | G46: 1755.00 | H46: 1922.80 | I46: 1965.35 | J46: 2006.70 | K46: 1924 | L46: 1840.1 | M46: 6.05198
A47: 37 | B47: AXISBANK | C47: 704.4 | D47: 713.30 | E47: 693.35 | F47: 682.30 | G47: 662.35 | H47: 724.35 | I47: 744.30 | J47: 755.35 | K47: 733.25 | L47: 702.25 | M47: 156.83656
A48: 38 | B48: BASF | C48: 1051.85 | D48: 1074.28 | E48: 1007.57 | F48: 963.28 | G48: 896.57 | H48: 1118.57 | I48: 1185.28 | J48: 1229.57 | K48: 1141 | L48: 1030 | M48: 0.80599
A49: 39 | B49: BEML | C49: 951.7 | D49: 942.53 | E49: 920.17 | F49: 888.63 | G49: 866.27 | H49: 974.07 | I49: 996.43 | J49: 1027.97 | K49: 964.9 | L49: 911 | M49: 17.47299
A50: 40 | B50: BSE | C50: 559.8 | D50: 555.27 | E50: 545.53 | F50: 531.27 | G50: 521.53 | H50: 569.53 | I50: 579.27 | J50: 593.53 | K50: 565 | L50: 541 | M50: 2.96721
A51: 41 | B51: BAJAJ-AUTO | C51: 2958.15 | D51: 2964.12 | E51: 2923.23 | F51: 2888.32 | G51: 2847.43 | H51: 2999.03 | I51: 3039.92 | J51: 3074.83 | K51: 3005 | L51: 2929.2 | M51: 4.79273
A52: 42 | B52: BAJAJCON | C52: 256.15 | D52: 258.50 | E52: 251.10 | F52: 246.05 | G52: 238.65 | H52: 263.55 | I52: 270.95 | J52: 276.00 | K52: 265.9 | L52: 253.45 | M52: 0.52741
A53: 43 | B53: BAJAJELEC | C53: 403.1 | D53: 407.10 | E53: 396.70 | F53: 390.30 | G53: 379.90 | H53: 413.50 | I53: 423.90 | J53: 430.30 | K53: 417.5 | L53: 400.7 | M53: 0.63266
A54: 44 | B54: BAJFINANCE | C54: 3961.75 | D54: 3971.25 | E54: 3917.50 | F54: 3873.25 | G54: 3819.50 | H54: 4015.50 | I54: 4069.25 | J54: 4113.50 | K54: 4025 | L54: 3927 | M54: 21.89604
A55: 45 | B55: BAJAJFINSV | C55: 8240.7 | D55: 8257.50 | E55: 8140.25 | F55: 8039.80 | G55: 7922.55 | H55: 8357.95 | I55: 8475.20 | J55: 8575.65 | K55: 8374.75 | L55: 8157.05 | M55: 3.76734
A56: 46 | B56: BAJAJHLDNG | C56: 3688.05 | D56: 3606.02 | E56: 3502.03 | F56: 3316.02 | G56: 3212.03 | H56: 3792.03 | I56: 3896.02 | J56: 4082.03 | K56: 3710 | L56: 3420 | M56: 0.6096
A57: 47 | B57: BALKRISIND | C57: 789.3 | D57: 793.93 | E57: 777.87 | F57: 766.43 | G57: 750.37 | H57: 805.37 | I57: 821.43 | J57: 832.87 | K57: 810 | L57: 782.5 | M57: 2.5072
A58: 48 | B58: BALMLAWRIE | C58: 173.7 | D58: 174.20 | E58: 172.45 | F58: 171.20 | G58: 169.45 | H58: 175.45 | I58: 177.20 | J58: 178.45 | K58: 175.95 | L58: 172.95 | M58: 0.76778
A59: 49 | B59: BALRAMCHIN | C59: 168.05 | D59: 165.37 | E59: 161.73 | F59: 155.42 | G59: 151.78 | H59: 171.68 | I59: 175.32 | J59: 181.63 | K59: 169 | L59: 159.05 | M59: 27.18161
A60: 50 | B60: BANDHANBNK | C60: 506.15 | D60: 513.82 | E60: 493.58 | F60: 481.02 | G60: 460.78 | H60: 526.38 | I60: 546.62 | J60: 559.18 | K60: 534.05 | L60: 501.25 | M60: 5.56392
A61: 51 | B61: BANKBARODA | C61: 99.2 | D61: 99.85 | E61: 98.10 | F61: 97.00 | G61: 95.25 | H61: 100.95 | I61: 102.70 | J61: 103.80 | K61: 101.6 | L61: 98.75 | M61: 233.31962
A62: 52 | B62: BANKINDIA | C62: 70.6 | D62: 71.05 | E62: 69.25 | F62: 67.90 | G62: 66.10 | H62: 72.40 | I62: 74.20 | J62: 75.55 | K62: 72.85 | L62: 69.7 | M62: 116.93496
A63: 53 | B63: MAHABANK | C63: 11.9 | D63: 11.98 | E63: 11.82 | F63: 11.73 | G63: 11.57 | H63: 12.07 | I63: 12.23 | J63: 12.32 | K63: 12.15 | L63: 11.9 | M63: 2.9652
A64: 54 | B64: BATAINDIA | C64: 1721.05 | D64: 1725.65 | E64: 1696.40 | F64: 1671.75 | G64: 1642.50 | H64: 1750.30 | I64: 1779.55 | J64: 1804.20 | K64: 1754.9 | L64: 1701 | M64: 7.6704
A65: 55 | B65: BERGEPAINT | C65: 427 | D65: 428.88 | E65: 422.22 | F65: 417.43 | G65: 410.77 | H65: 433.67 | I65: 440.33 | J65: 445.12 | K65: 435.55 | L65: 424.1 | M65: 15.8186
A66: 56 | B66: BDL | C66: 310.5 | D66: 308.00 | E66: 302.00 | F66: 293.50 | G66: 287.50 | H66: 316.50 | I66: 322.50 | J66: 331.00 | K66: 314 | L66: 299.5 | M66: 0.84862
A67: 57 | B67: BEL | C67: 111.85 | D67: 111.87 | E67: 110.48 | F67: 109.12 | G67: 107.73 | H67: 113.23 | I67: 114.62 | J67: 115.98 | K67: 113.25 | L67: 110.5 | M67: 111.7045
A68: 58 | B68: BHARATFORG | C68: 460.2 | D68: 458.72 | E68: 450.48 | F68: 440.77 | G68: 432.53 | H68: 468.43 | I68: 476.67 | J68: 486.38 | K68: 466.95 | L68: 449 | M68: 17.95514
A69: 59 | B69: BHEL | C69: 51.9 | D69: 51.88 | E69: 50.82 | F69: 49.73 | G69: 48.67 | H69: 52.97 | I69: 54.03 | J69: 55.12 | K69: 52.95 | L69: 50.8 | M69: 142.63656
A70: 60 | B70: BPCL | C70: 461.3 | D70: 459.35 | E70: 443.95 | F70: 426.60 | G70: 411.20 | H70: 476.70 | I70: 492.10 | J70: 509.45 | K70: 474.75 | L70: 442 | M70: 313.33076
A71: 61 | B71: BHARTIARTL | C71: 348.65 | D71: 348.68 | E71: 345.37 | F71: 342.08 | G71: 338.77 | H71: 351.97 | I71: 355.28 | J71: 358.57 | K71: 352 | L71: 345.4 | M71: 47.22666
A72: 62 | B72: INFRATEL | C72: 257.65 | D72: 260.35 | E72: 251.95 | F72: 246.25 | G72: 237.85 | H72: 266.05 | I72: 274.45 | J72: 280.15 | K72: 268.75 | L72: 254.65 | M72: 27.7408
A73: 63 | B73: BIOCON | C73: 224.4 | D73: 225.47 | E73: 222.93 | F73: 221.47 | G73: 218.93 | H73: 226.93 | I73: 229.47 | J73: 230.93 | K73: 228 | L73: 224 | M73: 20.27112
A74: 64 | B74: BIRLACORPN | C74: 614.8 | D74: 620.63 | E74: 599.27 | F74: 583.73 | G74: 562.37 | H74: 636.17 | I74: 657.53 | J74: 673.07 | K74: 642 | L74: 605.1 | M74: 0.80952
A75: 65 | B75: BLISSGVS | C75: 105.5 | D75: 106.88 | E75: 103.87 | F75: 102.23 | G75: 99.22 | H75: 108.52 | I75: 111.53 | J75: 113.17 | K75: 109.9 | L75: 105.25 | M75: 2.3389
A76: 66 | B76: BLUEDART | C76: 2378.15 | D76: 2370.87 | E76: 2319.78 | F76: 2261.42 | G76: 2210.33 | H76: 2429.23 | I76: 2480.32 | J76: 2538.68 | K76: 2421.95 | L76: 2312.5 | M76: 0.19912
A77: 67 | B77: BLUESTARCO | C77: 795.7 | D77: 794.68 | E77: 787.07 | F77: 778.43 | G77: 770.82 | H77: 803.32 | I77: 810.93 | J77: 819.57 | K77: 802.3 | L77: 786.05 | M77: 0.42542
A78: 68 | B78: BBTC | C78: 1241.25 | D78: 1248.50 | E78: 1210.00 | F78: 1178.75 | G78: 1140.25 | H78: 1279.75 | I78: 1318.25 | J78: 1349.50 | K78: 1287 | L78: 1217.25 | M78: 2.30266
A79: 69 | B79: BOMDYEING | C79: 88.8 | D79: 89.30 | E79: 87.70 | F79: 86.60 | G79: 85.00 | H79: 90.40 | I79: 92.00 | J79: 93.10 | K79: 90.9 | L79: 88.2 | M79: 13.51661
A80: 70 | B80: BOSCHLTD | C80: 14575.65 | D80: 14701.55 | E80: 14374.10 | F80: 14172.55 | G80: 13845.10 | H80: 14903.10 | I80: 15230.55 | J80: 15432.10 | K80: 15029 | L80: 14500 | M80: 0.18597
A81: 71 | B81: BRIGADE | C81: 196.7 | D81: 197.43 | E81: 191.37 | F81: 186.03 | G81: 179.97 | H81: 202.77 | I81: 208.83 | J81: 214.17 | K81: 203.5 | L81: 192.1 | M81: 3.28304
A82: 72 | B82: BRITANNIA | C82: 3080.2 | D82: 3083.40 | E82: 3051.80 | F82: 3023.40 | G82: 2991.80 | H82: 3111.80 | I82: 3143.40 | J82: 3171.80 | K82: 3115 | L82: 3055 | M82: 8.09417
A83: 73 | B83: CARERATING | C83: 533.85 | D83: 534.78 | E83: 529.07 | F83: 524.28 | G83: 518.57 | H83: 539.57 | I83: 545.28 | J83: 550.07 | K83: 540.5 | L83: 530 | M83: 0.5026
A84: 74 | B84: CCL | C84: 241.45 | D84: 241.22 | E84: 238.58 | F84: 235.72 | G84: 233.08 | H84: 244.08 | I84: 246.72 | J84: 249.58 | K84: 243.85 | L84: 238.35 | M84: 0.25596
A85: 75 | B85: CESC | C85: 789.65 | D85: 798.23 | E85: 773.02 | F85: 756.38 | G85: 731.17 | H85: 814.87 | I85: 840.08 | J85: 856.72 | K85: 823.45 | L85: 781.6 | M85: 8.47875
A86: 76 | B86: CGPOWER | C86: 14.55 | D86: 14.33 | E86: 14.12 | F86: 13.68 | G86: 13.47 | H86: 14.77 | I86: 14.98 | J86: 15.42 | K86: 14.55 | L86: 13.9 | M86: 8.08359
A87: 77 | B87: CRISIL | C87: 1319.9 | D87: 1328.33 | E87: 1292.67 | F87: 1265.43 | G87: 1229.77 | H87: 1355.57 | I87: 1391.23 | J87: 1418.47 | K87: 1364 | L87: 1301.1 | M87: 0.41441
A88: 78 | B88: CADILAHC | C88: 253.95 | D88: 250.78 | E88: 246.37 | F88: 238.78 | G88: 234.37 | H88: 258.37 | I88: 262.78 | J88: 270.37 | K88: 255.2 | L88: 243.2 | M88: 17.90968
A89: 79 | B89: CANFINHOME | C89: 415.75 | D89: 411.70 | E89: 403.60 | F89: 391.45 | G89: 383.35 | H89: 423.85 | I89: 431.95 | J89: 444.10 | K89: 419.8 | L89: 399.55 | M89: 5.81711
A90: 80 | B90: CANBK | C90: 203.25 | D90: 205.05 | E90: 199.40 | F90: 195.55 | G90: 189.90 | H90: 208.90 | I90: 214.55 | J90: 218.40 | K90: 210.7 | L90: 201.2 | M90: 87.09233
A91: 81 | B91: CAPLIPOINT | C91: 422.15 | D91: 423.32 | E91: 416.83 | F91: 411.52 | G91: 405.03 | H91: 428.63 | I91: 435.12 | J91: 440.43 | K91: 429.8 | L91: 418 | M91: 0.17521
A92: 82 | B92: CARBORUNIV | C92: 322.3 | D92: 325.87 | E92: 316.93 | F92: 311.57 | G92: 302.63 | H92: 331.23 | I92: 340.17 | J92: 345.53 | K92: 334.8 | L92: 320.5 | M92: 0.93939
A93: 83 | B93: CASTROLIND | C93: 133.45 | D93: 133.60 | E93: 131.35 | F93: 129.25 | G93: 127.00 | H93: 135.70 | I93: 137.95 | J93: 140.05 | K93: 135.85 | L93: 131.5 | M93: 12.54486
A94: 84 | B94: CEATLTD | C94: 978.85 | D94: 974.28 | E94: 960.57 | F94: 942.28 | G94: 928.57 | H94: 992.57 | I94: 1006.28 | J94: 1024.57 | K94: 988 | L94: 956 | M94: 2.7188
A95: 85 | B95: CENTRALBK | C95: 19.95 | D95: 19.98 | E95: 19.67 | F95: 19.38 | G95: 19.07 | H95: 20.27 | I95: 20.58 | J95: 20.87 | K95: 20.3 | L95: 19.7 | M95: 3.58105
A96: 86 | B96: CDSL | C96: 210.25 | D96: 212.42 | E96: 205.83 | F96: 201.42 | G96: 194.83 | H96: 216.83 | I96: 223.42 | J96: 227.83 | K96: 219 | L96: 208 | M96: 2.77774
A97: 87 | B97: CENTURYPLY | C97: 149.9 | D97: 149.48 | E97: 145.62 | F97: 141.33 | G97: 137.47 | H97: 153.77 | I97: 157.63 | J97: 161.92 | K97: 153.35 | L97: 145.2 | M97: 2.29685
A98: 88 | B98: CERA | C98: 2747.4 | D98: 2729.33 | E98: 2683.72 | F98: 2620.03 | G98: 2574.42 | H98: 2793.02 | I98: 2838.63 | J98: 2902.32 | K98: 2774.95 | L98: 2665.65 | M98: 0.13268
A99: 89 | B99: CHAMBLFERT | C99: 167.3 | D99: 168.47 | E99: 162.98 | F99: 158.67 | G99: 153.18 | H99: 172.78 | I99: 178.27 | J99: 182.58 | K99: 173.95 | L99: 164.15 | M99: 6.05705
A100: 90 | B100: CHENNPETRO | C100: 171.4 | D100: 172.93 | E100: 168.97 | F100: 166.53 | G100: 162.57 | H100: 175.37 | I100: 179.33 | J100: 181.77 | K100: 176.9 | L100: 170.5 | M100: 1.76142
A101: 91 | B101: CHOLAHLDNG | C101: 487.75 | D101: 488.10 | E101: 476.20 | F101: 464.65 | G101: 452.75 | H101: 499.65 | I101: 511.55 | J101: 523.10 | K101: 500 | L101: 476.55 | M101: 0.26238
A102: 92 | B102: CHOLAFIN | C102: 303.15 | D102: 304.13 | E102: 294.62 | F102: 286.08 | G102: 276.57 | H102: 312.67 | I102: 322.18 | J102: 330.72 | K102: 313.65 | L102: 295.6 | M102: 19.83072
A103: 93 | B103: CIPLA | C103: 450.25 | D103: 450.63 | E103: 446.22 | F103: 442.18 | G103: 437.77 | H103: 454.67 | I103: 459.08 | J103: 463.12 | K103: 455.05 | L103: 446.6 | M103: 19.59468
A104: 94 | B104: CUB | C104: 222.45 | D104: 220.47 | E104: 217.03 | F104: 211.62 | G104: 208.18 | H104: 225.88 | I104: 229.32 | J104: 234.73 | K104: 223.9 | L104: 215.05 | M104: 14.35545
A105: 95 | B105: COALINDIA | C105: 198.15 | D105: 200.32 | E105: 194.93 | F105: 191.72 | G105: 186.33 | H105: 203.53 | I105: 208.92 | J105: 212.13 | K105: 205.7 | L105: 197.1 | M105: 96.62821
A106: 96 | B106: COCHINSHIP | C106: 350.95 | D106: 349.70 | E106: 345.40 | F106: 339.85 | G106: 335.55 | H106: 355.25 | I106: 359.55 | J106: 365.10 | K106: 354 | L106: 344.15 | M106: 0.74109
A107: 97 | B107: COFFEEDAY | C107: 58.9 | D107: 58.90 | E107: 58.90 | F107: 58.90 | G107: 58.90 | H107: 58.90 | I107: 58.90 | J107: 58.90 | K107: 58.9 | L107: 58.9 | M107: 2.61037
A108: 98 | B108: COLPAL | C108: 1518.4 | D108: 1524.83 | E108: 1503.62 | F108: 1488.83 | G108: 1467.62 | H108: 1539.62 | I108: 1560.83 | J108: 1575.62 | K108: 1546.05 | L108: 1510.05 | M108: 8.17807
A109: 99 | B109: CONCOR | C109: 581.1 | D109: 582.17 | E109: 572.43 | F109: 563.77 | G109: 554.03 | H109: 590.83 | I109: 600.57 | J109: 609.23 | K109: 591.9 | L109: 573.5 | M109: 20.86193
A110: 100 | B110: COROMANDEL | C110: 417.35 | D110: 421.18 | E110: 409.57 | F110: 401.78 | G110: 390.17 | H110: 428.97 | I110: 440.58 | J110: 448.37 | K110: 432.8 | L110: 413.4 | M110: 6.24606
A111: 101 | B111: CORPBANK | C111: 16.55 | D111: 16.63 | E111: 16.42 | F111: 16.28 | G111: 16.07 | H111: 16.77 | I111: 16.98 | J111: 17.12 | K111: 16.85 | L111: 16.5 | M111: 2.88404
A112: 102 | B112: COX&KINGS | C112: 3.8 | D112: 3.80 | E112: 3.80 | F112: 3.80 | G112: 3.80 | H112: 3.80 | I112: 3.80 | J112: 3.80 | K112: 3.8 | L112: 3.8 | M112: 3.82524
A113: 103 | B113: CREDITACC | C113: 662.65 | D113: 667.82 | E113: 649.28 | F113: 635.92 | G113: 617.38 | H113: 681.18 | I113: 699.72 | J113: 713.08 | K113: 686.35 | L113: 654.45 | M113: 0.52311
A114: 104 | B114: CROMPTON | C114: 264 | D114: 263.85 | E114: 258.85 | F114: 253.70 | G114: 248.70 | H114: 269.00 | I114: 274.00 | J114: 279.15 | K114: 268.85 | L114: 258.7 | M114: 6.82088
A115: 105 | B115: CUMMINSIND | C115: 606.85 | D115: 610.83 | E115: 594.67 | F115: 582.48 | G115: 566.32 | H115: 623.02 | I115: 639.18 | J115: 651.37 | K115: 627 | L115: 598.65 | M115: 6.43469
A116: 106 | B116: CYIENT | C116: 465.3 | D116: 469.43 | E116: 458.87 | F116: 452.43 | G116: 441.87 | H116: 475.87 | I116: 486.43 | J116: 492.87 | K116: 480 | L116: 463 | M116: 0.95329
A117: 107 | B117: DBCORP | C117: 143.7 | D117: 144.73 | E117: 139.57 | F117: 135.43 | G117: 130.27 | H117: 148.87 | I117: 154.03 | J117: 158.17 | K117: 149.9 | L117: 140.6 | M117: 3.26311
A118: 108 | B118: DCBBANK | C118: 210.35 | D118: 211.45 | E118: 206.90 | F118: 203.45 | G118: 198.90 | H118: 214.90 | I118: 219.45 | J118: 222.90 | K118: 216 | L118: 208 | M118: 9.65038
A119: 109 | B119: DCMSHRIRAM | C119: 412.55 | D119: 411.78 | E119: 405.77 | F119: 398.98 | G119: 392.97 | H119: 418.57 | I119: 424.58 | J119: 431.37 | K119: 417.8 | L119: 405 | M119: 1.88735
A120: 110 | B120: DLF | C120: 167.25 | D120: 167.95 | E120: 164.55 | F120: 161.85 | G120: 158.45 | H120: 170.65 | I120: 174.05 | J120: 176.75 | K120: 171.35 | L120: 165.25 | M120: 79.08403
A121: 111 | B121: DABUR | C121: 451.9 | D121: 447.15 | E121: 440.75 | F121: 429.60 | G121: 423.20 | H121: 458.30 | I121: 464.70 | J121: 475.85 | K121: 453.55 | L121: 436 | M121: 30.51265
A122: 112 | B122: DEEPAKFERT | C122: 107.65 | D122: 104.07 | E122: 97.63 | F122: 87.62 | G122: 81.18 | H122: 114.08 | I122: 120.52 | J122: 130.53 | K122: 110.5 | L122: 94.05 | M122: 18.23588
A123: 113 | B123: DEEPAKNTR | C123: 300.6 | D123: 301.10 | E123: 296.70 | F123: 292.80 | G123: 288.40 | H123: 305.00 | I123: 309.40 | J123: 313.30 | K123: 305.5 | L123: 297.2 | M123: 2.82236
A124: 114 | B124: DELTACORP | C124: 197.7 | D124: 193.87 | E124: 186.88 | F124: 176.07 | G124: 169.08 | H124: 204.68 | I124: 211.67 | J124: 222.48 | K124: 200.85 | L124: 183.05 | M124: 15.93579
A125: 115 | B125: DHFL | C125: 44.95 | D125: 44.23 | E125: 42.52 | F125: 40.08 | G125: 38.37 | H125: 46.67 | I125: 48.38 | J125: 50.82 | K125: 45.95 | L125: 41.8 | M125: 273.3595
A126: 116 | B126: DBL | C126: 438.25 | D126: 443.13 | E126: 430.67 | F126: 423.08 | G126: 410.62 | H126: 450.72 | I126: 463.18 | J126: 470.77 | K126: 455.6 | L126: 435.55 | M126: 2.22865
A127: 117 | B127: DISHTV | C127: 21.45 | D127: 21.30 | E127: 20.15 | F127: 18.85 | G127: 17.70 | H127: 22.60 | I127: 23.75 | J127: 25.05 | K127: 22.45 | L127: 20 | M127: 520.4844
A128: 118 | B128: DCAL | C128: 176.55 | D128: 177.42 | E128: 174.13 | F128: 171.72 | G128: 168.43 | H128: 179.83 | I128: 183.12 | J128: 185.53 | K128: 180.7 | L128: 175 | M128: 0.66402
A129: 119 | B129: DIVISLAB | C129: 1629.65 | D129: 1620.78 | E129: 1596.57 | F129: 1563.48 | G129: 1539.27 | H129: 1653.87 | I129: 1678.08 | J129: 1711.17 | K129: 1645 | L129: 1587.7 | M129: 6.92476
A130: 120 | B130: DIXON | C130: 2831.35 | D130: 2861.10 | E130: 2780.20 | F130: 2729.05 | G130: 2648.15 | H130: 2912.25 | I130: 2993.15 | J130: 3044.30 | K130: 2942 | L130: 2809.95 | M130: 0.08617
A131: 121 | B131: LALPATHLAB | C131: 1403.4 | D131: 1404.50 | E131: 1375.05 | F131: 1346.70 | G131: 1317.25 | H131: 1432.85 | I131: 1462.30 | J131: 1490.65 | K131: 1433.95 | L131: 1376.15 | M131: 1.30645
A132: 122 | B132: DRREDDY | C132: 2785.25 | D132: 2781.75 | E132: 2718.50 | F132: 2651.75 | G132: 2588.50 | H132: 2848.50 | I132: 2911.75 | J132: 2978.50 | K132: 2845 | L132: 2715 | M132: 6.7965
A133: 123 | B133: EIDPARRY | C133: 167.25 | D133: 169.15 | E133: 164.25 | F133: 161.25 | G133: 156.35 | H133: 172.15 | I133: 177.05 | J133: 180.05 | K133: 174.05 | L133: 166.15 | M133: 1.20519
A134: 124 | B134: EIHOTEL | C134: 182.8 | D134: 181.53 | E134: 177.57 | F134: 172.33 | G134: 168.37 | H134: 186.77 | I134: 190.73 | J134: 195.97 | K134: 185.5 | L134: 176.3 | M134: 1.60585
A135: 125 | B135: EDELWEISS | C135: 115.5 | D135: 117.92 | E135: 112.23 | F135: 108.97 | G135: 103.28 | H135: 121.18 | I135: 126.87 | J135: 130.13 | K135: 123.6 | L135: 114.65 | M135: 38.38539
A136: 126 | B136: EICHERMOT | C136: 18434.25 | D136: 18651.42 | E136: 17737.83 | F136: 17041.42 | G136: 16127.83 | H136: 19347.83 | I136: 20261.42 | J136: 20957.83 | K136: 19565 | L136: 17955 | M136: 2.8601
A137: 127 | B137: ELGIEQUIP | C137: 274 | D137: 272.50 | E137: 267.50 | F137: 261.00 | G137: 256.00 | H137: 279.00 | I137: 284.00 | J137: 290.50 | K137: 277.5 | L137: 266 | M137: 0.57896
A138: 128 | B138: EMAMILTD | C138: 331.2 | D138: 329.10 | E138: 317.20 | F138: 303.20 | G138: 291.30 | H138: 343.10 | I138: 355.00 | J138: 369.00 | K138: 341 | L138: 315.1 | M138: 4.01266
A139: 129 | B139: ENDURANCE | C139: 999.4 | D139: 991.53 | E139: 974.07 | F139: 948.73 | G139: 931.27 | H139: 1016.87 | I139: 1034.33 | J139: 1059.67 | K139: 1009 | L139: 966.2 | M139: 0.38414
A140: 130 | B140: ENGINERSIN | C140: 112.2 | D140: 113.97 | E140: 109.28 | F140: 106.37 | G140: 101.68 | H140: 116.88 | I140: 121.57 | J140: 124.48 | K140: 118.65 | L140: 111.05 | M140: 34.94775
A141: 131 | B141: EQUITAS | C141: 103.7 | D141: 103.33 | E141: 101.67 | F141: 99.63 | G141: 97.97 | H141: 105.37 | I141: 107.03 | J141: 109.07 | K141: 105 | L141: 101.3 | M141: 76.93129
A142: 132 | B142: ERIS | C142: 442.2 | D142: 438.63 | E142: 424.12 | F142: 406.03 | G142: 391.52 | H142: 456.72 | I142: 471.23 | J142: 489.32 | K142: 453.15 | L142: 420.55 | M142: 0.48759
A143: 133 | B143: ESCORTS | C143: 605.1 | D143: 613.15 | E143: 594.60 | F143: 584.10 | G143: 565.55 | H143: 623.65 | I143: 642.20 | J143: 652.70 | K143: 631.7 | L143: 602.65 | M143: 52.32659
A144: 134 | B144: ESSELPACK | C144: 115.45 | D144: 115.33 | E144: 114.12 | F144: 112.78 | G144: 111.57 | H144: 116.67 | I144: 117.88 | J144: 119.22 | K144: 116.55 | L144: 114 | M144: 0.86883
A145: 135 | B145: EXIDEIND | C145: 197.25 | D145: 200.70 | E145: 192.65 | F145: 188.05 | G145: 180.00 | H145: 205.30 | I145: 213.35 | J145: 217.95 | K145: 208.75 | L145: 196.1 | M145: 108.27705
A146: 136 | B146: FDC | C146: 175.65 | D146: 176.62 | E146: 173.43 | F146: 171.22 | G146: 168.03 | H146: 178.83 | I146: 182.02 | J146: 184.23 | K146: 179.8 | L146: 174.4 | M146: 0.16841
A147: 137 | B147: FEDERALBNK | C147: 94.3 | D147: 95.10 | E147: 93.00 | F147: 91.70 | G147: 89.60 | H147: 96.40 | I147: 98.50 | J147: 99.80 | K147: 97.2 | L147: 93.8 | M147: 92.30752
A148: 138 | B148: FINEORG | C148: 1619.65 | D148: 1600.55 | E148: 1561.10 | F148: 1502.55 | G148: 1463.10 | H148: 1659.10 | I148: 1698.55 | J148: 1757.10 | K148: 1640 | L148: 1542 | M148: 0.11041
A149: 139 | B149: FINCABLES | C149: 412.6 | D149: 412.32 | E149: 405.63 | F149: 398.67 | G149: 391.98 | H149: 419.28 | I149: 425.97 | J149: 432.93 | K149: 419 | L149: 405.35 | M149: 0.25973
A150: 140 | B150: FINPIPE | C150: 601.1 | D150: 605.37 | E150: 588.73 | F150: 576.37 | G150: 559.73 | H150: 617.73 | I150: 634.37 | J150: 646.73 | K150: 622 | L150: 593 | M150: 2.34539
A151: 141 | B151: FSL | C151: 51.6 | D151: 51.98 | E151: 50.72 | F151: 49.83 | G151: 48.57 | H151: 52.87 | I151: 54.13 | J151: 55.02 | K151: 53.25 | L151: 51.1 | M151: 21.00325
A152: 142 | B152: FORTIS | C152: 136.35 | D152: 136.37 | E152: 134.38 | F152: 132.42 | G152: 130.43 | H152: 138.33 | I152: 140.32 | J152: 142.28 | K152: 138.35 | L152: 134.4 | M152: 14.88557
A153: 143 | B153: FCONSUMER | C153: 30.45 | D153: 30.52 | E153: 29.43 | F153: 28.42 | G153: 27.33 | H153: 31.53 | I153: 32.62 | J153: 33.63 | K153: 31.6 | L153: 29.5 | M153: 21.88143
A154: 144 | B154: FLFL | C154: 461.8 | D154: 462.45 | E154: 449.90 | F154: 438.00 | G154: 425.45 | H154: 474.35 | I154: 486.90 | J154: 498.80 | K154: 475 | L154: 450.55 | M154: 0.23908
A155: 145 | B155: FRETAIL | C155: 398.75 | D155: 399.92 | E155: 393.83 | F155: 388.92 | G155: 382.83 | H155: 404.83 | I155: 410.92 | J155: 415.83 | K155: 406 | L155: 395 | M155: 3.23662
A156: 146 | B156: GAIL | C156: 139.25 | D156: 139.38 | E156: 136.17 | F156: 133.08 | G156: 129.87 | H156: 142.47 | I156: 145.68 | J156: 148.77 | K156: 142.6 | L156: 136.3 | M156: 83.62288
A157: 147 | B157: GEPIL | C157: 823.55 | D157: 829.67 | E157: 805.88 | F157: 788.22 | G157: 764.43 | H157: 847.33 | I157: 871.12 | J157: 888.78 | K157: 853.45 | L157: 812 | M157: 0.29056
A158: 148 | B158: GET&D | C158: 175.7 | D158: 175.50 | E158: 170.95 | F158: 166.20 | G158: 161.65 | H158: 180.25 | I158: 184.80 | J158: 189.55 | K158: 180.05 | L158: 170.75 | M158: 0.45477
A159: 149 | B159: GHCL | C159: 221.3 | D159: 219.87 | E159: 214.98 | F159: 208.67 | G159: 203.78 | H159: 226.18 | I159: 231.07 | J159: 237.38 | K159: 224.75 | L159: 213.55 | M159: 1.50043
A160: 150 | B160: GMRINFRA | C160: 17.2 | D160: 17.05 | E160: 16.70 | F160: 16.20 | G160: 15.85 | H160: 17.55 | I160: 17.90 | J160: 18.40 | K160: 17.4 | L160: 16.55 | M160: 206.83639
A161: 151 | B161: GALAXYSURF | C161: 1443.6 | D161: 1441.70 | E161: 1426.40 | F161: 1409.20 | G161: 1393.90 | H161: 1458.90 | I161: 1474.20 | J161: 1491.40 | K161: 1457 | L161: 1424.5 | M161: 0.17892
A162: 152 | B162: GDL | C162: 111.55 | D162: 112.13 | E162: 109.52 | F162: 107.48 | G162: 104.87 | H162: 114.17 | I162: 116.78 | J162: 118.82 | K162: 114.75 | L162: 110.1 | M162: 0.81746
A163: 153 | B163: GAYAPROJ | C163: 109.2 | D163: 108.03 | E163: 105.62 | F163: 102.03 | G163: 99.62 | H163: 111.62 | I163: 114.03 | J163: 117.62 | K163: 110.45 | L163: 104.45 | M163: 0.35677
A164: 154 | B164: GICRE | C164: 197.4 | D164: 198.67 | E164: 193.83 | F164: 190.27 | G164: 185.43 | H164: 202.23 | I164: 207.07 | J164: 210.63 | K164: 203.5 | L164: 195.1 | M164: 5.85024
A165: 155 | B165: GILLETTE | C165: 7184.15 | D165: 7178.72 | E165: 7130.43 | F165: 7076.72 | G165: 7028.43 | H165: 7232.43 | I165: 7280.72 | J165: 7334.43 | K165: 7227 | L165: 7125 | M165: 0.11392
A166: 156 | B166: GSKCONS | C166: 8799.45 | D166: 8754.47 | E166: 8645.98 | F166: 8492.52 | G166: 8384.03 | H166: 8907.93 | I166: 9016.42 | J166: 9169.88 | K166: 8862.95 | L166: 8601 | M166: 0.09902
A167: 157 | B167: GLAXO | C167: 1466.1 | D167: 1455.70 | E167: 1438.40 | F167: 1410.70 | G167: 1393.40 | H167: 1483.40 | I167: 1500.70 | J167: 1528.40 | K167: 1473 | L167: 1428 | M167: 0.48886
A168: 158 | B168: GLENMARK | C168: 348.9 | D168: 351.03 | E168: 345.87 | F168: 342.83 | G168: 337.67 | H168: 354.07 | I168: 359.23 | J168: 362.27 | K168: 356.2 | L168: 348 | M168: 9.68546
A169: 159 | B169: GODFRYPHLP | C169: 987.45 | D169: 994.67 | E169: 975.83 | F169: 964.22 | G169: 945.38 | H169: 1006.28 | I169: 1025.12 | J169: 1036.73 | K169: 1013.5 | L169: 983.05 | M169: 0.72143
A170: 160 | B170: GODREJAGRO | C170: 488.25 | D170: 486.67 | E170: 480.68 | F170: 473.12 | G170: 467.13 | H170: 494.23 | I170: 500.22 | J170: 507.78 | K170: 492.65 | L170: 479.1 | M170: 0.47684
A171: 161 | B171: GODREJCP | C171: 664 | D171: 665.27 | E171: 656.03 | F171: 648.07 | G171: 638.83 | H171: 673.23 | I171: 682.47 | J171: 690.43 | K171: 674.5 | L171: 657.3 | M171: 8.88965
A172: 162 | B172: GODREJIND | C172: 423.2 | D172: 423.77 | E172: 416.93 | F172: 410.67 | G172: 403.83 | H172: 430.03 | I172: 436.87 | J172: 443.13 | K172: 430.6 | L172: 417.5 | M172: 1.16234
A173: 163 | B173: GODREJPROP | C173: 1009.85 | D173: 1009.58 | E173: 988.27 | F173: 966.68 | G173: 945.37 | H173: 1031.17 | I173: 1052.48 | J173: 1074.07 | K173: 1030.9 | L173: 988 | M173: 2.77599
A174: 164 | B174: GRANULES | C174: 103.1 | D174: 104.55 | E174: 101.35 | F174: 99.60 | G174: 96.40 | H174: 106.30 | I174: 109.50 | J174: 111.25 | K174: 107.75 | L174: 102.8 | M174: 7.38906
A175: 165 | B175: GRAPHITE | C175: 348.1 | D175: 348.42 | E175: 332.03 | F175: 315.97 | G175: 299.58 | H175: 364.48 | I175: 380.87 | J175: 396.93 | K175: 364.8 | L175: 332.35 | M175: 53.99421
A176: 166 | B176: GRASIM | C176: 749.7 | D176: 751.88 | E176: 738.07 | F176: 726.43 | G176: 712.62 | H176: 763.52 | I176: 777.33 | J176: 788.97 | K176: 765.7 | L176: 740.25 | M176: 13.87878
A177: 167 | B177: GESHIP | C177: 270 | D177: 269.08 | E177: 266.97 | F177: 263.93 | G177: 261.82 | H177: 272.12 | I177: 274.23 | J177: 277.27 | K177: 271.2 | L177: 266.05 | M177: 1.92102
A178: 168 | B178: GREAVESCOT | C178: 146.9 | D178: 148.52 | E178: 144.03 | F178: 141.17 | G178: 136.68 | H178: 151.38 | I178: 155.87 | J178: 158.73 | K178: 153 | L178: 145.65 | M178: 4.39741
A179: 169 | B179: GRINDWELL | C179: 631.8 | D179: 634.75 | E179: 619.50 | F179: 607.20 | G179: 591.95 | H179: 647.05 | I179: 662.30 | J179: 674.60 | K179: 650 | L179: 622.45 | M179: 0.11474
A180: 170 | B180: GRUH | C180: 268 | D180: 272.15 | E180: 262.05 | F180: 256.10 | G180: 246.00 | H180: 278.10 | I180: 288.20 | J180: 294.15 | K180: 282.25 | L180: 266.2 | M180: 16.30544
A181: 171 | B181: GUJALKALI | C181: 481.75 | D181: 480.05 | E181: 476.55 | F181: 471.35 | G181: 467.85 | H181: 485.25 | I181: 488.75 | J181: 493.95 | K181: 483.55 | L181: 474.85 | M181: 0.60859
A182: 172 | B182: GUJGASLTD | C182: 178.55 | D182: 179.98 | E182: 175.57 | F182: 172.58 | G182: 168.17 | H182: 182.97 | I182: 187.38 | J182: 190.37 | K182: 184.4 | L182: 177 | M182: 1.78488
A183: 173 | B183: GMDCLTD | C183: 66.75 | D183: 66.50 | E183: 65.85 | F183: 64.95 | G183: 64.30 | H183: 67.40 | I183: 68.05 | J183: 68.95 | K183: 67.15 | L183: 65.6 | M183: 1.3966
A184: 174 | B184: GNFC | C184: 213.2 | D184: 210.20 | E184: 203.50 | F184: 193.80 | G184: 187.10 | H184: 219.90 | I184: 226.60 | J184: 236.30 | K184: 216.9 | L184: 200.5 | M184: 5.54169
A185: 175 | B185: GPPL | C185: 88.5 | D185: 89.50 | E185: 85.65 | F185: 82.80 | G185: 78.95 | H185: 92.35 | I185: 96.20 | J185: 99.05 | K185: 93.35 | L185: 86.65 | M185: 1.2707
A186: 176 | B186: GSFC | C186: 85.25 | D186: 84.12 | E186: 81.23 | F186: 77.22 | G186: 74.33 | H186: 88.13 | I186: 91.02 | J186: 95.03 | K186: 87 | L186: 80.1 | M186: 15.9578
A187: 177 | B187: GSPL | C187: 219.75 | D187: 219.53 | E187: 215.42 | F187: 211.08 | G187: 206.97 | H187: 223.87 | I187: 227.98 | J187: 232.32 | K187: 223.65 | L187: 215.2 | M187: 8.00815
A188: 178 | B188: GULFOILLUB | C188: 873.85 | D188: 874.13 | E188: 862.87 | F188: 851.88 | G188: 840.62 | H188: 885.12 | I188: 896.38 | J188: 907.37 | K188: 885.4 | L188: 863.15 | M188: 0.05782
A189: 179 | B189: HEG | C189: 1197.2 | D189: 1213.98 | E189: 1165.47 | F189: 1133.73 | G189: 1085.22 | H189: 1245.72 | I189: 1294.23 | J189: 1325.97 | K189: 1262.5 | L189: 1182.25 | M189: 12.89389
A190: 180 | B190: HCLTECH | C190: 1047.4 | D190: 1040.70 | E190: 1029.70 | F190: 1012.00 | G190: 1001.00 | H190: 1058.40 | I190: 1069.40 | J190: 1087.10 | K190: 1051.7 | L190: 1023 | M190: 28.07226
A191: 181 | B191: HDFCAMC | C191: 2929.95 | D191: 2925.97 | E191: 2906.93 | F191: 2883.92 | G191: 2864.88 | H191: 2948.98 | I191: 2968.02 | J191: 2991.03 | K191: 2945 | L191: 2902.95 | M191: 4.03851
A192: 182 | B192: HDFCBANK | C192: 1253.8 | D192: 1247.77 | E192: 1233.58 | F192: 1213.37 | G192: 1199.18 | H192: 1267.98 | I192: 1282.17 | J192: 1302.38 | K192: 1261.95 | L192: 1227.55 | M192: 116.89524
A193: 183 | B193: HDFCLIFE | C193: 551.05 | D193: 548.72 | E193: 542.48 | F193: 533.92 | G193: 527.68 | H193: 557.28 | I193: 563.52 | J193: 572.08 | K193: 554.95 | L193: 540.15 | M193: 25.48423
A194: 184 | B194: HATHWAY | C194: 22.25 | D194: 22.38 | E194: 21.92 | F194: 21.58 | G194: 21.12 | H194: 22.72 | I194: 23.18 | J194: 23.52 | K194: 22.85 | L194: 22.05 | M194: 2.8084
A195: 185 | B195: HATSUN | C195: 624.95 | D195: 626.82 | E195: 613.63 | F195: 602.32 | G195: 589.13 | H195: 638.13 | I195: 651.32 | J195: 662.63 | K195: 640 | L195: 615.5 | M195: 0.03323
A196: 186 | B196: HAVELLS | C196: 757 | D196: 745.98 | E196: 726.22 | F196: 695.43 | G196: 675.67 | H196: 776.77 | I196: 796.53 | J196: 827.32 | K196: 765.75 | L196: 715.2 | M196: 22.02687
A197: 187 | B197: HEIDELBERG | C197: 197.75 | D197: 198.23 | E197: 194.52 | F197: 191.28 | G197: 187.57 | H197: 201.47 | I197: 205.18 | J197: 208.42 | K197: 201.95 | L197: 195 | M197: 13.42026
A198: 188 | B198: HERITGFOOD | C198: 393.2 | D198: 398.00 | E198: 385.05 | F198: 376.90 | G198: 363.95 | H198: 406.15 | I198: 419.10 | J198: 427.25 | K198: 410.95 | L198: 389.85 | M198: 0.45484
A199: 189 | B199: HEROMOTOCO | C199: 2755.95 | D199: 2775.30 | E199: 2705.30 | F199: 2654.65 | G199: 2584.65 | H199: 2825.95 | I199: 2895.95 | J199: 2946.60 | K199: 2845.3 | L199: 2724.65 | M199: 10.6429
A200: 190 | B200: HEXAWARE | C200: 388.3 | D200: 383.83 | E200: 373.97 | F200: 359.63 | G200: 349.77 | H200: 398.17 | I200: 408.03 | J200: 422.37 | K200: 393.7 | L200: 369.5 | M200: 16.58574
A201: 191 | B201: HFCL | C201: 19.1 | D201: 19.25 | E201: 18.90 | F201: 18.70 | G201: 18.35 | H201: 19.45 | I201: 19.80 | J201: 20.00 | K201: 19.6 | L201: 19.05 | M201: 11.10074
A202: 192 | B202: HSCL | C202: 87.45 | D202: 88.82 | E202: 85.63 | F202: 83.82 | G202: 80.63 | H202: 90.63 | I202: 93.82 | J202: 95.63 | K202: 92 | L202: 87 | M202: 23.22128
A203: 193 | B203: HIMATSEIDE | C203: 153.1 | D203: 153.90 | E203: 150.45 | F203: 147.80 | G203: 144.35 | H203: 156.55 | I203: 160.00 | J203: 162.65 | K203: 157.35 | L203: 151.25 | M203: 0.79506
A204: 194 | B204: HINDALCO | C204: 197.8 | D204: 198.73 | E204: 195.12 | F204: 192.43 | G204: 188.82 | H204: 201.42 | I204: 205.03 | J204: 207.72 | K204: 202.35 | L204: 196.05 | M204: 58.05761
A205: 195 | B205: HAL | C205: 743.9 | D205: 743.95 | E205: 734.95 | F205: 726.00 | G205: 717.00 | H205: 752.90 | I205: 761.90 | J205: 770.85 | K205: 752.95 | L205: 735 | M205: 0.09816
A206: 196 | B206: HINDCOPPER | C206: 37.75 | D206: 38.05 | E206: 37.25 | F206: 36.75 | G206: 35.95 | H206: 38.55 | I206: 39.35 | J206: 39.85 | K206: 38.85 | L206: 37.55 | M206: 6.2701
... 320 more rows

Sheet Bulk Deals
E6: Back To Main Page
A7: Subject : | B7: BULK DEAL | D7: =Main!B10 -> 2019-09-25
A9: Date | B9: Scrip code | C9: Scrip Name | D9: Client Name | E9: Buy / Sell | F9: Quantity Traded | G9: Trade Price / Wt.Avg.trade price | H9: Exchange
A10: 2019-09-24 | B10: 540697 | C10: AMFL | D10: TEJAS HARSHADBHAI PATEL | E10: SELL | F10: 56,000 | G10: 8.97 | H10: BSE
A11: 2019-09-24 | B11: 541401 | C11: ARIHANTINS | D11: ASHISH HASMUKHLAL SHAH | E11: BUY | F11: 64,000 | G11: 7.37 | H11: BSE
A12: 2019-09-24 | B12: 541401 | C12: ARIHANTINS | D12: ASHISH HASMUKHLAL SHAH | E12: SELL | F12: 80,000 | G12: 7.01 | H12: BSE
A13: 2019-09-24 | B13: 539770 | C13: DARJEELING | D13: HIMANSHU SHAH | E13: SELL | F13: 21,600 | G13: 80.27 | H13: BSE
A14: 2019-09-24 | B14: 539032 | C14: FRASER | D14: SHASHI GUPTA | E14: SELL | F14: 166,000 | G14: 14.05 | H14: BSE
A15: 2019-09-24 | B15: 501848 | C15: GLOBOFFS | D15: CLEARWELL ENTERPRISES LTD | E15: SELL | F15: 180,000 | G15: 6.97 | H15: BSE
A16: 2019-09-24 | B16: 538765 | C16: JSHL | D16: SHASHI GUPTA | E16: BUY | F16: 190,000 | G16: 12.85 | H16: BSE
A17: 2019-09-24 | B17: 539679 | C17: KAPILRAJ | D17: SURAJ JHUNJHUNWALA | E17: BUY | F17: 40,000 | G17: 6.90 | H17: BSE
A18: 2019-09-24 | B18: 539679 | C18: KAPILRAJ | D18: SURAJ JHUNJHUNWALA | E18: SELL | F18: 40,000 | G18: 7.00 | H18: BSE
A19: 2019-09-24 | B19: 539679 | C19: KAPILRAJ | D19: NAVIN SHANKARLAL TANK | E19: BUY | F19: 50,000 | G19: 6.86 | H19: BSE
A20: 2019-09-24 | B20: 539679 | C20: KAPILRAJ | D20: NAVIN SHANKARLAL TANK | E20: SELL | F20: 50,000 | G20: 7 | H20: BSE
A21: 2019-09-24 | B21: 539679 | C21: KAPILRAJ | D21: BADAMILAL BANSHILAL GARG | E21: BUY | F21: 144,520 | G21: 7.00 | H21: BSE
A22: 2019-09-24 | B22: 539679 | C22: KAPILRAJ | D22: BADAMILAL BANSHILAL GARG | E22: SELL | F22: 144,520 | G22: 6.80 | H22: BSE
A23: 2019-09-24 | B23: 539679 | C23: KAPILRAJ | D23: RAMNATH SHARMA | E23: BUY | F23: 127,790 | G23: 6.78 | H23: BSE
A24: 2019-09-24 | B24: 539679 | C24: KAPILRAJ | D24: RAMNATH SHARMA | E24: SELL | F24: 112,319 | G24: 7.00 | H24: BSE
A25: 2019-09-24 | B25: 539679 | C25: KAPILRAJ | D25: MANJULABEN BHAVESHKUMAR RANGEE | E25: BUY | F25: 30,000 | G25: 6.9 | H25: BSE
A26: 2019-09-24 | B26: 539679 | C26: KAPILRAJ | D26: MANJULABEN BHAVESHKUMAR RANGEE | E26: SELL | F26: 30,000 | G26: 7.00 | H26: BSE
A27: 2019-09-24 | B27: 539679 | C27: KAPILRAJ | D27: MAHESHKUMAR JAYANTILAL CHAUHAN | E27: BUY | F27: 150,000 | G27: 7 | H27: BSE
A28: 2019-09-24 | B28: 539679 | C28: KAPILRAJ | D28: MAHESHKUMAR JAYANTILAL CHAUHAN | E28: SELL | F28: 150,000 | G28: 6.9 | H28: BSE
A29: 2019-09-24 | B29: 539679 | C29: KAPILRAJ | D29: ARTMAN DEALCOM PRIVATE LIMITED | E29: BUY | F29: 60,000 | G29: 6.9 | H29: BSE
A30: 2019-09-24 | B30: 539679 | C30: KAPILRAJ | D30: ARTMAN DEALCOM PRIVATE LIMITED | E30: SELL | F30: 60,000 | G30: 7 | H30: BSE
A31: 2019-09-24 | B31: 523323 | C31: KOVAI | D31: RAJASTHAN GLOBAL SECURITIES PRIVATE LIMITED | E31: BUY | F31: 63,460 | G31: 680 | H31: BSE
A32: 2019-09-24 | B32: 541444 | C32: PALMJEWELS | D32: VISHWAMURTE TRAD INVEST PE LTD | E32: SELL | F32: 56,000 | G32: 13.35 | H32: BSE
A33: 2019-09-24 | B33: 531952 | C33: RIBATEX | D33: SITA RAM | E33: BUY | F33: 50,000 | G33: 47.55 | H33: BSE
A34: 2019-09-24 | B34: 531952 | C34: RIBATEX | D34: KUMAR SHARE BROKERS LTD | E34: SELL | F34: 50,000 | G34: 47.48 | H34: BSE
A35: 2019-09-24 | B35: 539026 | C35: SSPNFIN | D35: SANDESH ASHOK NANDODE | E35: BUY | F35: 12,000 | G35: 62.7 | H35: BSE
A36: 2019-09-24 | B36: 539026 | C36: SSPNFIN | D36: SANDESH ASHOK NANDODE | E36: SELL | F36: 12,000 | G36: 62.78 | H36: BSE
A37: 2019-09-24 | B37: 539026 | C37: SSPNFIN | D37: DEVJEET CHAKRABORTY | E37: BUY | F37: 12,000 | G37: 63.3 | H37: BSE
A38: 2019-09-24 | B38: 539026 | C38: SSPNFIN | D38: RAJESH RAMANLAL KAPADIA | E38: SELL | F38: 12,000 | G38: 62.5 | H38: BSE
A39: 2019-09-24 | B39: 539026 | C39: SSPNFIN | D39: ESPS FINSERVE PRIVATE LIMITED | E39: BUY | F39: 12,000 | G39: 62.5 | H39: BSE
A40: 2019-09-24 | B40: 539026 | C40: SSPNFIN | D40: ESPS FINSERVE PRIVATE LIMITED | E40: SELL | F40: 12,000 | G40: 62.7 | H40: BSE
A41: 2019-09-24 | B41: 537524 | C41: VIAANINDUS | D41: SHILPA SHETTY KUNDRA | E41: BUY | F41: 750,000 | G41: 4.25 | H41: BSE
A42: 2019-09-24 | B42: 537524 | C42: VIAANINDUS | D42: MEGHA SANJAY BANSAL | E42: SELL | F42: 745,000 | G42: 4.25 | H42: BSE
A43: 2019-09-24 | B43: 514348 | C43: WINSOME | D43: RAKESH KUMAR DUGAR | E43: SELL | F43: 465,000 | G43: 0.94 | H43: BSE
A44: 2019-09-24 | B44: 514348 | C44: WINSOME | D44: PIYUSH SECURITIES PVT LTD | E44: BUY | F44: 385,000 | G44: 0.94 | H44: BSE
A45: 2019-09-24 | B45: 514348 | C45: WINSOME | D45: LUXMI INVESTMENT COMPANY PRIVATE LIMITED | E45: BUY | F45: 400,000 | G45: 0.94 | H45: BSE
A46: 2019-09-24 | B46: 514348 | C46: WINSOME | D46: PIYUSH TRADES & CREDITS PRIVATE LIMITED | E46: BUY | F46: 475,000 | G46: 0.94 | H46: BSE
A47: 2019-09-24 | B47: 514348 | C47: WINSOME | D47: RAMAPATI CONSULTANTS PVT LTD | E47: BUY | F47: 488,109 | G47: 0.94 | H47: BSE
A48: 2019-09-24 | B48: 514348 | C48: WINSOME | D48: ANJANEYA COMMERCIAL PRIVATE LIMITED | E48: SELL | F48: 613,945 | G48: 0.94 | H48: BSE
A49: 2019-09-24 | B49: 514348 | C49: WINSOME | D49: KESHAV SOFTECH PRIVATE LIMITED | E49: SELL | F49: 668,764 | G49: 0.94 | H49: BSE
A50: 2019-09-24 | B50: AISL | C50: ANI Integrated Serv Ltd. | D50: MAVEN INDIA FUND | E50: BUY | F50: 49,200 | G50: 33 | H50: NSE
A51: 2019-09-24 | B51: DHFL | C51: Dewan Housing Fin Corp | D51: TOWER RESEARCH CAPITAL MARKETS INDIA PRIVATE LIMITED | E51: BUY | F51: 4,189,778 | G51: 43.87 | H51: NSE
A52: 2019-09-24 | B52: DHFL | C52: Dewan Housing Fin Corp | D52: MANSINGH HOTELS AND RESORTS LIMITED | E52: BUY | F52: 2,452,622 | G52: 43.73 | H52: NSE
A53: 2019-09-24 | B53: DHFL | C53: Dewan Housing Fin Corp | D53: QE SECURITIES | E53: BUY | F53: 1,776,631 | G53: 43.87 | H53: NSE
A54: 2019-09-24 | B54: GEEKAYWIRE | C54: Geekay Wires Limited | D54: RISHIKESH COMMERCIAL CO PVT LTD | E54: BUY | F54: 88,000 | G54: 32 | H54: NSE
A55: 2019-09-24 | B55: LEMONTREE | C55: Lemon Tree Hotels Ltd | D55: RELIANCE MUTUAL FUND A/C RELIANCE CAPITAL TR CO LTD AC RELIANCE SMALL CAP FUND | E55: BUY | F55: 16,930,000 | G55: 57.5 | H55: NSE
A56: 2019-09-24 | B56: LEMONTREE | C56: Lemon Tree Hotels Ltd | D56: KUWAIT INVESTMENT AUTHORITY | E56: BUY | F56: 12,000,000 | G56: 57.5 | H56: NSE
A57: 2019-09-24 | B57: LEMONTREE | C57: Lemon Tree Hotels Ltd | D57: SBI MUTUAL FUND | E57: BUY | F57: 7,740,556 | G57: 57.5 | H57: NSE
A58: 2019-09-24 | B58: RELCAPITAL | C58: Reliance Capital Limited | D58: TOWER RESEARCH CAPITAL MARKETS INDIA PRIVATE LIMITED | E58: BUY | F58: 4,344,201 | G58: 29.87 | H58: NSE
A59: 2019-09-24 | B59: RELCAPITAL | C59: Reliance Capital Limited | D59: QE SECURITIES | E59: BUY | F59: 1,469,417 | G59: 29.95 | H59: NSE
A60: 2019-09-24 | B60: RELINFRA | C60: Reliance Infrastructu Ltd | D60: TOWER RESEARCH CAPITAL MARKETS INDIA PRIVATE LIMITED | E60: BUY | F60: 2,629,809 | G60: 36.71 | H60: NSE
A61: 2019-09-24 | B61: SONISOYA | C61: Soni Soya Product Limited | D61: VYANGESH CHOKSI (HUF) | E61: BUY | F61: 72,000 | G61: 16.4 | H61: NSE
A62: 2019-09-24 | B62: YESBANK | C62: Yes Bank Limited | D62: TOWER RESEARCH CAPITAL MARKETS INDIA PRIVATE LIMITED | E62: BUY | F62: 15,212,717 | G62: 55.24 | H62: NSE
A63: 2019-09-24 | B63: AISL | C63: ANI Integrated Serv Ltd. | D63: SAINT CAPITAL FUND | E63: SELL | F63: 49,200 | G63: 33 | H63: NSE
A64: 2019-09-24 | B64: BCP | C64: B.C. Power Controls Ltd | D64: LIMITED BALAJI FINVEST ADVISORY PRIVATE | E64: SELL | F64: 400000 | G64: 9.75 | H64: NSE
A65: 2019-09-24 | B65: CKPLEISURE | C65: CKP Leisure Limited | D65: ARYAMAN CAPITAL MARKETS LIMITED | E65: SELL | F65: 140000 | G65: 5.06 | H65: NSE
A66: 2019-09-24 | B66: DHFL | C66: Dewan Housing Fin Corp | D66: QE SECURITIES | E66: SELL | F66: 1653426 | G66: 43.83 | H66: NSE
A67: 2019-09-24 | B67: DHFL | C67: Dewan Housing Fin Corp | D67: MANSINGH HOTELS AND RESORTS LIMITED | E67: SELL | F67: 2141622 | G67: 43.59 | H67: NSE
A68: 2019-09-24 | B68: DHFL | C68: Dewan Housing Fin Corp | D68: TOWER RESEARCH CAPITAL MARKETS INDIA PRIVATE LIMITED | E68: SELL | F68: 4193859 | G68: 43.8 | H68: NSE
A69: 2019-09-24 | B69: LEMONTREE | C69: Lemon Tree Hotels Ltd | D69: RJ CORP LIMITED | E69: SELL | F69: 10000000 | G69: 57.51 | H69: NSE
A70: 2019-09-24 | B70: LEMONTREE | C70: Lemon Tree Hotels Ltd | D70: MAPLEWOOD INVESTMENT LTD | E70: SELL | F70: 45183898 | G70: 57.51 | H70: NSE
A71: 2019-09-24 | B71: RELCAPITAL | C71: Reliance Capital Limited | D71: QE SECURITIES | E71: SELL | F71: 1419941 | G71: 29.98 | H71: NSE
A72: 2019-09-24 | B72: RELCAPITAL | C72: Reliance Capital Limited | D72: TOWER RESEARCH CAPITAL MARKETS INDIA PRIVATE LIMITED | E72: SELL | F72: 4344201 | G72: 29.87 | H72: NSE
A73: 2019-09-24 | B73: RELINFRA | C73: Reliance Infrastructu Ltd | D73: TOWER RESEARCH CAPITAL MARKETS INDIA PRIVATE LIMITED | E73: SELL | F73: 2629809 | G73: 36.66 | H73: NSE
A74: 2019-09-24 | B74: SECL | C74: Salasar Exterior Cont Ltd | D74: MEHUL D VASA | E74: SELL | F74: 45000 | G74: 39.27 | H74: NSE
A75: 2019-09-24 | B75: SONISOYA | C75: Soni Soya Product Limited | D75: VIJI FINANCE LIMITED | E75: SELL | F75: 72000 | G75: 16.4 | H75: NSE
A76: 2019-09-24 | B76: YESBANK | C76: Yes Bank Limited | D76: TOWER RESEARCH CAPITAL MARKETS INDIA PRIVATE LIMITED | E76: SELL | F76: 15212717 | G76: 55.22 | H76: NSE

Sheet Call Tracker (Equity & F&O)
M5: Back To Main Page
A6: Retail Research Technical Calls & Fundamental Performance Report for the month of September-2019
M7: =Main!B10 -> 2019-09-25
B8: Positional Call
A9: Sr.no | B9: Date | D9: Company | E9: Rec | F9: Rec Price | G9: Stop Loss*** | H9: Call Closed At | I9: Target | J9: Remark | K9: Profit / Loss per Share | L9: Gain / Loss % | M9: Status | N9: Closed Date | O9: NSE Closed Price
A10: 1 | B10: 2019-08-01 | D10: HDFCBANK | E10: Buy{} | F10: 1105 | G10: =2130/2 -> 1065 | H10: 1155 | I10: =2350/2 -> 1175 | J10: Profit of Rs.50/- | K10: =H10-F10 -> 50 | L10: =K10/F10 -> 4.52% | M10: Successful | N10: 2019-09-20 | R10: H
A11: 2 | B11: 2019-08-02 | D11: LT | E11: Buy{} | F11: 1350 | G11: 1270 | H11: 1485 | I11: 1500 | J11: Profit of Rs.135/- | K11: 135 | L11: 10.00% | M11: Successful | N11: 2019-09-23 | R11: H
A12: 3 | B12: 2019-08-09 | D12: TATACHEM | E12: Buy | F12: 566 | G12: 534 | H12: 583.5 | I12: 620-640 | J12: Profit of Rs.17.50/- | K12: =H12-F12 -> 17.5 | L12: =K12/F12 -> 3.09% | M12: Successful | N12: 2019-09-05 | R12: H
A13: 4 | B13: 2019-08-19 | D13: TATAELXSI | E13: Buy{} | F13: 635 | G13: 597 | H13: 681.5 | I13: 700-720 | J13: Profit of Rs.46.50/- | K13: =H13-F13 -> 46.5 | L13: =K13/F13 -> 7.32% | M13: Successful | N13: 2019-09-24 | R13: R
A14: 5 | B14: 2019-08-23 | D14: IOC | E14: Buy{} | F14: 122.5 | G14: 114.4 | H14: 122.75 | I14: 135 | J14: Neutral | K14: =H14-F14 -> 0.25 | L14: =K14/F14 -> 0.20% | M14: Neutral | N14: 2019-09-03 | R14: H
A15: 6 | B15: 2019-08-30 | D15: BIOCON | E15: Buy{} | F15: 229.5 | G15: 214.3 | H15: 237 | I15: 255-260 | J15: Part Profit of Rs.7.5/- | K15: =H15-F15 -> 7.5 | L15: =K15/F15 -> 3.27% | M15: Successful | N15: 2019-08-30 | O15: =VLOOKUP(D15,Sheet2!A38:M1677,6,0) -> 224.4 | R15: R
A16: 7 | B16: 2019-09-03 | D16: POWERGRID | E16: Buy{} | F16: 198 | G16: 186 | H16: 208.5 | I16: 220-224 | J16: Profit of Rs.10.5/- | K16: 10.5 | L16: 5.30% | M16: Successful | N16: 2019-09-20 | R16: R
A17: 8 | B17: 2019-09-04 | D17: JUSTDIAL | E17: Buy{} | F17: 709.5 | G17: 673 | H17: 703.75 | I17: 775-785 | J17: Neutral | K17: =H17-F17 -> -5.75 | L17: =K17/F17 -> -0.81% | M17: Neutral | N17: 2019-09-20 | R17: R
A18: 9 | B18: 2019-09-09 | D18: TATAGLOBAL | E18: Buy | F18: 266 | G18: 256 | H18: 255 | I18: 281-285 | J18: Loss of Rs.11/- | K18: -11 | L18: -4.14% | M18: Unsuccessful | N18: 2019-09-18 | R18: R
A19: 10 | B19: 2019-09-09 | D19: TORNTPHARM | E19: Sell | F19: 1710-1720 | G19: 1808 | I19: 1560-1540 | J19: Open | O19: =VLOOKUP(D19,Sheet2!A34:M1673,6,0) -> 1697.95 | R19: R
A20: 11 | B20: 2019-09-11 | D20: LICHSGFIN | E20: Buy{} | F20: 400.5 | G20: 379 | H20: 431 | I20: 440-450 | J20: Profit of Rs.30.50/- | K20: =H20-F20 -> 30.5 | L20: =K20/F20 -> 7.62% | M20: Successful | N20: 2019-09-23 | R20: H
A21: 12 | B21: 2019-09-17 | D21: IDFC | E21: Buy{} | F21: 34.7 | G21: 32.7 | H21: 36.45 | I21: 38-38.50 | J21: Profit of Rs.1.75/- | K21: 1.75 | L21: 5.04% | M21: Successful | N21: 2019-09-20 | R21: R
A22: 13 | B22: 2019-09-18 | D22: BAJFINANCE | E22: Buy | F22: 3450 | G22: 3308 | H22: 3300 | I22: 3720-3750 | J22: Loss of Rs.150/- | K22: =H22-F22 -> -150 | L22: =K22/F22 -> -4.35% | M22: Unsuccessful | N22: 2019-09-20 | R22: R
A23: 14 | B23: 2019-09-18 | D23: APOLLOHOSP | E23: Buy | F23: 1417.5 | G23: 1348 | H23: 1475 | I23: 1550-1580 | J23: Profit of Rs.57.5/- | K23: 57.5 | L23: 4.06% | M23: Successful | N23: 2019-09-20 | R23: R
A24: 15 | B24: 2019-09-23 | D24: HEIDELBERG | E24: Buy | F24: 187 | G24: 175 | H24: 197.5 | I24: 210-220 | J24: Profit of Rs.10.5/- | K24: =H24-F24 -> 10.5 | L24: =K24/F24 -> 5.61% | M24: Successful | N24: 2019-09-23 | R24: H
A25: 16 | B25: 2019-09-24 | D25: DALBHARAT | E25: Buy | F25: 820-830 | G25: 777 | I25: 920-950 | J25: Open | R25: H
A30: CLBS = Closing Basis *** | F30: Reinitiated $
A31: Dividend adjusted <> | F31: Revised stoploss #
A32: Part book {}
B34: Momentum Call
A35: Sr.no | B35: Date | D35: Company | E35: Rec | F35: Rec Price | G35: Stop Loss | H35: Call Closed At | I35: Target | J35: Remark | K35: Profit / Loss per Share/Lot | L35: Gain / Loss % | M35: Gain / Loss per Lot | N35: Lot | O35: Status | P35: Closed Date
A36: 1 | B36: 2019-08-30 | D36: INFY | E36: Sell | F36: 805 | G36: 822 | H36: 827.5 | I36: 760 | J36: Loss of Rs.22.5/- | K36: =F36-H36 -> -22.5 | L36: =K36/F36 -> -2.80% | O36: Unsuccessful | P36: 2019-09-05 | R36: H
A37: 2 | B37: 2019-09-03 | D37: CONCOR SEP FUT | E37: Buy | F37: 498 | G37: 488 | H37: 503 | I37: 515 | J37: Profit of Rs.5/- | K37: =H37-F37 -> 5 | M37: =N37*K37 -> 7815 | N37: 1563 | O37: Successful | P37: 2019-09-03 | R37: N
A38: 3 | B38: 2019-09-03 | D38: DABUR | E38: Sell | F38: 451 | G38: 464 | H38: 446 | I38: 435-430 | J38: Profit of Rs.5/- | K38: =F38-H38 -> 5 | L38: =K38/F38 -> 1.11% | O38: Successful | P38: 2019-09-03 | R38: H
A39: 4 | B39: 2019-09-03 | D39: NIFTY SEP FUT | E39: Buy | F39: 10845 | G39: 10740 | H39: 10905 | I39: 10980-11000 | J39: Profit of Rs.60/- | K39: =H39-F39 -> 60 | M39: =N39*K39 -> 4500 | N39: 75 | O39: Successful | P39: 2019-09-04 | R39: R
A40: 5 | B40: 2019-09-03 | D40: BANKNIFTY SEP FUT | E40: Buy | F40: 26870 | G40: 26580 | H40: 27070 | I40: 27000-27100 | J40: Profit of Rs.200/- | K40: 200 | M40: =N40*K40 -> 4000 | N40: 20 | O40: Successful | P40: 2019-09-04 | R40: R
A41: 6 | B41: 2019-09-04 | D41: HDFCBANK SEP FUT | E41: Buy | F41: 2210 | G41: 2167 | H41: 2242.5 | I41: 2270 | J41: Profit of Rs.32.50/- | K41: 32.5 | M41: 8125 | N41: 250 | O41: Successful | P41: 2019-09-04 | R41: R
A42: 7 | B42: 2019-09-04 | D42: BANKBARODA | E42: Buy | F42: 92 | G42: 88.7 | H42: 93.7 | I42: 96-98 | J42: Profit of Rs.1.70/- | K42: 1.7 | L42: =K42/F42 -> 1.85% | O42: Successful | P42: 2019-09-04 | R42: R
A43: 8 | B43: 2019-09-04 | D43: ICICIBANK SEP FUT | E43: Buy | F43: 396 | G43: 386 | H43: 401.5 | I43: 410 | J43: Profit of Rs.5.50/- | K43: 5.5 | M43: =N43*K43 -> 7562.5 | N43: 1375 | O43: Successful | P43: 2019-09-04 | R43: N
A44: 9 | B44: 2019-09-04 | D44: CONCOR SEP FUT | E44: Buy | F44: 493 | G44: 484 | H44: 498 | I44: 510 | J44: Profit of Rs.5/- | K44: 5 | M44: =N44*K44 -> 7815 | N44: 1563 | O44: Successful | P44: 2019-09-04 | R44: N
A45: 10 | B45: 2019-09-04 | D45: DABUR SEP FUT | E45: Buy | F45: 436.5 | G45: 426 | H45: 444 | I45: 455 | J45: Profit of Rs.7.5/- | K45: 7.5 | M45: =N45*K45 -> 9375 | N45: 1250 | O45: Successful | P45: 2019-09-04 | R45: N
A46: 11 | B46: 2019-09-05 | D46: COLPAL SEP FUT | E46: Buy | F46: 1245 | G46: 1228 | H46: 1256 | I46: 1270 | J46: Profit of Rs.11/- | K46: 11 | M46: 7700 | N46: 700 | O46: Successful | P46: 2019-09-09 | R46: N
A47: 12 | B47: 2019-09-05 | D47: SBIN | E47: Buy | F47: 272.5 | G47: 264 | H47: 278 | I47: 285-290 | J47: Profit of Rs.5.5/- | K47: =H47-F47 -> 5.5 | L47: =K47/F47 -> 2.02% | O47: Successful | P47: 2019-09-09 | R47: H
A48: 13 | B48: 2019-09-05 | D48: PFC | E48: Buy | F48: 106.5 | G48: 104 | H48: 104 | I48: 112-114 | J48: Loss of Rs.2.5/- | K48: =H48-F48 -> -2.5 | L48: =K48/F48 -> -2.35% | O48: Unsuccessful | P48: 2019-09-05 | R48: H
A49: 14 | B49: 2019-09-05 | D49: M&M SEP FUT | E49: Buy | F49: 517 | G49: 505 | H49: 524 | I49: 535 | J49: Profit of Rs.7/- | K49: =H49-F49 -> 7 | M49: =N49*K49 -> 7000 | N49: 1000 | O49: Successful | P49: 2019-09-06 | R49: N
A50: 15 | B50: 2019-09-05 | D50: POWERGRID SEP FUT | E50: Buy | F50: 198.5 | G50: 195 | H50: 200.5 | I50: 206 | J50: Profit of Rs.2/- | K50: =H50-F50 -> 2 | M50: =N50*K50 -> 8000 | N50: 4000 | O50: Successful | P50: 2019-09-05 | R50: N
A51: 16 | B51: 2019-09-05 | D51: YESBANK | E51: Buy | F51: 61.2 | G51: 59.7 | H51: 63 | I51: 65 | J51: Profit of Rs.1.80/- | K51: 1.8 | L51: =K51/F51 -> 2.94% | O51: Successful | P51: 2019-09-09 | R51: R
A52: 17 | B52: 2019-09-06 | D52: HDFC | E52: Buy | F52: 2027.5 | G52: 1980 | H52: 2068 | I52: 2100-2120 | J52: Profit of Rs.40.5/- | K52: 40.5 | L52: 2.00% | O52: Successful | P52: 2019-09-09 | R52: H
A53: 18 | B53: 2019-09-06 | D53: BATAINDIA SEP FUT | E53: Buy | F53: 1531 | G53: 1510 | H53: 1548.5 | I53: 1560-1570 | J53: Profit of Rs.17.5/- | K53: =H53-F53 -> 17.5 | M53: =N53*K53 -> 9625 | N53: 550 | O53: Successful | P53: 2019-09-09 | R53: N
A54: 19 | B54: 2019-09-06 | D54: TORNTPOWER SEP FUT | E54: Sell | F54: 275 | G54: 279 | H54: 275 | I54: 266 | J54: Neutral | K54: 0 | M54: 0 | N54: 3000 | O54: Neutral | P54: 2019-09-09 | R54: N
A55: 20 | B55: 2019-09-06 | D55: CONCOR SEP FUT | E55: Buy | F55: 505 | G55: 495 | H55: 507.5 | I55: 520-525 | J55: Profit of Rs.2.50/- | K55: 2.5 | M55: 3907.5 | N55: 1563 | O55: Successful | P55: 2019-09-09 | R55: N
A56: 21 | B56: 2019-09-09 | D56: JUBLFOOD SEP FUT | E56: Buy | F56: 1197 | G56: 1174 | H56: 1214.5 | I56: 1240-1250 | J56: Profit of Rs.17.50/- | K56: =H56-F56 -> 17.5 | M56: =N56*K56 -> 8750 | N56: 500 | O56: Successful | P56: 2019-09-11 | R56: R
A57: 22 | B57: 2019-09-09 | D57: RECLTD | E57: Buy | F57: 149.5 | G57: 144.5 | H57: 146 | I57: 160-163 | J57: Loss of Rs.3.5/- | K57: -3.5 | L57: =K57/F57 -> -2.34% | O57: Unsuccessful | P57: 2019-09-13 | R57: H
A58: 23 | B58: 2019-09-09 | D58: ENGINERSIN | E58: Sell | F58: 110.5 | G58: 114 | H58: 114 | I58: 160-105 | J58: Loss of Rs.3.5/- | K58: =F58-H58 -> -3.5 | L58: =K58/F58 -> -3.17% | O58: Unsuccessful | P58: 2019-09-12 | R58: H
A59: 24 | B59: 2019-09-11 | D59: KOTAKBANK SEP FUT | E59: Buy | F59: 1466 | G59: 1435 | H59: 1484 | I59: 1510-1520 | J59: Profit of Rs.18/- | K59: =H59-F59 -> 18 | M59: =N59*K59 -> 7200 | N59: 400 | O59: Successful | P59: 2019-09-12 | R59: N
A60: 25 | B60: 2019-09-11 | D60: ABB | E60: Buy | F60: 1334 | G60: 1289 | H60: 1362.5 | I60: 1400-1420 | J60: Profit of Rs.28.50/- | K60: 28.5 | L60: =K60/F60 -> 2.14% | O60: Successful | P60: 2019-09-13 | R60: H
A61: 26 | B61: 2019-09-11 | D61: APOLLOTYRE | E61: Sell | F61: 179 | G61: 184 | H61: 179 | I61: 170 | J61: Neutral | K61: =H61-F61 -> 0 | M61: =N61*K61 -> 0 | O61: Neutral | P61: 2019-09-12 | R61: H
A62: 27 | B62: 2019-09-12 | D62: SUNTV | E62: Buy | F62: 439 | G62: 423.7 | H62: 448 | I62: 460-465 | J62: Profit of Rs.9/- | K62: 9 | L62: =K62/F62 -> 2.05% | O62: Successful | P62: 2019-09-13 | R62: R
A63: 28 | B63: 2019-09-12 | D63: MFSL | E63: Buy | F63: 405.5 | G63: 394.7 | H63: 414 | I63: 426-430 | J63: Profit of Rs.8.5/- | K63: =H63-F63 -> 8.5 | L63: =K63/F63 -> 2.10% | O63: Successful | P63: 2019-09-12 | R63: R
A64: 29 | B64: 2019-09-12 | D64: COLPAL SEP FUT | E64: Buy | F64: 1243.5 | G64: 1226 | H64: 1253 | I64: 1270 | J64: Profit of Rs.9.5/- | K64: 9.5 | M64: =N64*K64 -> 6650 | N64: 700 | O64: Successful | P64: 2019-09-13 | R64: N
A65: 30 | B65: 2019-09-13 | D65: HINDUNILVR SEP FUT | E65: Sell | F65: 1822 | G65: 1857 | H65: 1857 | I65: 1760 | J65: Loss of Rs.35/- | K65: 35 | M65: 10500 | N65: 300 | O65: Unsuccessful | P65: 2019-09-20 | R65: R
A66: 31 | B66: 2019-09-13 | D66: DABUR | E66: Sell | F66: 452 | G66: 463 | H66: 444.5 | I66: 425 | J66: Profit of Rs.7.5/- | K66: =F66-H66 -> 7.5 | L66: =K66/F66 -> 1.66% | O66: Successful | P66: 2019-09-20 | R66: H
A67: 32 | B67: 2019-09-13 | D67: HINDALCO | E67: Sell | F67: 198.25 | G67: 205 | H67: 194.5 | I67: 190-185 | J67: Profit of Rs.3.75/- | K67: =F67-H67 -> 3.75 | L67: =K67/F67 -> 1.89% | O67: Successful | P67: 2019-09-19 | R67: H
A68: 33 | B68: 2019-09-16 | D68: APOLLOTYRE | E68: Sell | F68: 179.5 | G68: 184 | H68: 175.5 | I68: 170 | J68: Profit of Rs.4/- | K68: =F68-H68 -> 4 | L68: =K68/F68 -> 2.23% | O68: Successful | P68: 2019-09-19 | R68: H
A69: 34 | B69: 2019-09-16 | D69: ACC SEP FUT | E69: Sell | F69: 1530 | G69: 1555.5 | H69: 1512.5 | I69: 1480 | J69: Profit of Rs.17.5/- | K69: =F69-H69 -> 17.5 | M69: =N69*K69 -> 7000 | N69: 400 | O69: Successful | P69: 2019-09-17 | R69: R
A70: 35 | B70: 2019-09-16 | D70: NIFTY SEP FUT | E70: Sell | F70: 11055 | G70: 11130 | H70: 11007.5 | I70: 10960-10940 | J70: Profit of Rs.47.5/- | K70: =F70-H70 -> 47.5 | M70: =N70*K70 -> 3562.5 | N70: 75 | O70: Successful | P70: 2019-09-16 | R70: R
A71: 36 | B71: 2019-09-16 | D71: MFSL SEP FUT | E71: Buy | F71: 408.5 | G71: 398 | H71: 398 | I71: 425-430 | J71: Loss of Rs.10.5/- | K71: =H71-F71 -> -10.5 | M71: -12600 | N71: 1200 | O71: Unsuccessful | P71: 2019-09-19 | R71: N
A72: 37 | B72: 2019-09-16 | D72: ABB | E72: Buy | F72: 1332 | G72: 1288 | H72: 1359 | I72: 1400-1420 | J72: Profit of Rs.27/- | K72: 27 | L72: =K72/F72 -> 2.03% | O72: Successful | P72: 2019-09-20 | R72: H
A73: 38 | B73: 2019-09-17 | D73: SIEMENS | E73: Buy | F73: 1242.5 | G73: 1205 | H73: 1261 | I73: 1320-1340 | J73: Profit of Rs.18.50/- | K73: =H73-F73 -> 18.5 | L73: =K73/F73 -> 1.49% | O73: Successful | P73: 2019-09-17 | R73: H
A74: 39 | B74: 2019-09-17 | D74: HDFC | E74: Buy | F74: 2030 | G74: 1978 | H74: 2105 | I74: 2100-2120 | J74: Profit of Rs.75/- | K74: 75 | L74: 3.69% | O74: Successful | P74: 2019-09-23 | R74: H
A75: 40 | B75: 2019-09-17 | D75: INFY | E75: Sell | F75: 828.5 | G75: 851 | H75: 803 | I75: 785-775 | J75: Profit of Rs.25.5/- | K75: =F75-H75 -> 25.5 | L75: =K75/F75 -> 3.08% | O75: Successful | P75: 2019-09-20 | R75: R
A76: 42 | B76: 2019-09-17 | D76: NIFTY SEP FUT | E76: Buy | F76: 10925 | G76: 10840 | H76: 10840 | I76: 11150-11200 | J76: Loss of Rs.85/- | K76: =H76-F76 -> -85 | M76: =N76*K76 -> -6375 | N76: 75 | O76: Unsuccessful | P76: 2019-09-17 | R76: H
A77: 43 | B77: 2019-09-18 | D77: SUNTV | E77: Buy | F77: 430 | G77: 418.7 | H77: 418.7 | I77: 450-455 | J77: Loss of Rs.11.3/- | K77: -11.3 | L77: =K77/F77 -> -2.63% | O77: Unsuccessful | P77: 2019-09-19 | R77: R
A78: 44 | B78: 2019-09-18 | D78: CONCOR SEP FUT | E78: Buy | F78: 525 | G78: 515 | H78: 517 | I78: 540 | J78: Loss of Rs.8/- | K78: =H78-F78 -> -8 | M78: =N78*K78 -> -12504 | N78: 1563 | O78: Unsuccessful | P78: 2019-09-19 | R78: N
A79: 45 | B79: 2019-09-18 | D79: BANKBARODA | E79: Buy | F79: 96.5 | G79: 93.5 | H79: 93.2 | I79: 102 | J79: Loss of Rs.3.3/- | K79: -3.3 | L79: =K79/F79 -> -3.42% | O79: Unsuccessful | P79: 2019-09-20 | R79: H
A80: 46 | B80: 2019-09-19 | D80: NIFTY SEP FUT | E80: Buy | F80: 10805 | G80: 10725 | H80: 10725 | I80: 10940 | J80: Loss of Rs.80/- | K80: =H80-F80 -> -80 | M80: =N80*K80 -> -6000 | N80: 75 | O80: Unsuccessful | P80: 2019-09-19 | R80: R
A81: 47 | B81: 2019-09-19 | D81: SBIN | E81: Buy | F81: 276 | G81: 267 | H81: 285 | I81: 290-295 | J81: Profit of Rs.9/- | K81: 9 | L81: =K81/F81 -> 3.26% | O81: Successful | P81: 2019-09-20 | R81: H
A82: 48 | B82: 2019-09-19 | D82: BANKNIFTY SEP FUT | E82: Buy | F82: 26920 | G82: 26580 | H82: 27310 | I82: 27600 | J82: Profit of Rs.390/- | K82: =H82-F82 -> 390 | M82: =N82*K82 -> 7800 | N82: 20 | O82: Successful | P82: 2019-09-20 | R82: R
A83: 49 | B83: 2019-09-19 | D83: KOTAKBANK SEP FUT | E83: Buy | F83: 1463.5 | G83: 1432 | H83: 1482.5 | I83: 1510-1520 | J83: Profit of Rs.19/- | K83: =H83-F83 -> 19 | M83: =N83*K83 -> 7600 | N83: 400 | O83: Successful | P83: 2019-09-20 | R83: N
A84: 50 | B84: 2019-09-19 | D84: AXISBANK | E84: Buy | F84: 641.5 | G84: 624 | H84: 662 | I84: 665-675 | J84: Profit of Rs.20.5/- | K84: 20.5 | L84: =K84/F84 -> 3.20% | O84: Successful | P84: 2019-09-20 | R84: R
A85: 51 | B85: 2019-09-20 | D85: MARUTI SEP FUT | E85: Buy | F85: 6065 | G85: 5920 | H85: 6165 | I85: 6350 | J85: Profit of Rs.100/- | K85: =H85-F85 -> 100 | M85: =N85*K85 -> 7500 | N85: 75 | O85: Successful | P85: 2019-09-20 | R85: H
A86: 52 | B86: 2019-09-20 | D86: BHARATFORG | E86: Buy | F86: 399 | G86: 388 | H86: 411 | I86: 420 | J86: Profit of Rs.12/- | K86: 12 | L86: =K86/F86 -> 3.01% | O86: Successful | P86: 2019-09-20 | R86: H
A87: 53 | B87: 2019-09-20 | D87: UBL SEP FUT | E87: Buy | F87: 1241 | G87: 1224 | H87: 1251 | I87: 1275 | J87: Profit of Rs.10/- | K87: =H87-F87 -> 10 | M87: =N87*K87 -> 7000 | N87: 700 | O87: Successful | P87: 2019-09-20 | R87: N
A88: 54 | B88: 2019-09-20 | D88: RAYMOND | E88: Buy | F88: 564 | G88: 548 | H88: 572 | I88: 590 | J88: Profit of Rs.8/- | K88: 8 | L88: =K88/F88 -> 1.42% | O88: Successful | P88: 2019-09-20 | R88: H
A89: 55 | B89: 2019-09-20 | D89: BHARTIARTL SEP FUT | E89: Buy | F89: 344 | G89: 336 | H89: 350.5 | I89: 360 | J89: Profit of Rs.6.5/- | K89: =H89-F89 -> 6.5 | M89: =N89*K89 -> 12031.5 | N89: 1851 | O89: Successful | P89: 2019-09-20 | R89: N
A90: 56 | B90: 2019-09-20 | D90: NTPC | E90: Buy | F90: 123 | G90: 119 | H90: 120 | I90: 130 | J90: Loss of Rs.3/- | K90: -3 | L90: =K90/F90 -> -2.44% | O90: Unsuccessful | P90: 2019-09-20 | R90: H
A91: 57 | B91: 2019-09-20 | D91: M&M | E91: Buy | F91: 545 | G91: 528 | H91: 556 | I91: 580 | J91: Profit of Rs.11/- | K91: 11 | L91: 2.02% | O91: Successful | P91: 2019-09-20 | R91: H
A92: 56 | B92: 2019-09-20 | D92: BHARTIARTL SEP FUT | E92: Buy | F92: 345 | G92: 337 | H92: 351 | I92: 360 | J92: Profit of Rs.6/- | K92: =H92-F92 -> 6 | M92: =N92*K92 -> 11106 | N92: 1851 | O92: Successful | P92: 2019-09-20 | R92: N
A93: 59 | B93: 2019-09-20 | D93: MARICO SEP FUT | E93: Buy | F93: 386.5 | G93: 380 | H93: 382 | I93: 400 | J93: Loss of Rs.4.5/- | K93: -4.5 | M93: -11700 | N93: 2600 | O93: Unsuccessful | P93: 2019-09-20 | R93: N
A94: 60 | B94: 2019-09-20 | D94: MFSL SEP FUT | E94: Buy | F94: 407 | G94: 397 | H94: 414 | I94: 425 | J94: Profit of Rs.7/- | K94: =H94-F94 -> 7 | M94: =N94*K94 -> 8400 | N94: 1200 | O94: Successful | P94: 2019-09-23 | R94: N
A95: 61 | B95: 2019-09-20 | D95: BALKRISIND | E95: Buy | F95: 795-800 | G95: 777 | I95: 850 | J95: Open | R95: H
A96: 62 | B96: 2019-09-20 | D96: THERMAX | E96: Buy | F96: 1098 | G96: 1069 | H96: 1127.5 | I96: 1140-1150 | J96: Profit of Rs.29.50/- | K96: =H96-F96 -> 29.5 | L96: =K96/F96 -> 2.69% | O96: Successful | P96: 2019-09-23 | R96: H
A97: 63 | B97: 2019-09-23 | D97: APOLLOHOSP SEP FUT | E97: Buy | F97: 1474 | G97: 1452 | H97: 1490 | I97: 1520 | J97: Profit of Rs.16/- | K97: =H97-F97 -> 16 | M97: =N97*K97 -> 8000 | N97: 500 | O97: Successful | P97: 2019-09-23 | R97: N
A98: 64 | B98: 2019-09-23 | D98: POWERGRID | E98: Buy | F98: 189-191 | G98: 183.7 | I98: 200-204 | J98: Open | R98: R
A99: 65 | B99: 2019-09-23 | D99: TVSMOTOR OCT FUT | E99: Buy | F99: 417 | G99: 400 | H99: 426 | I99: 435-440 | J99: Profit of Rs.9/- | K99: =H99-F99 -> 9 | M99: =N99*K99 -> 9900 | N99: 1100 | O99: Successful | P99: 2019-09-23 | R99: N
A100: 66 | B100: 2019-09-23 | D100: HINDALCO | E100: Sell | F100: 202.5 | G100: 209.3 | H100: 198.5 | I100: 193-190 | J100: Profit of Rs.4/- | K100: =F100-H100 -> 4 | L100: =K100/F100 -> 1.98% | O100: Successful | P100: 2019-09-23 | R100: R
A101: 67 | B101: 2019-09-23 | D101: BHARATFORG SEP FUT | E101: Buy | F101: 446 | G101: 434 | H101: 454 | I101: 470 | J101: Profit of Rs.8/- | K101: =H101-F101 -> 8 | M101: =N101*K101 -> 9600 | N101: 1200 | O101: Successful | P101: 2019-09-23 | R101: N
A102: 68 | B102: 2019-09-23 | D102: HINDPETRO | E102: Sell | F102: 286 | G102: 295.3 | H102: 280.5 | I102: 272-268 | J102: Profit of Rs.5.50/- | K102: =F102-H102 -> 5.5 | L102: =K102/F102 -> 1.92% | O102: Successful | P102: 2019-09-23 | R102: R
A103: 69 | B103: 2019-09-23 | D103: VOLTAS OCT FUT | E103: Buy | F103: 681 | G103: 667 | H103: 669 | I103: 700-710 | J103: Loss of Rs.12/- | K103: =H103-F103 -> -12 | M103: =N103*K103 -> -12000 | N103: 1000 | O103: Unsuccessful | P103: 2019-09-24 | R103: N
A104: 70 | B104: 2019-09-23 | D104: CONCOR OCT FUT | E104: Buy | F104: 579 | G104: 568 | H104: 589 | I104: 600 | J104: Profit of Rs.10/- | K104: =H104-F104 -> 10 | M104: =N104*K104 -> 15630 | N104: 1563 | O104: Successful | P104: 2019-09-23 | R104: N
A105: 71 | B105: 2019-09-24 | D105: COLPAL OCT FUT | E105: Buy | F105: 1517-1520 | G105: 1498 | I105: 1555 | J105: Open | R105: N
A106: 72 | B106: 2019-09-24 | D106: M&M OCT FUT | E106: Buy | F106: 562-564 | G106: 548 | I106: 580-590 | J106: Open | R106: H
A107: 73 | B107: 2019-09-24 | D107: AMARAJABAT OCT FUT | E107: Buy | F107: 721-723 | G107: 703 | I107: 750-760 | J107: Open | R107: N
A108: 74 | B108: 2019-09-24 | D108: HDFC | E108: Buy | F108: 2130-2138 | G108: 2075 | I108: 2220-2240 | J108: Open | R108: H
A109: 75 | B109: 2019-09-24 | D109: APOLLOHOSP OCT FUT | E109: Buy | F109: 1458-1462 | G109: 1435 | I109: 1510 | J109: Open | R109: N
A110: 76 | B110: 2019-09-24 | D110: VEDL | E110: Sell | F110: 161 | G110: 165.8 | H110: 158.5 | I110: 154-152 | J110: Profit of Rs.2.50/- | K110: =F110-H110 -> 2.5 | L110: =K110/F110 -> 1.55% | O110: Successful | P110: 2019-09-24 | R110: H
A111: 77
A112: 78
A115: CLBS = Closing Basis ***
A116: Dividend adjusted <> | F116: Reinitiated $
F117: Revised stoploss #
A119: Master Trade High Risk
A120: Sr.no | B120: Date | D120: Company | E120: Rec | F120: Rec Price | G120: Stop Loss | H120: Call Closed At | I120: Target | J120: Remark | K120: Profit / Loss per share | L120: Gain / Loss per Lot | M120: Lot | N120: Status | O120: Closed Date
A121: 1 | B121: 2019-09-05 | D121: HEROMOTOCO SEP FUT | E121: Buy | F121: 2595 | G121: 2490 | H121: 2645 | I121: 2750 | J121: Profit of Rs.42.5/- | K121: =H121-F121 -> 50 | L121: =M121*42.5 -> 8500 | M121: 200 | N121: Successful | O121: 2019-09-06 | R121: H
D122: HEROMOTOCO SEP 2700 CE | E122: Sell | F122: 40 | H122: 47.5 | K122: =F122-H122 -> -7.5 | R122: H
A123: 2 | B123: 2019-09-09 | D123: NIFTY SEP FUT | E123: Buy | F123: 10933 | G123: 10780 | H123: 11035 | I123: 11200 | J123: Profit of Rs.65/- | K123: =H123-F123 -> 102 | L123: =65*75 -> 4875 | M123: 75 | N123: Successful | O123: 2019-09-09 | R123: H
D124: Nifty 11050 CE SEP | E124: Sell | F124: 98 | H124: 135 | K124: =F124-H124 -> -37 | R124: H
A125: 3 | B125: 2019-09-24 | D125: NIFTY OCT FUT | E125: Buy | F125: 11700 | G125: 11855 | H125: 11620 | I125: 11500 | J125: Profit of Rs.75/- | K125: =F125-H125 -> 80 | L125: =75*75 -> 5625 | M125: 75 | N125: Successful | O125: 2019-09-24 | R125: H
D126: Nifty 11500 PE 3-OCT | E126: Sell | F126: 87.50 | H126: 92.5 | K126: =F126-H126 -> -5 | R126: H
A129: Master Trade Medium Risk
A130: Sr.no | B130: Date | D130: Company | E130: Rec | F130: Rec Price | G130: Stop Loss | H130: Call Closed At | I130: Target | J130: Remark | K130: Profit/ Loss per lot | L130: Gain / Loss per Lot | M130: Lot | N130: Status | O130: Closed Date
A131: 1 | B131: 2019-09-03 | D131: NIFTY 05-Sep 11000 CE | E131: Buy | F131: 38 | G131: 19 | H131: 49 | I131: 80 | J131: Profit of Rs.11/- | K131: =H131-F131 -> 11 | L131: =K131*M131 -> 825 | M131: 75 | N131: Successful | O131: 2019-09-03 | R131: H
A132: 2 | B132: 2019-09-03 | D132: NIFTY 05-Sep 11000 CE | E132: Buy | F132: 38 | G132: 19 | H132: 27 | I132: 80 | J132: Loss of Rs.11/- | K132: =H132-F132 -> -11 | L132: =K132*M132 -> -825 | M132: 75 | N132: Unsuccessful | O132: 2019-09-03 | R132: H
A133: 3 | B133: 2019-09-03 | D133: NIFTY 05-Sep 10900 CE | E133: Buy | F133: 41 | G133: 27 | H133: 28 | I133: 70-75 | J133: Loss of Rs.13/- | K133: =H133-F133 -> -13 | L133: =K133*M133 -> -975 | M133: 75 | N133: Unsuccessful | O133: 2019-09-04 | R133: H
A134: 4 | B134: 2019-09-05 | D134: NIFTY 12-Sep 11000 CE | E134: Buy | F134: 40 | G134: 22 | H134: 51 | I134: 70-75 | J134: Profit of Rs.11/- | K134: 11 | L134: 825 | M134: 75 | N134: Successful | O134: 2019-09-06 | R134: H
A135: 5 | B135: 2019-09-06 | D135: M&M Sep 530 CE | E135: Buy | F135: 11.5 | G135: 6 | H135: 13.75 | I135: 20 | J135: Profit of Rs.2.25/- | K135: 2.25 | L135: 2250 | M135: 1000 | N135: Successful | O135: 2019-09-06 | R135: H
A136: 6 | B136: 2019-09-09 | D136: HINDUNILVR Sep 1840 CE | E136: Buy | F136: 32 | G136: 15 | H136: 15 | I136: 60 | J136: Loss of Rs.17/- | K136: =H136-F136 -> -17 | L136: =K136*M136 -> -5100 | M136: 300 | N136: Unsuccessful | O136: 2019-09-12 | R136: N
A137: 7 | B137: 2019-09-09 | D137: ICICIBANK Sep 400 CE | E137: Buy | F137: 7.5 | G137: 3.5 | H137: 9.25 | I137: 15 | J137: Profit of Rs.1.75/- | K137: =H137-F137 -> 1.75 | L137: =K137*M137 -> 2406.25 | M137: 1375 | N137: Successful | O137: 2019-09-09 | R137: N
A138: 8 | B138: 2019-09-09 | D138: HDFCBANK 1130 CE SEP | E138: Buy | F138: 17.50 | H138: 26 | J138: Profit of Rs.7/- | K138: 8.5 | L138: =M138*7 -> 3500 | M138: 500 | N138: Successful | O138: 2019-09-20 | R138: N
D139: HDFCBANK 1140 CE SEP | E139: Sell | F139: 14 | H139: 15.5 | K139: =F139-H139 -> -1.5 | R139: N
A140: 9 | B140: 2019-09-09 | D140: NIFTY 12-Sep 10950 PE | E140: Buy | F140: 40.5 | G140: 22 | H140: 50 | I140: 80 | J140: Profit of Rs.9.50/- | K140: =H140-F140 -> 9.5 | L140: =K140*M140 -> 712.5 | M140: 75 | N140: Successful | O140: 2019-09-09 | R140: H
A141: 10 | B141: 2019-09-09 | D141: ASIANPAINT Sep 1540 PE | E141: Buy | F141: 25 | G141: 16 | H141: 29.5 | I141: 40 | J141: Profit of Rs.4.50/- | K141: 4.5 | L141: 2700 | M141: 600 | N141: Successful | O141: 2019-09-09 | R141: N
A142: 11 | B142: 2019-09-11 | D142: BHARATFORG 410 CE SEP | E142: Buy | F142: 8.50 | H142: 13.5 | J142: Profit of Rs.2/- | K142: 5 | L142: 2400 | M142: 1200 | N142: Successful | O142: 2019-09-11 | R142: H
D143: BHARATFORG 420 CE SEP | E143: Sell | F143: 5.50 | H143: 8.5 | K143: =F143-H143 -> -3 | R143: H
A144: 12 | B144: 2019-09-11 | D144: TCS Sep 2180 CE | E144: Buy | F144: 33.5 | G144: 8 | H144: 12.5 | I144: 70 | J144: Loss of Rs.21/- | K144: =H144-F144 -> -21 | L144: =K144*M144 -> -5250 | M144: 250 | N144: Unsuccessful | O144: 2019-09-17 | R144: H
A145: 13 | B145: 2019-09-11 | D145: ASIANPAINT Sep 1560 PE | E145: Buy | F145: 25.5 | G145: 16 | H145: 26 | I145: 40 | J145: Neutral | K145: =H145-F145 -> 0.5 | L145: =K145*M145 -> 300 | M145: 600 | N145: Neutral | O145: 2019-09-12 | R145: N
A146: 14 | B146: 2019-09-12 | D146: NIFTY 19-Sep 10950 PE | E146: Buy | F146: 40 | G146: 17 | H146: 49.5 | I146: 80 | J146: Profit of Rs.9.50/- | K146: 9.5 | L146: =K146*M146 -> 712.5 | M146: 75 | N146: Successful | O146: 2019-09-12 | R146: H
A147: 15 | B147: 2019-09-12 | D147: JUBLFOOD Sep 1280 CE | E147: Buy | F147: 10.5 | G147: 4 | H147: 13.5 | I147: 20-24 | J147: Profit of Rs.3/- | K147: =H147-F147 -> 3 | L147: =K147*M147 -> 1500 | M147: 500 | N147: Successful | O147: 2019-09-13 | R147: H
A148: 16 | B148: 2019-09-16 | D148: RELIANCE Sep 1220 CE | E148: Buy | F148: 16.5 | G148: 6 | H148: 19.75 | I148: 35-45 | J148: Profit of Rs.3.25/- | K148: =H148-F148 -> 3.25 | L148: =K148*M148 -> 1625 | M148: 500 | N148: Successful | O148: 2019-09-16 | R148: H
A149: 17 | B149: 2019-09-16 | D149: ASIANPAINT Sep 1520 PE | E149: Buy | F149: 21 | G149: 14 | H149: 24.5 | I149: 30-35 | J149: Profit of Rs.3.50/- | K149: =H149-F149 -> 3.5 | L149: =K149*M149 -> 2100 | M149: 600 | N149: Successful | O149: 2019-09-16 | R149: N
A150: 18 | B150: 2019-09-16 | D150: Nifty 19-Sep 11000 PE | E150: Buy | F150: 40.5 | G150: 17 | H150: 51 | I150: 70-75 | J150: Profit of Rs.10.50/- | K150: =H150-F150 -> 10.5 | L150: =K150*M150 -> 787.5 | M150: 75 | N150: Successful | O150: 2019-09-16 | R150: H
A151: 19 | B151: 2019-09-17 | D151: Nifty 19-Sep 11000 CE | E151: Buy | F151: 47 | G151: 17 | H151: 17 | I151: 90 | J151: Loss of Rs.30/- | K151: -30 | L151: -2250 | M151: 75 | N151: Unsuccessful | O151: 2019-09-17 | R151: H
A152: 20 | B152: 2019-09-17 | D152: ICICIBANK Sep 410 CE | E152: Buy | F152: 6.75 | G152: 3.5 | H152: 4 | I152: 12.00-15.00 | J152: Loss of Rs.2.75/- | K152: -2.75 | L152: -3781.25 | M152: 1375 | N152: Unsuccessful | O152: 2019-09-17 | R152: N
A153: 21 | B153: 2019-09-18 | D153: M&M Sep 540 CE | E153: Buy | F153: 6.25 | G153: 3 | H153: 3 | I153: 12.00-14.00 | J153: Loss of Rs.3.25/- | K153: =H153-F153 -> -3.25 | L153: =K153*M153 -> -3250 | M153: 1000 | N153: Unsuccessful | O153: 2019-09-19 | R153: H
A154: 22 | B154: 2019-09-19 | D154: Nifty Sep 10900 CE | E154: Buy | F154: 44 | G154: 19 | H154: 23.5 | I154: 90 | J154: Loss of Rs.20.5/- | K154: -20.5 | L154: -1537.5 | M154: 75 | N154: Unsuccessful | O154: 2019-09-19 | R154: H
A155: 23 | B155: 2019-09-20 | D155: SUNPHARMA 420 CE SEP | E155: Buy | F155: 6.50-7.50 | J155: Open | R155: N
D156: SUNPHARMA 430 CE SEP | E156: Sell | F156: 4-4.5 | R156: N
A157: 24 | B157: 2019-09-23 | D157: Nifty 3-OCT 11300 PE | E157: Buy | F157: 47.5 | G157: 29 | H157: 52.5 | I157: 80-90 | J157: Profit of Rs.5/- | K157: =H157-F157 -> 5 | L157: =K157*M157 -> 375 | M157: 75 | N157: Neutral | O157: 2019-09-23 | R157: H
A158: 25 | B158: 2019-09-24 | D158: Nifty 3-OCT 11300 PE | E158: Buy | F158: 50 | G158: 29 | H158: 34.5 | I158: 80-90 | J158: Loss of Rs.15.5/- | K158: -15.5 | L158: -1162.5 | M158: 75 | N158: Unsuccessful | O158: 2019-09-24 | R158: H
A161: Techno -Funda (positional)
A162: Sr.no | B162: Date | D162: Company | E162: Rec | F162: Rec Price | G162: Stop Loss*** | H162: Call Closed At | I162: Target | J162: Remark | K162: Profit / Loss per Share | L162: Gain / Loss % | M162: Status | N162: Closed Date | O162: NSE Closed Price
A163: 1 | B163: 2019-08-13 | D163: ITC | E163: Buy | F163: 246-248 | G163: 228 | I163: 290-300 | J163: Open | O163: =VLOOKUP(D163,Sheet2!A131:M1770,6,0) -> 256 | R163: H
A167: CLBS = Closing Basis *** | F167: Reinitiated $
A168: Dividend adjusted <> | F168: Revised stoploss #
B173: Investment Idea
A174: Sr.no | B174: Date | D174: Company | E174: Rec | F174: Rec Price | G174: Point of Review | H174: Close Rate | I174: Target | J174: Remark | K174: Profit / Loss per Share | L174: Gain / Loss % | M174: Status | N174: Closed Date
A175: 1 | B175: 2013-11-01 | D175: L&T Finance Holding | E175: Accu | F175: 82.00 | G175: - | H175: 100 | I175: 100.00 | J175: Target Achieved | K175: =H175-F175 -> 18.00 | L175: =K175/F175 -> 21.95% | M175: Successful | N175: 2016-10-14
A176: 2 | B176: 2014-06-04 | D176: Finolex Inds | E176: Buy | F176: 257.00 | G176: - | H176: 300 | I176: 300.00 | J176: Target Achieved | K176: =H176-F176 -> 43.00 | L176: 16.73% | M176: Successful | N176: 2014-07-02
A177: 3 | B177: 2014-07-08 | D177: JK Cement | E177: Buy | F177: 393.00 | G177: - | H177: 468 | I177: 468.00 | J177: Target Achieved | K177: =H177-F177 -> 75.00 | L177: 19.08% | M177: Successful | N177: 2014-08-12
A178: 4 | B178: 2014-08-06 | D178: Finolex Cables | E178: Buy | F178: 205.00 | G178: - | H178: 275 | I178: 250.00 | J178: Target Achieved | K178: 70.00 | L178: 34.15% | M178: Successful | N178: 2014-11-19
A179: 5 | B179: 2014-09-04 | D179: Exide Inds | E179: Buy | F179: 162.00 | G179: - | H179: 190 | I179: 190.00 | J179: Target Achieved | K179: 28.00 | L179: 17.28% | M179: Successful | N179: 2015-01-02
A180: 6 | B180: 2014-09-04 | D180: Deepak Nitrite | E180: Buy | F180: 75.00 | G180: - | H180: 91.5 | I180: 95-100 | J180: Profit of Rs.16.50/- | K180: 16.50 | L180: 22.00% | M180: Successful | N180: 2014-11-11
A181: 7 | B181: 2014-10-01 | D181: Mercks | E181: Buy | F181: 850.00 | G181: - | H181: 982.5 | I181: 1050.00 | J181: Profit of Rs.132.50/- | K181: 132.50 | L181: 15.59% | M181: Successful | N181: 2015-02-04
A182: 8 | B182: 2014-10-01 | D182: Grindwell Norton | E182: Buy | F182: 475.00 | G182: - | H182: 515 | I182: 600.00 | J182: Profit of Rs.40/- | K182: 40.00 | L182: 8.42% | M182: Successful | N182: 2014-10-27
A183: 9 | B183: 2014-10-01 | D183: Snowman Logistics | E183: Buy | F183: 86.00 | G183: - | H183: 99 | I183: 140.00 | J183: Profit of Rs.13.00/- | K183: 13.00 | L183: 15.12% | M183: Successful | N183: 2014-10-27
A184: 10 | B184: 2014-10-14 | D184: Birla Corp | E184: Buy | F184: 496.60 | G184: - | H184: 621 | I184: 580.00 | J184: Target Achieved | K184: 124.40 | L184: 25.05% | M184: Successful | N184: 2016-08-23
A185: 11 | B185: 2014-10-14 | D185: Ultratech Cem | E185: Buy | F185: 2481.90 | G185: - | H185: 2840 | I185: 2870.00 | J185: Profit of Rs.358.10/- | K185: 358.10 | L185: 14.43% | M185: Successful | N185: 2015-01-13
A186: 12 | B186: 2014-10-16 | D186: Sintex Inds | E186: Buy | F186: 84.50 | G186: - | H186: 93 | I186: 110.00 | J186: Profit of Rs.8.50/- | K186: 8.50 | L186: 10.06% | M186: Successful | N186: 2014-10-27
A187: 13 | B187: 2014-10-16 | D187: HSIL | E187: Buy | F187: 401.00 | G187: - | H187: 428 | I187: 450.00 | J187: Profit of Rs.27.00/- | K187: 27.00 | L187: 6.73% | M187: Successful | N187: 2015-01-16
A188: 14 | B188: 2014-10-16 | D188: Eveready Inds | E188: Buy | F188: 101.00 | G188: - | H188: 112 | I188: 120.00 | J188: Profit of Rs.11.00/- | K188: 11.00 | L188: 10.89% | M188: Successful | N188: 2014-10-27
A189: 15 | B189: 2014-11-11 | D189: Pennar Inds | E189: Buy | F189: 59.00 | G189: - | H189: 76 | I189: 76.00 | J189: Target Achieved | K189: 17.00 | L189: 28.81% | M189: Successful | N189: 2017-10-24
A190: 16 | B190: 2014-11-11 | D190: Snowman Logistics | E190: Buy | F190: 99.00 | G190: - | H190: 120 | I190: 120.00 | J190: Profit of Rs.21/- | K190: 21.00 | L190: 21.21% | M190: Successful | N190: 2014-11-17
A191: 17 | B191: 2014-11-13 | D191: Dharamsi Morarji Chem | E191: Buy | F191: 22.00 | G191: - | H191: 33.55 | I191: 32.00 | J191: Profit of Rs 11.55/- | K191: 11.55 | L191: 52.50% | M191: Successful | N191: 2015-07-03
A192: 18 | B192: 2014-12-03 | D192: Tatachem | E192: Buy | F192: 440.00 | G192: - | H192: 520 | I192: 520.00 | J192: Profit of Rs 80.00/- | K192: 80.00 | L192: 18.18% | M192: Successful | N192: 2015-07-23
A193: 19 | B193: 2014-12-03 | D193: Advanta | E193: Buy | F193: 360.00 | G193: - | H193: 427 | I193: 425.00 | J193: Profit of Rs.67.00/- | K193: 67.00 | L193: 18.61% | M193: Successful | N193: 2015-02-23
A194: 20 | B194: 2015-01-08 | D194: GDL | E194: Buy | F194: 360.00 | G194: - | H194: 455 | I194: 420.00 | J194: Profit of Rs.95.00/- | K194: 95.00 | L194: 26.39% | M194: Successful | N194: 2015-01-20
A195: 21 | B195: 2015-01-08 | D195: NRB Bearing | E195: Buy | F195: 130.00 | H195: 175.5 | I195: 165.00 | J195: Profit of Rs 45.50/- | K195: 45.50 | L195: 35.00% | M195: Successful | N195: 2017-12-19
A196: 22 | B196: 2015-02-05 | D196: GSFC | E196: Accu | F196: 98.00 | H196: 120 | I196: 120.00 | J196: Target Achieved | K196: 22.00 | L196: 22.45% | M196: Successful | N196: 2017-01-18
A197: 23 | B197: 2015-02-05 | D197: Sundrmfast | E197: Accu | F197: 196.00 | H197: 262 | I197: 255.00 | J197: Target Achieved | K197: 66.00 | L197: 33.67% | M197: Successful | N197: 2016-08-17
A198: 24 | B198: 2015-03-04 | D198: GPPL | E198: Accu | F198: 235 | H198: 77.00 | I198: 280-285 | J198: Loss of Rs.158/- | K198: =H198-F198 -> -158.00 | L198: -67.23% | M198: Unsuccessful | N198: 2019-02-26
A199: 25 | B199: 2015-03-04 | D199: ORIENTCEM | E199: Accu | F199: 185.00 | H199: 224 | I199: 220-225 | J199: Target Achieved | K199: 39.00 | L199: =K199/F199 -> 21.08% | M199: Successful | N199: 2016-10-04
A200: 26 | B200: 2015-03-27 | D200: PFS | E200: Accu | F200: 49.5 | H200: 15.85 | I200: 67.00 | J200: Loss of Rs.33.65/- | K200: =H200-F200 -> -33.65 | L200: =K200/F200 -> -68% | M200: Unsuccessful | N200: 2019-06-11
A201: 27 | B201: 2015-03-30 | D201: Walchandnagar Ind Ltd | E201: Accu | F201: 183.50 | H201: 219 | I201: 218.00 | J201: Profit of Rs.35.50/- | K201: 35.50 | L201: =K201/F201 -> 19.35% | M201: Successful | N201: 2015-04-09
A202: 28 | B202: 2015-04-20 | D202: Kalpataru Power Transmission Ltd | E202: Accu | F202: =(227+237)/2 -> 232.00 | H202: 298 | I202: 298.00 | J202: Target Achieved | K202: 66.00 | L202: 28.45% | M202: Successful | N202: 2017-03-29
A203: 29 | B203: 2015-05-04 | D203: Mastek Ltd | E203: Buy | F203: 385.00 | H203: =212.5+331 -> 543.5 | I203: 510.00 | J203: Profit of Rs 158.50/- | K203: 158.50 | L203: 41.17% | M203: Successful | N203: 2015-08-19
A204: 30 | B204: 2015-05-04 | D204: Suprajit Eng | E204: Buy | F204: 115.50 | H204: 146 | I204: 142.00 | J204: Profit of Rs 30.50/- | K204: 30.50 | L204: 26.41% | M204: Successful | N204: 2015-07-17
A205: 31 | B205: 2015-05-27 | D205: TCI | E205: Buy | F205: 237.50 | H205: 279.5 | I205: 278.00 | J205: Target Achieved | K205: 42.00 | L205: 17.68% | M205: Successful | N205: 2015-08-06
A206: 32 | B206: 2015-06-19 | D206: HSIL | E206: Accu | F206: 340.00 | H206: 448 | I206: 448.00 | J206: Target Achieved | K206: 108.00 | L206: 31.76% | M206: Successful | N206: 2017-10-10
A207: 33 | B207: 2015-07-06 | D207: Capital First | E207: Accu | F207: 390.00 | H207: 460 | I207: 460.00 | J207: Target Achieved | K207: 70.00 | L207: 17.95% | M207: Successful | N207: 2016-04-18
A208: 34 | B208: 2015-07-10 | D208: Dolphin OffShore | E208: Accu | F208: 122.5 | H208: 61.00 | I208: 172.00 | J208: Loss of Rs.61.50/- | K208: -61.50 | L208: -50.20% | M208: Unsuccessful | N208: 2018-08-21
A209: 35 | B209: 2015-08-03 | D209: Allcargo logistics | E209: Accu | F209: 297.50 | H209: 350 | I209: 360.00 | J209: Profit of Rs 52.50/- | K209: 52.50 | L209: 17.65% | M209: Successful | N209: 2015-08-16
A210: 36 | B210: 2015-08-03 | D210: Camline Fine | E210: Accu | F210: 115.50 | H210: 149 | I210: 140.00 | J210: Profit of Rs 33.50/- | K210: 33.50 | L210: 29.00% | M210: Successful | N210: 2017-01-05
A211: 37 | B211: 2015-09-04 | D211: TCI | E211: Accu | F211: 226.00 | H211: 292 | I211: 292.00 | J211: Target Achieved | K211: 66.00 | L211: 29.20% | M211: Successful | N211: 2015-10-09
A212: 38 | B212: 2015-09-07 | D212: Kalpataru Power Transmission Ltd | E212: Accu | F212: 232.50 | H212: 312.5 | I212: 310.00 | J212: Target Achieved | K212: 80.00 | L212: 34.41% | M212: Successful | N212: 2017-03-29
A213: 39 | B213: 2015-09-21 | D213: LLOYD ELECTRIC & ENG LTD | E213: Accu | F213: 196.50 | H213: 238 | I213: 238.00 | J213: Target Achieved | K213: 41.50 | L213: 21.12% | M213: Successful | N213: 2015-10-14
A214: 40 | B214: 2015-09-24 | D214: L&T Finance Holding | E214: Accu | F214: 65.00 | H214: 82 | I214: 82.00 | J214: Target Achieved | K214: 17.00 | L214: 26.15% | M214: Successful | N214: 2016-07-27
A215: 41 | B215: 2015-10-14 | D215: KEC International ltd | E215: Accu | F215: 144.00 | H215: 182.5 | I215: 181.00 | J215: Target Achieved | K215: 38.50 | L215: 26.74% | M215: Successful | N215: 2017-03-23
A216: 42 | B216: 2015-10-14 | D216: Gruh Finance | E216: Accu | F216: 264.00 | H216: 311 | I216: 311.00 | J216: Target Achieved | K216: 47.00 | L216: 17.80% | M216: Successful | N216: 2016-08-22
A217: 43 | B217: 2015-11-10 | D217: Pidilitind | E217: Buy | F217: 549.50 | H217: 630 | I217: 630.00 | J217: Target Achieved | K217: 80.50 | L217: 14.65% | M217: Successful | N217: 2016-02-19
A218: 44 | B218: 2015-12-04 | D218: Zensar Technology | E218: Accu | F218: 1027.50 | H218: 1315 | I218: 1250.00 | J218: Target Achieved | K218: =H218-F218 -> 287.50 | L218: 27.98% | M218: Successful | N218: 2018-05-24
A219: 45 | B219: 2015-12-29 | D219: Vinati Organics Ltd | E219: Accu | F219: 465.00 | H219: 540 | I219: 540.00 | J219: Target Achieved | K219: 75.00 | L219: 16.13% | M219: Successful | N219: 2016-06-09
A220: 46 | B220: 2016-01-11 | D220: GSFC | E220: Buy | F220: 81.00 | H220: 110 | I220: 110.00 | J220: Target Achieved | K220: 29.00 | L220: 35.80% | M220: Successful | N220: 2017-01-10
A221: 47 | B221: 2016-01-13 | D221: SSWL | E221: Buy | F221: 417.50 | H221: 547 | I221: 535.00 | J221: Target Achieved | K221: 129.50 | L221: 31.02% | M221: Successful | N221: 2016-07-27
A222: 48 | B222: 2016-02-08 | D222: Persistent System Ltd | E222: Accu | F222: 650.00 | H222: 800 | I222: 800.00 | J222: Target Achieved | K222: 150.00 | L222: 23.08% | M222: Successful | N222: 2018-02-23
A223: 49 | B223: 2016-03-04 | D223: UPL | E223: Accu | F223: 437.50 | H223: 504.5 | I223: 522.00 | J223: Profit of Rs.67/- | K223: 67.00 | L223: 15.31% | M223: Successful | N223: 2016-04-20
... 101 more rows

Sheet Sheet2 (hidden)
A1: SYMBOL | B1: SERIES | C1: OPEN | D1: HIGH | E1: LOW | F1: CLOSE | G1: LAST | H1: PREVCLOSE | I1: TOTTRDQTY | J1: TOTTRDVAL | K1: TIMESTAMP | L1: TOTALTRADES | M1: ISIN | N1: ISIN
A2: 20MICRONS | B2: EQ | C2: 38.45 | D2: 38.45 | E2: 37.5 | F2: 37.55 | G2: 37.6 | H2: 37.55 | I2: 20502 | J2: 771359.65 | K2: 2019-09-24 | L2: 180 | M2: INE144J01027
A3: 21STCENMGM | B3: EQ | C3: 12.5 | D3: 12.5 | E3: 12.1 | F3: 12.2 | G3: 12.2 | H3: 12.3 | I3: 300 | J3: 3686 | K3: 2019-09-24 | L3: 4 | M3: INE253B01015
A4: 3IINFOTECH | B4: EQ | C4: 2.15 | D4: 2.2 | E4: 2.1 | F4: 2.2 | G4: 2.2 | H4: 2.15 | I4: 557084 | J4: 1210609.25 | K4: 2019-09-24 | L4: 339 | M4: INE748C01020
A5: 3MINDIA | B5: EQ | C5: 20450 | D5: 20699.95 | E5: 19600 | F5: 19722.3 | G5: 19686.55 | H5: 20379.15 | I5: 2556 | J5: 50951993.6 | K5: 2019-09-24 | L5: 1309 | M5: INE470A01017
A6: 5PAISA | B6: EQ | C6: 156.5 | D6: 156.65 | E6: 155 | F6: 156.65 | G6: 156.65 | H6: 149.2 | I6: 2380 | J6: 372701.45 | K6: 2019-09-24 | L6: 45 | M6: INE618L01018
A7: 63MOONS | B7: EQ | C7: 146.35 | D7: 146.95 | E7: 135.35 | F7: 137.55 | G7: 135.35 | H7: 142.45 | I7: 383130 | J7: 54332289 | K7: 2019-09-24 | L7: 5057 | M7: INE111B01023
A8: A2ZINFRA | B8: EQ | C8: 11 | D8: 11.1 | E8: 10.35 | F8: 11 | G8: 10.95 | H8: 10.65 | I8: 312758 | J8: 3374926.45 | K8: 2019-09-24 | L8: 542 | M8: INE619I01012
A9: AARTIDRUGS | B9: EQ | C9: 480 | D9: 487.95 | E9: 466 | F9: 482.9 | G9: 482 | H9: 478.95 | I9: 9392 | J9: 4494658.2 | K9: 2019-09-24 | L9: 954 | M9: INE767A01016
A10: AARTIIND | B10: EQ | C10: 1687 | D10: 1687 | E10: 1632.65 | F10: 1637.8 | G10: 1642 | H10: 1674.15 | I10: 60505 | J10: 100112782.4 | K10: 2019-09-24 | L10: 7389 | M10: INE769A01020
A11: AARVEEDEN | B11: EQ | C11: 17.8 | D11: 18.4 | E11: 16.65 | F11: 17.45 | G11: 17.8 | H11: 18.3 | I11: 2831 | J11: 49342.6 | K11: 2019-09-24 | L11: 82 | M11: INE273D01019
A12: AAVAS | B12: EQ | C12: 1609 | D12: 1639.75 | E12: 1560.1 | F12: 1585.25 | G12: 1580 | H12: 1601.35 | I12: 16189 | J12: 25719667.25 | K12: 2019-09-24 | L12: 3387 | M12: INE216P01012
A13: ABAN | B13: EQ | C13: 31 | D13: 31.65 | E13: 30.6 | F13: 30.6 | G13: 30.6 | H13: 32.2 | I13: 70356 | J13: 2164839.55 | K13: 2019-09-24 | L13: 551 | M13: INE421A01028
A14: ABB | B14: EQ | C14: 1570 | D14: 1581 | E14: 1545 | F14: 1573.35 | G14: 1567 | H14: 1553.25 | I14: 137947 | J14: 216160390.2 | K14: 2019-09-24 | L14: 9512 | M14: INE117A01022
A15: ABBOTINDIA | B15: EQ | C15: 10750 | D15: 10988.8 | E15: 10750 | F15: 10807.45 | G15: 10850 | H15: 10716.3 | I15: 6799 | J15: 73582140.7 | K15: 2019-09-24 | L15: 1806 | M15: INE358A01014
A16: ABCAPITAL | B16: EQ | C16: 93.35 | D16: 95 | E16: 90.65 | F16: 90.85 | G16: 90.95 | H16: 93.2 | I16: 1394289 | J16: 128197980.2 | K16: 2019-09-24 | L16: 9720 | M16: INE674K01013
A17: ABFRL | B17: EQ | C17: 216 | D17: 216 | E17: 206.55 | F17: 211.45 | G17: 210.6 | H17: 213.55 | I17: 371500 | J17: 78459253.4 | K17: 2019-09-24 | L17: 6905 | M17: INE647O01011
A18: ABMINTLTD | B18: BE | C18: 13.9 | D18: 13.9 | E18: 13.9 | F18: 13.9 | G18: 13.9 | H18: 14.6 | I18: 50 | J18: 695 | K18: 2019-09-24 | L18: 2 | M18: INE251C01017
A19: ABSLNN50ET | B19: EQ | C19: 279.6 | D19: 279.6 | E19: 277.92 | F19: 278.52 | G19: 278.52 | H19: 280.78 | I19: 571 | J19: 159079.07 | K19: 2019-09-24 | L19: 6 | M19: INF209KB1B87
A20: ACC | B20: EQ | C20: 1670 | D20: 1672 | E20: 1622 | F20: 1650.8 | G20: 1652 | H20: 1675.75 | I20: 609163 | J20: 1002447504 | K20: 2019-09-24 | L20: 27704 | M20: INE012A01025
A21: ACCELYA | B21: EQ | C21: 860.95 | D21: 860.95 | E21: 853 | F21: 854.15 | G21: 853 | H21: 860.95 | I21: 1912 | J21: 1636763.65 | K21: 2019-09-24 | L21: 178 | M21: INE793A01012
A22: ACE | B22: EQ | C22: 73 | D22: 74.5 | E22: 69.85 | F22: 72.05 | G22: 72.25 | H22: 70.95 | I22: 577992 | J22: 41433647.75 | K22: 2019-09-24 | L22: 4055 | M22: INE731H01025
A23: ADANIENT | B23: EQ | C23: 151.25 | D23: 153 | E23: 145.4 | F23: 148.05 | G23: 147.2 | H23: 152.4 | I23: 4576924 | J23: 681934178.9 | K23: 2019-09-24 | L23: 24217 | M23: INE423A01024
A24: ADANIGAS | B24: EQ | C24: 133.05 | D24: 136.9 | E24: 131.75 | F24: 133.1 | G24: 133.5 | H24: 135.35 | I24: 491534 | J24: 65910234.9 | K24: 2019-09-24 | L24: 5264 | M24: INE399L01023
A25: ADANIGREEN | B25: EQ | C25: 52 | D25: 53.5 | E25: 51.3 | F25: 52.7 | G25: 52.6 | H25: 52.2 | I25: 763788 | J25: 40142051.9 | K25: 2019-09-24 | L25: 3268 | M25: INE364U01010
A26: ADANIPORTS | B26: EQ | C26: 409.95 | D26: 417.5 | E26: 403.95 | F26: 413.85 | G26: 413.85 | H26: 410.95 | I26: 3112368 | J26: 1285168991 | K26: 2019-09-24 | L26: 72213 | M26: INE742F01042
A27: ADANIPOWER | B27: EQ | C27: 66.4 | D27: 68.2 | E27: 65.7 | F27: 67.6 | G27: 67.4 | H27: 65.9 | I27: 20451509 | J27: 1368877888 | K27: 2019-09-24 | L27: 59888 | M27: INE814H01011
A28: ADANITRANS | B28: EQ | C28: 232 | D28: 237.2 | E28: 230.6 | F28: 232.5 | G28: 232.9 | H28: 232.55 | I28: 73384 | J28: 17132954.55 | K28: 2019-09-24 | L28: 2518 | M28: INE931S01010
A29: ADFFOODS | B29: EQ | C29: 284.95 | D29: 293 | E29: 280.5 | F29: 283.75 | G29: 283.5 | H29: 283.5 | I29: 30235 | J29: 8697448.05 | K29: 2019-09-24 | L29: 1117 | M29: INE982B01019
A30: ADHUNIKIND | B30: EQ | C30: 98.5 | D30: 101.4 | E30: 98 | F30: 99.55 | G30: 99.85 | H30: 97.85 | I30: 38319 | J30: 3834312.1 | K30: 2019-09-24 | L30: 632 | M30: INE452L01012
A31: ADLABS | B31: EQ | C31: 2.95 | D31: 3.25 | E31: 2.95 | F31: 3.15 | G31: 3.1 | H31: 3.1 | I31: 293996 | J31: 933267.4 | K31: 2019-09-24 | L31: 808 | M31: INE172N01012
A32: ADORWELD | B32: EQ | C32: 328 | D32: 334.7 | E32: 318.6 | F32: 321.25 | G32: 319.05 | H32: 326.1 | I32: 5426 | J32: 1764751.45 | K32: 2019-09-24 | L32: 455 | M32: INE045A01017
A33: ADROITINFO | B33: BE | C33: 8.05 | D33: 8.7 | E33: 8 | F33: 8 | G33: 8 | H33: 8.4 | I33: 6740 | J33: 53935.75 | K33: 2019-09-24 | L33: 20 | M33: INE737B01033
A34: ADSL | B34: EQ | C34: 14.6 | D34: 15.85 | E34: 14.2 | F34: 14.9 | G34: 14.8 | H34: 14.6 | I34: 60306 | J34: 897145.7 | K34: 2019-09-24 | L34: 264 | M34: INE102I01027
A35: ADVANIHOTR | B35: EQ | C35: 59.85 | D35: 60.75 | E35: 57.9 | F35: 58.4 | G35: 58.5 | H35: 59.85 | I35: 17711 | J35: 1045093.4 | K35: 2019-09-24 | L35: 275 | M35: INE199C01026
A36: ADVENZYMES | B36: EQ | C36: 170.8 | D36: 172.45 | E36: 163 | F36: 165.65 | G36: 166.75 | H36: 170.8 | I36: 57185 | J36: 9491523.75 | K36: 2019-09-24 | L36: 1563 | M36: INE837H01020
A37: AEGISCHEM | B37: EQ | C37: 183.5 | D37: 187.65 | E37: 181.6 | F37: 183.2 | G37: 183.9 | H37: 178.35 | I37: 261830 | J37: 48257646.85 | K37: 2019-09-24 | L37: 5408 | M37: INE208C01025
A38: AFFLE | B38: EQ | C38: 981.2 | D38: 1000 | E38: 972 | F38: 984.4 | G38: 975 | H38: 999.8 | I38: 38794 | J38: 38360609.95 | K38: 2019-09-24 | L38: 2604 | M38: INE00WC01019
A39: AGARIND | B39: EQ | C39: 115.8 | D39: 116.05 | E39: 109 | F39: 114.15 | G39: 113.75 | H39: 114.8 | I39: 4341 | J39: 494116.2 | K39: 2019-09-24 | L39: 223 | M39: INE204E01012
A40: AGCNET | B40: BE | C40: 120 | D40: 121 | E40: 115.5 | F40: 120 | G40: 120 | H40: 120 | I40: 1570 | J40: 188413.5 | K40: 2019-09-24 | L40: 36 | M40: INE676A01019
A41: AGLSL | B41: EQ | C41: 53.75 | D41: 59.35 | E41: 50.2 | F41: 56.1 | G41: 55.1 | H41: 53.65 | I41: 6441 | J41: 352206.9 | K41: 2019-09-24 | L41: 316 | M41: INE517U01013
A42: AGRITECH | B42: EQ | C42: 49.95 | D42: 51 | E42: 48.65 | F42: 49.2 | G42: 49.15 | H42: 49.95 | I42: 11154 | J42: 554334.65 | K42: 2019-09-24 | L42: 333 | M42: INE449G01018
A43: AGROPHOS | B43: EQ | C43: 102 | D43: 102 | E43: 93.65 | F43: 96.75 | G43: 97.7 | H43: 98.1 | I43: 211527 | J43: 20373255.3 | K43: 2019-09-24 | L43: 1857 | M43: INE740V01019
A44: AHLEAST | B44: EQ | C44: 184.65 | D44: 184.65 | E44: 177.05 | F44: 179.95 | G44: 180 | H44: 190.3 | I44: 296 | J44: 53090.25 | K44: 2019-09-24 | L44: 89 | M44: INE926K01017
A45: AHLUCONT | B45: EQ | C45: 321.85 | D45: 324.7 | E45: 313 | F45: 317.25 | G45: 314 | H45: 315.05 | I45: 8268 | J45: 2628349.15 | K45: 2019-09-24 | L45: 337 | M45: INE758C01029
A46: AHLWEST | B46: EQ | C46: 335 | D46: 339 | E46: 335 | F46: 338.6 | G46: 339 | H46: 337.35 | I46: 90 | J46: 30466 | K46: 2019-09-24 | L46: 4 | M46: INE915K01010
A47: AIAENG | B47: EQ | C47: 1779 | D47: 1779.8 | E47: 1718.25 | F47: 1759.65 | G47: 1744 | H47: 1745.7 | I47: 22519 | J47: 39501165.45 | K47: 2019-09-24 | L47: 3519 | M47: INE212H01026
A48: AIONJSW | B48: EQ | C48: 12.2 | D48: 12.9 | E48: 12.1 | F48: 12.5 | G48: 12.55 | H48: 12.5 | I48: 140510 | J48: 1757231.05 | K48: 2019-09-24 | L48: 225 | M48: INE743C01021
A49: AIRAN | B49: EQ | C49: 15.1 | D49: 15.1 | E49: 14.4 | F49: 14.5 | G49: 14.5 | H49: 14.5 | I49: 15343 | J49: 225734.55 | K49: 2019-09-24 | L49: 63 | M49: INE645W01026
A50: AJANTPHARM | B50: EQ | C50: 1021.95 | D50: 1039.7 | E50: 1016.2 | F50: 1030.9 | G50: 1027.05 | H50: 1023.5 | I50: 188817 | J50: 194554151.2 | K50: 2019-09-24 | L50: 6103 | M50: INE031B01049
A51: AJMERA | B51: EQ | C51: 142 | D51: 155.8 | E51: 141.85 | F51: 147.35 | G51: 146.75 | H51: 143.75 | I51: 485396 | J51: 73460543.1 | K51: 2019-09-24 | L51: 6866 | M51: INE298G01027
A52: AKSHARCHEM | B52: EQ | C52: 235 | D52: 245.4 | E52: 235 | F52: 240.25 | G52: 240 | H52: 236.15 | I52: 3378 | J52: 815180.1 | K52: 2019-09-24 | L52: 112 | M52: INE542B01011
A53: AKSHOPTFBR | B53: EQ | C53: 9.2 | D53: 9.2 | E53: 8.75 | F53: 9 | G53: 8.95 | H53: 9.1 | I53: 206141 | J53: 1845240.05 | K53: 2019-09-24 | L53: 396 | M53: INE523B01011
A54: AKZOINDIA | B54: EQ | C54: 1968 | D54: 1986.4 | E54: 1886 | F54: 1905.3 | G54: 1900 | H54: 1939.95 | I54: 24021 | J54: 46195969.4 | K54: 2019-09-24 | L54: 2630 | M54: INE133A01011
A55: ALANKIT | B55: EQ | C55: 23.3 | D55: 24.35 | E55: 22.05 | F55: 22.4 | G55: 22.55 | H55: 24.25 | I55: 279791 | J55: 6364647.05 | K55: 2019-09-24 | L55: 1244 | M55: INE914E01040
A56: ALBERTDAVD | B56: EQ | C56: 378.85 | D56: 378.85 | E56: 362 | F56: 368.2 | G56: 367.6 | H56: 375.75 | I56: 3244 | J56: 1193361.3 | K56: 2019-09-24 | L56: 201 | M56: INE155C01010
A57: ALBK | B57: EQ | C57: 31.2 | D57: 31.6 | E57: 30.8 | F57: 31.05 | G57: 31 | H57: 31.45 | I57: 487725 | J57: 15213945.5 | K57: 2019-09-24 | L57: 2038 | M57: INE428A01015
A58: ALCHEM | B58: BE | C58: 1.05 | D58: 1.1 | E58: 1.05 | F58: 1.05 | G58: 1.05 | H58: 1.05 | I58: 1856 | J58: 1952.3 | K58: 2019-09-24 | L58: 7 | M58: INE964B01033
A59: ALEMBICLTD | B59: EQ | C59: 51 | D59: 53 | E59: 49.6 | F59: 51.25 | G59: 50.95 | H59: 51.05 | I59: 197049 | J59: 10164201.5 | K59: 2019-09-24 | L59: 1558 | M59: INE426A01027
A60: ALICON | B60: EQ | C60: 392 | D60: 405 | E60: 390 | F60: 395.4 | G60: 393 | H60: 397.75 | I60: 1847 | J60: 740131.15 | K60: 2019-09-24 | L60: 102 | M60: INE062D01024
A61: ALKALI | B61: EQ | C61: 47 | D61: 50.85 | E61: 46.25 | F61: 50.2 | G61: 50.85 | H61: 47.55 | I61: 24070 | J61: 1184774.2 | K61: 2019-09-24 | L61: 203 | M61: INE773I01017
A62: ALKEM | B62: EQ | C62: 1927 | D62: 1957.5 | E62: 1920.05 | F62: 1942.6 | G62: 1940 | H62: 1928.85 | I62: 25259 | J62: 49133115.55 | K62: 2019-09-24 | L62: 3164 | M62: INE540L01014
A63: ALKYLAMINE | B63: EQ | C63: 862.3 | D63: 862.35 | E63: 822 | F63: 826.4 | G63: 833 | H63: 850.05 | I63: 16871 | J63: 14160236.95 | K63: 2019-09-24 | L63: 613 | M63: INE150B01021
A64: ALLCARGO | B64: EQ | C64: 106.9 | D64: 114.9 | E64: 106.7 | F64: 108.55 | G64: 107.6 | H64: 101.15 | I64: 1144277 | J64: 125992080.5 | K64: 2019-09-24 | L64: 12896 | M64: INE418H01029
A65: ALLSEC | B65: EQ | C65: 305.85 | D65: 306.9 | E65: 277 | F65: 297.95 | G65: 295 | H65: 294.85 | I65: 848 | J65: 251741.65 | K65: 2019-09-24 | L65: 203 | M65: INE835G01018
A66: ALMONDZ | B66: EQ | C66: 9.55 | D66: 10.4 | E66: 9.55 | F66: 10.25 | G66: 10.25 | H66: 10.05 | I66: 628 | J66: 6446.5 | K66: 2019-09-24 | L66: 10 | M66: INE326B01027
A67: ALOKTEXT | B67: EQ | C67: 1.85 | D67: 1.85 | E67: 1.85 | F67: 1.85 | G67: 1.85 | H67: 1.9 | I67: 705273 | J67: 1304755.05 | K67: 2019-09-24 | L67: 493 | M67: INE270A01011
A68: ALPA | B68: EQ | C68: 16.85 | D68: 16.9 | E68: 16.25 | F68: 16.5 | G68: 16.55 | H68: 16.7 | I68: 23136 | J68: 382891.5 | K68: 2019-09-24 | L68: 148 | M68: INE385I01010
A69: ALPHAGEO | B69: EQ | C69: 227 | D69: 238.05 | E69: 225 | F69: 237.35 | G69: 238.05 | H69: 226.75 | I69: 14580 | J69: 3386397.4 | K69: 2019-09-24 | L69: 414 | M69: INE137C01018
A70: ALPSINDUS | B70: BE | C70: 0.35 | D70: 0.45 | E70: 0.35 | F70: 0.35 | G70: 0.4 | H70: 0.4 | I70: 22806 | J70: 8278.6 | K70: 2019-09-24 | L70: 26 | M70: INE093B01015
A71: AMARAJABAT | B71: EQ | C71: 740 | D71: 744.7 | E71: 720.2 | F71: 728.15 | G71: 726 | H71: 718 | I71: 1035787 | J71: 755129083.3 | K71: 2019-09-24 | L71: 22584 | M71: INE885A01032
A72: AMBER | B72: EQ | C72: 924 | D72: 953.3 | E72: 901.35 | F72: 908.9 | G72: 904 | H72: 916 | I72: 54622 | J72: 50823171 | K72: 2019-09-24 | L72: 2575 | M72: INE371P01015
A73: AMBIKCO | B73: EQ | C73: 930 | D73: 934 | E73: 910 | F73: 918 | G73: 915 | H73: 919.7 | I73: 3689 | J73: 3406295.5 | K73: 2019-09-24 | L73: 421 | M73: INE540G01014
A74: AMBUJACEM | B74: EQ | C74: 219.45 | D74: 219.45 | E74: 212.7 | F74: 215.75 | G74: 215.2 | H74: 220.55 | I74: 2701974 | J74: 581851969.6 | K74: 2019-09-24 | L74: 25190 | M74: INE079A01024
A75: AMDIND | B75: EQ | C75: 17.05 | D75: 17.15 | E75: 16.55 | F75: 16.75 | G75: 16.95 | H75: 17.05 | I75: 2775 | J75: 46394.5 | K75: 2019-09-24 | L75: 46 | M75: INE005I01014
A76: AMJLAND | B76: EQ | C76: 17.95 | D76: 18.9 | E76: 17.45 | F76: 17.55 | G76: 17.55 | H76: 17.95 | I76: 4333 | J76: 76802.85 | K76: 2019-09-24 | L76: 52 | M76: INE606A01024
A77: AMRUTANJAN | B77: EQ | C77: 317.95 | D77: 335.5 | E77: 317.1 | F77: 332.35 | G77: 332.85 | H77: 317.55 | I77: 72780 | J77: 23800645.5 | K77: 2019-09-24 | L77: 4141 | M77: INE098F01031
A78: ANANTRAJ | B78: EQ | C78: 34.65 | D78: 34.75 | E78: 33.35 | F78: 34.05 | G78: 34.15 | H78: 34.4 | I78: 170991 | J78: 5849552.8 | K78: 2019-09-24 | L78: 951 | M78: INE242C01024
A79: ANDHRABANK | B79: EQ | C79: 18.7 | D79: 19.25 | E79: 18.6 | F79: 18.7 | G79: 18.65 | H79: 18.9 | I79: 384249 | J79: 7234699.6 | K79: 2019-09-24 | L79: 1391 | M79: INE434A01013
A80: ANDHRACEMT | B80: BE | C80: 3 | D80: 3.1 | E80: 3 | F80: 3 | G80: 3 | H80: 3.15 | I80: 33805 | J80: 101698.55 | K80: 2019-09-24 | L80: 91 | M80: INE666E01012
A81: ANDHRSUGAR | B81: EQ | C81: 307.95 | D81: 313.05 | E81: 307.05 | F81: 308.1 | G81: 307.75 | H81: 306.25 | I81: 26016 | J81: 8058404.25 | K81: 2019-09-24 | L81: 678 | M81: INE715B01013
A82: ANIKINDS | B82: EQ | C82: 7.65 | D82: 8.1 | E82: 7.6 | F82: 7.6 | G82: 7.6 | H82: 7.6 | I82: 1516 | J82: 11653.1 | K82: 2019-09-24 | L82: 20 | M82: INE087B01017
A83: ANKITMETAL | B83: BE | C83: 0.45 | D83: 0.55 | E83: 0.45 | F83: 0.5 | G83: 0.5 | H83: 0.5 | I83: 47930 | J83: 23807.5 | K83: 2019-09-24 | L83: 25 | M83: INE106I01010
A84: ANSALAPI | B84: EQ | C84: 5.6 | D84: 5.7 | E84: 5.35 | F84: 5.4 | G84: 5.4 | H84: 5.55 | I84: 46272 | J84: 257284.2 | K84: 2019-09-24 | L84: 104 | M84: INE436A01026
A85: ANSALHSG | B85: EQ | C85: 5.3 | D85: 5.85 | E85: 5.3 | F85: 5.65 | G85: 5.7 | H85: 5.65 | I85: 46867 | J85: 262253.35 | K85: 2019-09-24 | L85: 200 | M85: INE880B01015
A86: ANTGRAPHIC | B86: BE | C86: 0.75 | D86: 0.75 | E86: 0.7 | F86: 0.75 | G86: 0.75 | H86: 0.75 | I86: 36705 | J86: 27078.25 | K86: 2019-09-24 | L86: 23 | M86: INE414B01021
A87: ANUP | B87: EQ | C87: 434 | D87: 437 | E87: 424.1 | F87: 425.3 | G87: 424.1 | H87: 433.9 | I87: 17008 | J87: 7291107.45 | K87: 2019-09-24 | L87: 683 | M87: INE294Z01018
A88: APARINDS | B88: EQ | C88: 577.6 | D88: 584.65 | E88: 565 | F88: 577.6 | G88: 577.35 | H88: 577.6 | I88: 4188 | J88: 2421411.1 | K88: 2019-09-24 | L88: 662 | M88: INE372A01015
A89: APCL | B89: EQ | C89: 154.85 | D89: 155.1 | E89: 150 | F89: 150.2 | G89: 150 | H89: 153.1 | I89: 3566 | J89: 542390.55 | K89: 2019-09-24 | L89: 118 | M89: INE071F01012
A90: APCOTEXIND | B90: EQ | C90: 198.3 | D90: 212 | E90: 198.3 | F90: 208.25 | G90: 208.9 | H90: 200.7 | I90: 114121 | J90: 23587093.9 | K90: 2019-09-24 | L90: 1610 | M90: INE116A01032
A91: APEX | B91: EQ | C91: 246.7 | D91: 261.65 | E91: 245.1 | F91: 257.75 | G91: 259.9 | H91: 244.75 | I91: 192096 | J91: 49014649.15 | K91: 2019-09-24 | L91: 5591 | M91: INE346W01013
A92: APLAPOLLO | B92: EQ | C92: 1443 | D92: 1450 | E92: 1396.5 | F92: 1417.45 | G92: 1400 | H92: 1406.05 | I92: 15771 | J92: 22469234.25 | K92: 2019-09-24 | L92: 1710 | M92: INE702C01019
A93: APLLTD | B93: EQ | C93: 543.7 | D93: 543.7 | E93: 529 | F93: 533.05 | G93: 531.5 | H93: 538.2 | I93: 15284 | J93: 8178007.85 | K93: 2019-09-24 | L93: 1159 | M93: INE901L01018
A94: APOLLO | B94: EQ | C94: 88.75 | D94: 88.75 | E94: 84 | F94: 85.3 | G94: 85.3 | H94: 86.5 | I94: 9428 | J94: 800420.55 | K94: 2019-09-24 | L94: 347 | M94: INE713T01010
A95: APOLLOHOSP | B95: EQ | C95: 1479.4 | D95: 1488.4 | E95: 1433.2 | F95: 1453.1 | G95: 1455 | H95: 1470.5 | I95: 410553 | J95: 596688880.1 | K95: 2019-09-24 | L95: 28291 | M95: INE437A01024
A96: APOLLOTYRE | B96: EQ | C96: 190 | D96: 191.4 | E96: 185.25 | F96: 186.25 | G96: 186.1 | H96: 189.2 | I96: 1878154 | J96: 351921542.8 | K96: 2019-09-24 | L96: 16644 | M96: INE438A01022
A97: APOLSINHOT | B97: EQ | C97: 846 | D97: 865 | E97: 830 | F97: 860.3 | G97: 863.9 | H97: 834 | I97: 1192 | J97: 1013511.8 | K97: 2019-09-24 | L97: 99 | M97: INE451F01024
A98: APTECHT | B98: EQ | C98: 148.9 | D98: 164.45 | E98: 147.35 | F98: 157 | G98: 157.5 | H98: 148.9 | I98: 672080 | J98: 105158419.8 | K98: 2019-09-24 | L98: 9992 | M98: INE266F01018
A99: ARCHIDPLY | B99: EQ | C99: 30.45 | D99: 31.8 | E99: 28.55 | F99: 30.2 | G99: 30.6 | H99: 29.45 | I99: 19695 | J99: 605870.25 | K99: 2019-09-24 | L99: 305 | M99: INE877I01016
A100: ARCHIES | B100: EQ | C100: 22.5 | D100: 22.7 | E100: 20.4 | F100: 20.7 | G100: 20.95 | H100: 22.6 | I100: 199772 | J100: 4244290.1 | K100: 2019-09-24 | L100: 1290 | M100: INE731A01020
A101: ARCOTECH | B101: BE | C101: 2.25 | D101: 2.3 | E101: 2.1 | F101: 2.25 | G101: 2.25 | H101: 2.2 | I101: 37769 | J101: 82061.1 | K101: 2019-09-24 | L101: 49 | M101: INE574I01035
A102: ARIES | B102: EQ | C102: 66.1 | D102: 67.25 | E102: 64.65 | F102: 66 | G102: 65.5 | H102: 64.95 | I102: 27901 | J102: 1841943.1 | K102: 2019-09-24 | L102: 464 | M102: INE298I01015
A103: ARIHANT | B103: EQ | C103: 20.6 | D103: 20.6 | E103: 18.7 | F103: 19.25 | G103: 19 | H103: 18.15 | I103: 2686 | J103: 53794 | K103: 2019-09-24 | L103: 52 | M103: INE413D01011
A104: ARIHANTSUP | B104: EQ | C104: 43.95 | D104: 44.65 | E104: 42.55 | F104: 44.1 | G104: 44.35 | H104: 42.55 | I104: 15351 | J104: 682324.95 | K104: 2019-09-24 | L104: 120 | M104: INE643K01018
A105: ARMANFIN | B105: EQ | C105: 545 | D105: 559.95 | E105: 525.1 | F105: 535.2 | G105: 530 | H105: 536 | I105: 10397 | J105: 5592995.35 | K105: 2019-09-24 | L105: 533 | M105: INE109C01017
A106: AROGRANITE | B106: EQ | C106: 43.1 | D106: 43.7 | E106: 43 | F106: 43.05 | G106: 43.3 | H106: 43 | I106: 7842 | J106: 338263.35 | K106: 2019-09-24 | L106: 172 | M106: INE210C01013
A107: ARROWGREEN | B107: EQ | C107: 61.2 | D107: 66.65 | E107: 60.85 | F107: 61.85 | G107: 61.35 | H107: 64.05 | I107: 3167 | J107: 197683.15 | K107: 2019-09-24 | L107: 53 | M107: INE570D01018
A108: ARROWTEX | B108: EQ | C108: 11 | D108: 11 | E108: 10.6 | F108: 10.85 | G108: 10.8 | H108: 11 | I108: 5048 | J108: 54393.4 | K108: 2019-09-24 | L108: 32 | M108: INE933J01015
A109: ARSHIYA | B109: EQ | C109: 25 | D109: 25.4 | E109: 22.7 | F109: 23.15 | G109: 23 | H109: 24.6 | I109: 44362 | J109: 1071467.85 | K109: 2019-09-24 | L109: 258 | M109: INE968D01022
A110: ARSSINFRA | B110: EQ | C110: 27.2 | D110: 27.6 | E110: 26.55 | F110: 26.8 | G110: 27 | H110: 27.15 | I110: 4650 | J110: 124682.45 | K110: 2019-09-24 | L110: 34 | M110: INE267I01010
A111: ARVIND | B111: EQ | C111: 56.75 | D111: 56.9 | E111: 53.7 | F111: 55.35 | G111: 55.1 | H111: 56.75 | I111: 3991465 | J111: 219563467.8 | K111: 2019-09-24 | L111: 13782 | M111: INE034A01011
A112: ARVINDFASN | B112: EQ | C112: 466.95 | D112: 473.95 | E112: 465.1 | F112: 471.3 | G112: 470 | H112: 466.95 | I112: 17543 | J112: 8213213.4 | K112: 2019-09-24 | L112: 949 | M112: INE955V01021
A113: ARVSMART | B113: EQ | C113: 90.8 | D113: 90.8 | E113: 89.05 | F113: 90 | G113: 89.5 | H113: 89.45 | I113: 6607 | J113: 593668.5 | K113: 2019-09-24 | L113: 163 | M113: INE034S01021
A114: ASAHIINDIA | B114: EQ | C114: 182 | D114: 196.3 | E114: 180.6 | F114: 192.35 | G114: 193 | H114: 182 | I114: 106960 | J114: 20428661.4 | K114: 2019-09-24 | L114: 1158 | M114: INE439A01020
A115: ASAHISONG | B115: EQ | C115: 134.5 | D115: 135.4 | E115: 132 | F115: 134.85 | G115: 135 | H115: 134.95 | I115: 2497 | J115: 332702.45 | K115: 2019-09-24 | L115: 80 | M115: INE228I01012
A116: ASAL | B116: EQ | C116: 38.05 | D116: 38.7 | E116: 36.2 | F116: 38.7 | G116: 38.7 | H116: 37.85 | I116: 4998 | J116: 186067.95 | K116: 2019-09-24 | L116: 188 | M116: INE900C01027
A117: ASHAPURMIN | B117: EQ | C117: 26.95 | D117: 26.95 | E117: 25.3 | F117: 26.05 | G117: 25.75 | H117: 26.4 | I117: 15354 | J117: 395214.9 | K117: 2019-09-24 | L117: 91 | M117: INE348A01023
A118: ASHIANA | B118: EQ | C118: 113.45 | D118: 113.45 | E118: 108 | F118: 108.35 | G118: 108 | H118: 113.5 | I118: 37363 | J118: 4085013.7 | K118: 2019-09-24 | L118: 789 | M118: INE365D01021
A119: ASHIMASYN | B119: EQ | C119: 8.55 | D119: 9.25 | E119: 8.35 | F119: 8.6 | G119: 8.95 | H119: 8.65 | I119: 40534 | J119: 352238.95 | K119: 2019-09-24 | L119: 301 | M119: INE440A01010
A120: ASHOKA | B120: EQ | C120: 118 | D120: 118 | E120: 109 | F120: 109.9 | G120: 109 | H120: 119.15 | I120: 551756 | J120: 61423211.6 | K120: 2019-09-24 | L120: 11617 | M120: INE442H01029
A121: ASHOKLEY | B121: EQ | C121: 76.7 | D121: 77.6 | E121: 73.3 | F121: 75.15 | G121: 75.6 | H121: 74.65 | I121: 63635601 | J121: 4807755252 | K121: 2019-09-24 | L121: 144937 | M121: INE208A01029
A122: ASIANHOTNR | B122: EQ | C122: 107.1 | D122: 115 | E122: 104 | F122: 105.6 | G122: 105.05 | H122: 110.6 | I122: 8413 | J122: 890059.1 | K122: 2019-09-24 | L122: 225 | M122: INE363A01022
A123: ASIANPAINT | B123: EQ | C123: 1802.8 | D123: 1802.95 | E123: 1752 | F123: 1765.9 | G123: 1770 | H123: 1802.75 | I123: 2028042 | J123: 3581090616 | K123: 2019-09-24 | L123: 88479 | M123: INE021A01026
A124: ASIANTILES | B124: EQ | C124: 239 | D124: 246.9 | E124: 235.25 | F124: 244.6 | G124: 244.95 | H124: 238.85 | I124: 131839 | J124: 31981234.6 | K124: 2019-09-24 | L124: 3848 | M124: INE022I01019
A125: ASPINWALL | B125: EQ | C125: 133.2 | D125: 140.3 | E125: 133.2 | F125: 135.35 | G125: 135.1 | H125: 135.15 | I125: 374 | J125: 51054.75 | K125: 2019-09-24 | L125: 18 | M125: INE991I01015
A126: ASSAMCO | B126: BE | C126: 0.6 | D126: 0.7 | E126: 0.6 | F126: 0.65 | G126: 0.6 | H126: 0.65 | I126: 132773 | J126: 83326.6 | K126: 2019-09-24 | L126: 64 | M126: INE442A01024
A127: ASTEC | B127: EQ | C127: 386.2 | D127: 394.5 | E127: 381.25 | F127: 389.8 | G127: 389 | H127: 385.5 | I127: 3431 | J127: 1332575.6 | K127: 2019-09-24 | L127: 195 | M127: INE563J01010
A128: ASTERDM | B128: EQ | C128: 125.3 | D128: 125.4 | E128: 122.05 | F128: 122.75 | G128: 124 | H128: 124.55 | I128: 25008 | J128: 3082302.3 | K128: 2019-09-24 | L128: 668 | M128: INE914M01019
A129: ASTRAL | B129: EQ | C129: 1229 | D129: 1234.95 | E129: 1167.1 | F129: 1174.45 | G129: 1174.9 | H129: 1235.4 | I129: 331985 | J129: 397555548.6 | K129: 2019-09-24 | L129: 25712 | M129: INE006I01046
A130: ASTRAMICRO | B130: EQ | C130: 86.4 | D130: 86.4 | E130: 80.5 | F130: 81.6 | G130: 82 | H130: 84.4 | I130: 280977 | J130: 23286454.3 | K130: 2019-09-24 | L130: 3789 | M130: INE386C01029
A131: ASTRAZEN | B131: EQ | C131: 2112 | D131: 2225 | E131: 2100 | F131: 2196.2 | G131: 2225 | H131: 2098.45 | I131: 45144 | J131: 97741950.8 | K131: 2019-09-24 | L131: 3795 | M131: INE203A01020
A132: ASTRON | B132: EQ | C132: 115 | D132: 115 | E132: 111.6 | F132: 112.55 | G132: 112.4 | H132: 113.55 | I132: 160896 | J132: 18128563.75 | K132: 2019-09-24 | L132: 3441 | M132: INE646X01014
A133: ATFL | B133: EQ | C133: 510.45 | D133: 516.5 | E133: 498.75 | F133: 506.15 | G133: 505 | H133: 510.4 | I133: 3763 | J133: 1906493.75 | K133: 2019-09-24 | L133: 257 | M133: INE209A01019
A134: ATLANTA | B134: EQ | C134: 8.35 | D134: 9.15 | E134: 8.35 | F134: 9.15 | G134: 9.15 | H134: 8.75 | I134: 24202 | J134: 216047.8 | K134: 2019-09-24 | L134: 129 | M134: INE285H01022
A135: ATNINTER | B135: BE | C135: 0.3 | D135: 0.35 | E135: 0.25 | F135: 0.35 | G135: 0.35 | H135: 0.3 | I135: 123088 | J135: 39905.75 | K135: 2019-09-24 | L135: 70 | M135: INE803A01027
A136: ATUL | B136: EQ | C136: 4015.1 | D136: 4015.1 | E136: 3930.1 | F136: 3945.4 | G136: 3946.1 | H136: 3946.6 | I136: 9489 | J136: 37546476.4 | K136: 2019-09-24 | L136: 3100 | M136: INE100A01010
A137: ATULAUTO | B137: EQ | C137: 237 | D137: 240 | E137: 234.1 | F137: 236.55 | G137: 236.5 | H137: 236.1 | I137: 18307 | J137: 4339004.8 | K137: 2019-09-24 | L137: 589 | M137: INE951D01028
A138: AUBANK | B138: EQ | C138: 683 | D138: 689.8 | E138: 660 | F138: 669.95 | G138: 671.3 | H138: 682.5 | I138: 174218 | J138: 117976892.5 | K138: 2019-09-24 | L138: 26759 | M138: INE949L01017
A139: AURIONPRO | B139: EQ | C139: 104.8 | D139: 106.35 | E139: 98 | F139: 105.05 | G139: 101.6 | H139: 101.55 | I139: 42850 | J139: 4415349.6 | K139: 2019-09-24 | L139: 920 | M139: INE132H01018
A140: AUROPHARMA | B140: EQ | C140: 599.8 | D140: 621.3 | E140: 588.9 | F140: 619.05 | G140: 618.7 | H140: 616.95 | I140: 3666862 | J140: 2230968491 | K140: 2019-09-24 | L140: 66904 | M140: INE406A01037
A141: AUSOMENT | B141: EQ | C141: 29.1 | D141: 30.85 | E141: 28.75 | F141: 28.85 | G141: 29.35 | H141: 29.55 | I141: 1139 | J141: 33033.25 | K141: 2019-09-24 | L141: 172 | M141: INE218C01016
A142: AUTOAXLES | B142: EQ | C142: 1009.9 | D142: 1010 | E142: 955 | F142: 961.95 | G142: 960 | H142: 1003.45 | I142: 8426 | J142: 8188223.75 | K142: 2019-09-24 | L142: 941 | M142: INE449A01011
A143: AUTOIND | B143: EQ | C143: 42.05 | D143: 43.1 | E143: 39.45 | F143: 40.3 | G143: 40.5 | H143: 42.85 | I143: 15593 | J143: 641320.55 | K143: 2019-09-24 | L143: 311 | M143: INE718H01014
A144: AUTOLITIND | B144: EQ | C144: 25.45 | D144: 25.45 | E144: 24.45 | F144: 25 | G144: 25 | H144: 25.45 | I144: 1165 | J144: 28917.65 | K144: 2019-09-24 | L144: 23 | M144: INE448A01013
A145: AVADHSUGAR | B145: EQ | C145: 268.1 | D145: 274.9 | E145: 266 | F145: 267.95 | G145: 268.15 | H145: 268.15 | I145: 56037 | J145: 15137354.8 | K145: 2019-09-24 | L145: 2166 | M145: INE349W01017
A146: AVANTIFEED | B146: EQ | C146: 357.9 | D146: 382.6 | E146: 356.9 | F146: 378.3 | G146: 381.8 | H146: 356.15 | I146: 928834 | J146: 347447026.9 | K146: 2019-09-24 | L146: 25865 | M146: INE871C01038
A147: AVTNPL | B147: EQ | C147: 23.5 | D147: 23.85 | E147: 22.65 | F147: 23.35 | G147: 23.4 | H147: 23.6 | I147: 21902 | J147: 507740 | K147: 2019-09-24 | L147: 153 | M147: INE488D01021
A148: AXISBANK | B148: EQ | C148: 728.25 | D148: 733.25 | E148: 702.25 | F148: 704.4 | G148: 703.15 | H148: 725.5 | I148: 15683656 | J148: 1.123002121e+10 | K148: 2019-09-24 | L148: 243208 | M148: INE238A01034
A149: AXISCADES | B149: EQ | C149: 79.8 | D149: 81.9 | E149: 76.5 | F149: 80.4 | G149: 81.9 | H149: 79.8 | I149: 137848 | J149: 11023507.9 | K149: 2019-09-24 | L149: 785 | M149: INE555B01013
A150: AXISGOLD | B150: EQ | C150: 3313.75 | D150: 3316.55 | E150: 3295.05 | F150: 3311.9 | G150: 3316.55 | H150: 3296.35 | I150: 379 | J150: 1254283 | K150: 2019-09-24 | L150: 48 | M150: INF846K01347
A151: AXISNIFTY | B151: EQ | C151: 1198.7 | D151: 1198.7 | E151: 1184.76 | F151: 1188.81 | G151: 1188.81 | H151: 1200.94 | I151: 106 | J151: 125874.32 | K151: 2019-09-24 | L151: 13 | M151: INF846K01ZL0
A152: AYMSYNTEX | B152: EQ | C152: 33.65 | D152: 34.65 | E152: 33 | F152: 33.9 | G152: 34 | H152: 34.2 | I152: 4825 | J152: 161438.6 | K152: 2019-09-24 | L152: 261 | M152: INE193B01039
A153: BAGFILMS | B153: EQ | C153: 1.65 | D153: 1.7 | E153: 1.6 | F153: 1.7 | G153: 1.7 | H153: 1.65 | I153: 672413 | J153: 1132984.05 | K153: 2019-09-24 | L153: 249 | M153: INE116D01028
A154: BAJAJ-AUTO | B154: EQ | C154: 3001 | D154: 3005 | E154: 2929.2 | F154: 2958.15 | G154: 2966.95 | H154: 2995.15 | I154: 479273 | J154: 1418048004 | K154: 2019-09-24 | L154: 45637 | M154: INE917I01010
A155: BAJAJCON | B155: EQ | C155: 261.65 | D155: 265.9 | E155: 253.45 | F155: 256.15 | G155: 255 | H155: 263 | I155: 52741 | J155: 13746041.95 | K155: 2019-09-24 | L155: 1861 | M155: INE933K01021
A156: BAJAJELEC | B156: EQ | C156: 411.8 | D156: 417.5 | E156: 400.7 | F156: 403.1 | G156: 405 | H156: 408.55 | I156: 63266 | J156: 25880279.3 | K156: 2019-09-24 | L156: 2910 | M156: INE193E01025
A157: BAJAJFINSV | B157: EQ | C157: 8298 | D157: 8374.75 | E157: 8157.05 | F157: 8240.7 | G157: 8260 | H157: 8297.75 | I157: 376734 | J157: 3108215595 | K157: 2019-09-24 | L157: 47340 | M157: INE918I01018
A158: BAJAJHIND | B158: EQ | C158: 6.7 | D158: 7.25 | E158: 6.6 | F158: 7 | G158: 7.05 | H158: 6.75 | I158: 1141419 | J158: 7958850.9 | K158: 2019-09-24 | L158: 2902 | M158: INE306A01021
A159: BAJAJHLDNG | B159: EQ | C159: 3650 | D159: 3710 | E159: 3420 | F159: 3688.05 | G159: 3666 | H159: 3537.55 | I159: 60960 | J159: 221024379.1 | K159: 2019-09-24 | L159: 12621 | M159: INE118A01012
A160: BAJFINANCE | B160: EQ | C160: 4025 | D160: 4025 | E160: 3927 | F160: 3961.75 | G160: 3967 | H160: 4023.75 | I160: 2189604 | J160: 8681242588 | K160: 2019-09-24 | L160: 140775 | M160: INE296A01024
A161: BALAJITELE | B161: EQ | C161: 57.4 | D161: 57.4 | E161: 54.1 | F161: 56 | G161: 56.7 | H161: 56.05 | I161: 40646 | J161: 2259457.35 | K161: 2019-09-24 | L161: 397 | M161: INE794B01026
A162: BALAMINES | B162: EQ | C162: 299.75 | D162: 319.8 | E162: 297.25 | F162: 314.85 | G162: 317.45 | H162: 297.15 | I162: 118756 | J162: 37008601.35 | K162: 2019-09-24 | L162: 5058 | M162: INE050E01027
A163: BALAXI | B163: EQ | C163: 99.15 | D163: 99.15 | E163: 90 | F163: 96.2 | G163: 96.7 | H163: 94.5 | I163: 517 | J163: 49055.95 | K163: 2019-09-24 | L163: 12 | M163: INE618N01014
A164: BALKRISHNA | B164: EQ | C164: 29.95 | D164: 31 | E164: 29.75 | F164: 29.75 | G164: 29.75 | H164: 31.3 | I164: 13562 | J164: 405372.15 | K164: 2019-09-24 | L164: 135 | M164: INE875R01011
A165: BALKRISIND | B165: EQ | C165: 796.8 | D165: 810 | E165: 782.5 | F165: 789.3 | G165: 789 | H165: 796.4 | I165: 250720 | J165: 198643166.1 | K165: 2019-09-24 | L165: 9849 | M165: INE787D01026
A166: BALLARPUR | B166: EQ | C166: 0.6 | D166: 0.6 | E166: 0.5 | F166: 0.55 | G166: 0.55 | H166: 0.55 | I166: 3561596 | J166: 2062122.6 | K166: 2019-09-24 | L166: 437 | M166: INE294A01037
A167: BALMLAWRIE | B167: EQ | C167: 175 | D167: 175.95 | E167: 172.95 | F167: 173.7 | G167: 173.95 | H167: 172.35 | I167: 76778 | J167: 13363781.4 | K167: 2019-09-24 | L167: 1785 | M167: INE164A01016
A168: BALPHARMA | B168: EQ | C168: 41.3 | D168: 42.8 | E168: 40.8 | F168: 41 | G168: 41.2 | H168: 41.35 | I168: 7315 | J168: 301661.6 | K168: 2019-09-24 | L168: 135 | M168: INE083D01012
A169: BALRAMCHIN | B169: EQ | C169: 160.7 | D169: 169 | E169: 159.05 | F169: 168.05 | G169: 168.05 | H169: 162.65 | I169: 2718161 | J169: 451885412.4 | K169: 2019-09-24 | L169: 46909 | M169: INE119A01028
A170: BANARBEADS | B170: EQ | C170: 39.1 | D170: 39.15 | E170: 39.1 | F170: 39.15 | G170: 39.15 | H170: 40 | I170: 359 | J170: 14037.4 | K170: 2019-09-24 | L170: 7 | M170: INE655B01011
A171: BANARISUG | B171: EQ | C171: 1210 | D171: 1245 | E171: 1203.2 | F171: 1228.7 | G171: 1225 | H171: 1231.8 | I171: 85 | J171: 104038.3 | K171: 2019-09-24 | L171: 33 | M171: INE459A01010
A172: BANCOINDIA | B172: EQ | C172: 114.5 | D172: 116.45 | E172: 98 | F172: 103.35 | G172: 103.05 | H172: 114.5 | I172: 450904 | J172: 46768006.1 | K172: 2019-09-24 | L172: 7953 | M172: INE213C01025
A173: BANDHANBNK | B173: EQ | C173: 534 | D173: 534.05 | E173: 501.25 | F173: 506.15 | G173: 507 | H173: 527.25 | I173: 556392 | J173: 285568941.4 | K173: 2019-09-24 | L173: 61461 | M173: INE545U01014
A174: BANG | B174: EQ | C174: 29.5 | D174: 30.45 | E174: 28.55 | F174: 29.25 | G174: 28.6 | H174: 29.8 | I174: 5153 | J174: 152116 | K174: 2019-09-24 | L174: 203 | M174: INE863I01016
A175: BANKBARODA | B175: EQ | C175: 100 | D175: 101.6 | E175: 98.75 | F175: 99.2 | G175: 98.8 | H175: 100.7 | I175: 23331962 | J175: 2331946733 | K175: 2019-09-24 | L175: 56904 | M175: INE028A01039
A176: BANKBEES | B176: EQ | C176: 3124.95 | D176: 3130 | E176: 3057 | F176: 3087.72 | G176: 3092.53 | H176: 3136.75 | I176: 15096 | J176: 46635638.93 | K176: 2019-09-24 | L176: 1619 | M176: INF732E01078
A177: BANKINDIA | B177: EQ | C177: 71.4 | D177: 72.85 | E177: 69.7 | F177: 70.6 | G177: 70.45 | H177: 71.6 | I177: 11693496 | J177: 834389157.8 | K177: 2019-09-24 | L177: 30434 | M177: INE084A01016
A178: BANSWRAS | B178: EQ | C178: 71.25 | D178: 78.55 | E178: 69 | F178: 76.9 | G178: 77 | H178: 75.65 | I178: 36648 | J178: 2737440.2 | K178: 2019-09-24 | L178: 577 | M178: INE629D01012
A179: BARTRONICS | B179: BE | C179: 2.1 | D179: 2.3 | E179: 2.1 | F179: 2.2 | G179: 2.2 | H179: 2.2 | I179: 3103 | J179: 6714 | K179: 2019-09-24 | L179: 21 | M179: INE855F01034
A180: BASF | B180: EQ | C180: 1030 | D180: 1141 | E180: 1030 | F180: 1051.85 | G180: 1050 | H180: 1025.85 | I180: 80599 | J180: 87596234.75 | K180: 2019-09-24 | L180: 6264 | M180: INE373A01013
A181: BASML | B181: EQ | C181: 140.1 | D181: 146 | E181: 139.5 | F181: 145 | G181: 145 | H181: 143.4 | I181: 737 | J181: 105067 | K181: 2019-09-24 | L181: 57 | M181: INE186H01014
A182: BATAINDIA | B182: EQ | C182: 1742.8 | D182: 1754.9 | E182: 1701 | F182: 1721.05 | G182: 1729 | H182: 1732 | I182: 767040 | J182: 1319769062 | K182: 2019-09-24 | L182: 48495 | M182: INE176A01028
A183: BAYERCROP | B183: EQ | C183: 3363.8 | D183: 3393.95 | E183: 3345 | F183: 3347.8 | G183: 3345 | H183: 3365.7 | I183: 6918 | J183: 23242026.45 | K183: 2019-09-24 | L183: 729 | M183: INE462A01022
A184: BBL | B184: EQ | C184: 950.05 | D184: 990 | E184: 944.9 | F184: 982.15 | G184: 989.7 | H184: 945.75 | I184: 17735 | J184: 17266249.15 | K184: 2019-09-24 | L184: 2433 | M184: INE464A01028
A185: BBTC | B185: EQ | C185: 1285 | D185: 1287 | E185: 1217.25 | F185: 1241.25 | G185: 1235.2 | H185: 1292.05 | I185: 230266 | J185: 287231340.1 | K185: 2019-09-24 | L185: 14213 | M185: INE050A01025
A186: BCG | B186: EQ | C186: 3.65 | D186: 3.75 | E186: 3.5 | F186: 3.55 | G186: 3.55 | H186: 3.65 | I186: 225395 | J186: 810487.6 | K186: 2019-09-24 | L186: 205 | M186: INE425B01027
A187: BCP | B187: EQ | C187: 10 | D187: 10.05 | E187: 9.75 | F187: 9.8 | G187: 10.05 | H187: 9.9 | I187: 530843 | J187: 5186261.3 | K187: 2019-09-24 | L187: 111 | M187: INE905P01028
A188: BDL | B188: EQ | C188: 304 | D188: 314 | E188: 299.5 | F188: 310.5 | G188: 311 | H188: 302.2 | I188: 84862 | J188: 26084887.5 | K188: 2019-09-24 | L188: 4084 | M188: INE171Z01018
A189: BEARDSELL | B189: EQ | C189: 11 | D189: 11.8 | E189: 10.85 | F189: 11.05 | G189: 11 | H189: 11.3 | I189: 7249 | J189: 79771.9 | K189: 2019-09-24 | L189: 65 | M189: INE520H01022
A190: BEDMUTHA | B190: EQ | C190: 12.2 | D190: 12.6 | E190: 11.75 | F190: 12.15 | G190: 12.15 | H190: 12.2 | I190: 1622 | J190: 19478.95 | K190: 2019-09-24 | L190: 32 | M190: INE844K01012
A191: BEL | B191: EQ | C191: 112.5 | D191: 113.25 | E191: 110.5 | F191: 111.85 | G191: 112.2 | H191: 112.45 | I191: 11170450 | J191: 1247523610 | K191: 2019-09-24 | L191: 63773 | M191: INE263A01024
A192: BEML | B192: EQ | C192: 922 | D192: 964.9 | E192: 911 | F192: 951.7 | G192: 953 | H192: 915.2 | I192: 1747299 | J192: 1650558794 | K192: 2019-09-24 | L192: 52652 | M192: INE258A01016
A193: BEPL | B193: EQ | C193: 62 | D193: 66.7 | E193: 61.75 | F193: 63.85 | G193: 63.8 | H193: 61.4 | I193: 518571 | J193: 33389564.8 | K193: 2019-09-24 | L193: 5264 | M193: INE922A01025
A194: BERGEPAINT | B194: EQ | C194: 430 | D194: 435.55 | E194: 424.1 | F194: 427 | G194: 427.45 | H194: 435.85 | I194: 1581860 | J194: 676932263.7 | K194: 2019-09-24 | L194: 51315 | M194: INE463A01038
A195: BFINVEST | B195: EQ | C195: 282.6 | D195: 293.95 | E195: 275 | F195: 282.8 | G195: 284.7 | H195: 283.75 | I195: 88939 | J195: 25399220.5 | K195: 2019-09-24 | L195: 2974 | M195: INE878K01010
A196: BFUTILITIE | B196: EQ | C196: 186 | D196: 190.5 | E196: 180.55 | F196: 184.75 | G196: 184.8 | H196: 185 | I196: 638572 | J196: 118743052.2 | K196: 2019-09-24 | L196: 11620 | M196: INE243D01012
A197: BGLOBAL | B197: BE | C197: 1.55 | D197: 1.55 | E197: 1.5 | F197: 1.55 | G197: 1.55 | H197: 1.5 | I197: 23491 | J197: 36281.1 | K197: 2019-09-24 | L197: 21 | M197: INE224M01013
A198: BGRENERGY | B198: EQ | C198: 37 | D198: 37.95 | E198: 36.5 | F198: 36.8 | G198: 36.7 | H198: 37.05 | I198: 69712 | J198: 2586745.75 | K198: 2019-09-24 | L198: 1072 | M198: INE661I01014
A199: BHAGERIA | B199: EQ | C199: 125.95 | D199: 126 | E199: 121 | F199: 122.7 | G199: 121.9 | H199: 121.9 | I199: 15445 | J199: 1911791.15 | K199: 2019-09-24 | L199: 567 | M199: INE354C01027
A200: BHAGYANGR | B200: EQ | C200: 20.35 | D200: 20.6 | E200: 19.75 | F200: 20.35 | G200: 20.45 | H200: 20.3 | I200: 1389 | J200: 28173.1 | K200: 2019-09-24 | L200: 62 | M200: INE458B01036
... 1491 more rows

Sheet Sheet1 (hidden)

Sheet Sheet3 (hidden)

Sheet Sheet4 (hidden)

Sheet Sheet5 (hidden)
